Workbook

Sheet Setup
A1: Singles | B1: 32 | D1: Θέσεις | E1: seed | H1: 0 | I1: seed | J1: space pos | K1: Index | L1: Value
A2: Draw32_S | D2: 3-4 | E2: =VALUE(LEFT(F2,1)) -> 3 | F2: 3 4 | H2: =IF(I2="-","-",IF(I2>0,H1+1,0)) -> 0 | I2: =IF(J2>0,VALUE(MID($A$32,1,J2-1)),"-") -> 0 | J2: =IF(LEN($A$32)>1,FIND(" ",$A$32,1),0) -> 2 | K2: 0 | L2: 0
A3: Διοργανωτής: | B3: ΣΤ' ΕΝΩΣΗ | E3: =VALUE(RIGHT(F2,1)) -> 4 | H3: 0 | I3: =IF(J3>0,VALUE(MID($A$32,J2+1,J3-J2-1)),"-") -> 0 | J3: =IF(AND(J2>0,LEN($A$32)>J2+1),FIND(" ",$A$32,J2+1),0) -> 4 | K3: 0 | L3: 0 | Z3: Tour lookup
A4: Έδρα αγώνων: | B4: ΣΑ ΤΡΙΠΟΛΗΣ | D4: Θέσεις | E4: seed | H4: 0 | I4: 0 | J4: 6 | K4: 0 | L4: 0 | Z4: =$B$8 -> 43232
A5: grade: | B5: Ε3 | D5: 5-8 | E5: =TRIM(LEFT(F5,(FIND(" ",F5,1)-1))) -> 6 | F5: 6 5 8 7 | H5: 0 | I5: 0 | J5: 8 | K5: 0 | L5: 0 | Z5: =TRIM(IF(OR($B$5="Παν",$B$5="ΠανΑΓ",$B$5="Open",$B$5="OpenΑΓ"),$B$5&" ("&VLOOKUP($B$4,tables!$X:$Z,3,FALSE)&")"&" "&$B$13,$B$7&" ("&VLOOKUP($B$4,tables!$X:$Z,3,FALSE)&")")) -> Ε3 19η (ΣΤ)
A6: Κατηγορία: | B6: Α14 | E6: =TRIM(MID(F5,(FIND(" ",F5,1)),FIND(" ",F5,(FIND(" ",F5,1)+1))-(FIND(" ",F5,1)))) -> 5 | H6: 0 | I6: 0 | J6: 10 | K6: 0 | L6: 0 | T6: Tournament ID | Z6: =VLOOKUP($B$4,tables!$X:$Z,2,FALSE) -> 294
A7: Τίτλος Τουρνουά: | B7: Ε3 19η | E7: =TRIM(MID(F5, (FIND(" ",F5,(FIND(" ",F5,1)+1))+1), (FIND(" ",F5,(FIND(" ",F5,(FIND(" ",F5,1)+1))+1)))-(FIND(" ",F5,(FIND(" ",F5,1)+1))+1))) -> 8 | H7: 0 | I7: 0 | J7: 12 | K7: 0 | L7: 0 | T7: =$Z$9 ->  | Z7: S
A8: Έναρξη Κ.Τ.: | B8: 2018-05-12 | E8: =TRIM(RIGHT(F5,LEN(F5)-(FIND(" ",F5,(FIND(" ",F5,(FIND(" ",F5,1)+1))+1))))) -> 7 | H8: 0 | I8: 0 | J8: 14 | K8: 0 | L8: 0 | T8: =LOWER(B21) -> ε3 19η στ α14 s md | Z8: =TRIM(IF(SUBSTITUTE($B$6,"1","")<>$B$6,SUBSTITUTE(UPPER($B$6),"D",""),"")) -> Α14
A9: Λήξη τουρνουά: | B9: 2018-05-13 | H9: 0 | I9: 0 | J9: 16 | K9: 0 | L9: 0 | Z9: =VLOOKUP($Z$4&$Z$5&$Z$6&$Z$7&$Z$8,tables!$AI:$AQ,9,FALSE) -> 
A10: Βδομάδα: | B10: ="βδ.: "&TEXT(WEEKNUM(B8,2),"00")&"η" -> βδ.: 19η | H10: 0 | I10: 0 | J10: 18 | K10: 0 | L10: 0 | Z10: =VLOOKUP(B6,tables!AS1:AT51,2,FALSE) -> 6
A11: Επιδιατητής: | B11: ΚΑΛΟΓΡΗ Σ | H11: 0 | I11: =IF(J11>0,VALUE(MID($A$32,J10+1,J11-J10-1)),"-") -> 0 | J11: 20 | K11: 0 | L11: 0 | T11: γραφή σκορ: | U11: 62 76(4)
A12: Τηλέφωνο τουρνουά: | H12: =IF(I12="-","-",IF(I12>0,H11+1,0)) -> 0 | I12: 0 | J12: 22 | K12: 0 | L12: 0 | U12: wo ret med
A13: =IF(SUBSTITUTE($B$6,"1","")<>$B$6, SUBSTITUTE(SUBSTITUTE(SUBSTITUTE(SUBSTITUTE(SUBSTITUTE(UPPER(LEFT($B$6)),"A","B"),"Α","B"),"K","G"),"Κ","G"),"Μ","X"),"") -> B | B13: =IF(SUBSTITUTE($B$6,"1","")<>$B$6,VALUE(SUBSTITUTE(SUBSTITUTE(SUBSTITUTE(SUBSTITUTE(SUBSTITUTE(UPPER(LEFT($B$6,3)),"A",""),"Α",""),"K",""),"Κ",""),"Μ","")), $B$6) -> 14 | H13: 0 | I13: 0 | J13: 24 | K13: 0 | L13: 0
H14: 1 | I14: 1 | J14: 26 | K14: 1 | L14: 1
H15: 2 | I15: 2 | J15: 28 | K15: 2 | L15: 2
H16: 3 | I16: 3 | J16: 30 | K16: 3 | L16: 3 | T16: msg
A17: Χωρίς νίκη βαθμοί γύρου: | B17: 17_32 | H17: 4 | I17: 4 | J17: 32 | K17: 4 | L17: 4 | T17: =IF(NOW()>B22,"Invalid program!","") -> 
A18: Πλήθος bye (0-15): | B18: =COUNTBLANK(ALMD!D3:D34) -> 12 | H18: 5 | I18: 5 | J18: 34 | K18: 5 | L18: 5
A19: Θέσεις seeded: | B19: 8 | H19: 6 | I19: 6 | J19: 36 | K19: 6 | L19: 6
H20: 7 | I20: 7 | J20: 38 | K20: 7 | L20: 7
A21: Όνομα Excel αρχείου: | B21: =LOWER(IF(SUBSTITUTE($B$6,"1","")<>$B$6, $B$5&" "&MID($B$10,6,2)&"η "&VLOOKUP($B$4,tables!$X:$Z,3,FALSE)&" "&LEFT($B$6)&$B$13&" S MD", $B$5&" "&MID($B$10,6,2)&"η "&VLOOKUP($B$4,tables!$X:$Z,3,FALSE)&" "&$B$13&" S MD")) -> ε3 19η στ α14 s md | H21: 8 | I21: 8 | J21: 40 | K21: 8 | L21: 8
A22: exp. | B22: 2018-05-31 | H22: 9 | I22: 13 | J22: 43 | K22: 9 | L22: 13
H23: 10 | I23: 9 | J23: 45 | K23: 10 | L23: 9
A24: Κλήρωση MD: | B24: 2018-05-12T10:34:30 | H24: 11 | I24: 16 | J24: 48 | K24: 11 | L24: 16
H25: 12 | I25: 11 | J25: 51 | K25: 12 | L25: 11
A26: =RandNumbers(3,4) -> 3 4 | H26: 13 | I26: 17 | J26: 54 | K26: 13 | L26: 17
A27: =RandNumbers(5,8) -> 6 5 8 7 | H27: 14 | I27: 15 | J27: 57 | K27: 14 | L27: 15
H28: 15 | I28: 12 | J28: 60 | K28: 15 | L28: 12
A29: =LEFT($A$34,$B$18*2) & LEFT($A$33,$B$19*2) & RandNumbers($B$19+1,32-$B$18) & " " -> 0 0 0 0 0 0 0 0 0 0 0 0 1 2 3 4 5 6 7 8 20 11 19 10 12 18 16 17 9 14 15 13 | H29: 16 | I29: 18 | J29: 63 | K29: 16 | L29: 18
H30: 17 | I30: 14 | J30: 66 | K30: 17 | L30: 14
H31: 18 | I31: 19 | J31: 69 | K31: 18 | L31: 19
A32: 0 0 0 0 0 0 0 0 0 0 0 0 1 2 3 4 5 6 7 8 13 9 16 11 17 15 12 18 14 19 10 20 | H32: 19 | I32: 10 | J32: 72 | K32: 19 | L32: 10
A33: 1 2 3 4 5 6 7 8 | H33: 20 | I33: 20 | J33: 75 | K33: 20 | L33: 20
A34: 0 0 0 0 0 0 0 0 0 0 0 0 0 0 0 0 0 0 0 0 0 0 0 0 0 0 0 0 0 0 0 0 0 0 0 0 0 0 0 0

Sheet MD
A1: =Setup!$B$3&", "&Setup!$B$7&", "&Setup!$B$4&", "&DAY(Setup!$B$8)&"/"&MONTH(Setup!$B$8)&"-"&DAY(Setup!$B$9)&"/"&MONTH(Setup!$B$9)&"/"&YEAR(Setup!$B$9) -> ΣΤ' ΕΝΩΣΗ, Ε3 19η, ΣΑ ΤΡΙΠΟΛΗΣ, 12/5-13/5/2018 | X1: =Setup!B6 -> Α14 | Y1: ="bye: "&COUNTIF(J5:J36,"bye") -> bye: 12
B2: =Setup!B18 -> 12 | I2: ="αλλαγές: "&TEXT(HOUR(NOW()),"00")&":"&TEXT(MINUTE(NOW()),"00")&", "&DAY(TODAY())&"/"&MONTH(TODAY())&"/"&YEAR(TODAY()) -> αλλαγές: 18:18, 23/5/2018
J3: 32 | O3: 16 | R3: 8 | U3: 4 | X3: 2 & w
A4: α/α | C4: ByeOrder | D4: ByeSum | E4: ByeCnt | F4: από | G4: seed | H4: Pts | I4: Α.Μ. | J4: Ονοματεπώνυμο | K4: επώνυμο | L4: Σύλλογος
A5: 1 | B5: 1 | E5: 0 | F5: =IF(NOT($G5="-"),VLOOKUP($G5,ALMD!$A$3:$G$34,2,FALSE),"") -> 0 | G5: =VLOOKUP($B5,Setup!$K$2:$L$33,2,FALSE) -> 1 | H5: =IF($G5>0,VLOOKUP($G5,ALMD!$A$3:$G$34,7,FALSE),0) -> 122 | I5: =IF(Setup!$B$24="",0,IF($G5>0,VLOOKUP($G5,ALMD!$A$3:$G$34,3,FALSE),0)) -> 34598 | J5: =IF($I5>0,VLOOKUP($I5,ALMD!$C$3:$G$34,2,FALSE),"bye") -> ΚΟΛΛΙΑΣ ΣΤΑΥΡΟΣ | K5: =IF(NOT(I5>0),"",LEFT(J5,MIN(15,FIND(" ",J5)-1))&MID(J5,FIND(" ",J5),2)) -> ΚΟΛΛΙΑΣ Σ | L5: =IF($I5>0,VLOOKUP($I5,ALMD!$C$3:$G$34,4,FALSE),"") -> ΡΗΓΑΣ ΑΟΑ ΑΡΓΟΛΙΔΑΣ | M5: 1 | N5: =IF((OR(M5=1,M5=2)),IF(M5=1,I5,I6),"") -> 34598 | O5: =IF((OR(M5=1,M5=2)),IF(M5=1,K5,K6),"") -> ΚΟΛΛΙΑΣ Σ
A6: 2 | B6: =1-D6+8 -> 8 | C6: =B5 -> 1 | D6: =E6 -> 1 | E6: =IF($B$2>=C6,1,0) -> 1 | F6: =IF(NOT($G6="-"),VLOOKUP($G6,ALMD!$A$3:$G$34,2,FALSE),"") ->  | G6: =IF($B$2>=C6,"-",VLOOKUP($B6,Setup!$K$2:$L$33,2,FALSE)) -> - | H6: =IF(NOT($G6="-"),VLOOKUP($G6,ALMD!$A$3:$G$34,7,FALSE),0) -> 0 | I6: =IF(Setup!$B$24="",0,IF(NOT($G6="-"),VLOOKUP($G6,ALMD!$A$3:$G$34,3,FALSE),0)) -> 0 | J6: =IF($I6>0,VLOOKUP($I6,ALMD!$C$3:$G$34,2,FALSE),"bye") -> bye | K6: =IF(NOT(I6>0),"",LEFT(J6,MIN(15,FIND(" ",J6)-1))&MID(J6,FIND(" ",J6),2)) ->  | L6: =IF($I6>0,VLOOKUP($I6,ALMD!$C$3:$G$34,4,FALSE),"") ->  | P6: 1 | Q6: =IF((OR(P6=1,P6=2)),IF(P6=1,N5,N7),"") -> 34598 | R6: =IF(OR(P6=1,P6=2),IF(OR(AND(O6="",I5>0,I6>0),AND(O8="",I7>0,I8>0)),"* αποτέλεσμα! *",IF(P6=1,O5,O7)),"") -> ΚΟΛΛΙΑΣ Σ
A7: 3 | B7: =2-D7+8 -> 9 | D7: =D6+E7 -> 1 | E7: 0 | F7: =IF(NOT($G7="-"),VLOOKUP($G7,ALMD!$A$3:$G$34,2,FALSE),"") -> 0 | G7: =VLOOKUP($B7,Setup!$K$2:$L$33,2,FALSE) -> 13 | H7: =IF($G7>0,VLOOKUP($G7,ALMD!$A$3:$G$34,7,FALSE),0) -> 14.9 | I7: =IF(Setup!$B$24="",0,IF($G7>0,VLOOKUP($G7,ALMD!$A$3:$G$34,3,FALSE),0)) -> 34817 | J7: =IF($I7>0,VLOOKUP($I7,ALMD!$C$3:$G$34,2,FALSE),"bye") -> ΤΖΟΥΤΖΟΠΟΥΛΟΣ ΘΕΜΙΣΤΟΚΛΗΣ | K7: ΤΖΟΥΤΖΟΠΟΥΛΟΣ Θ | L7: =IF($I7>0,VLOOKUP($I7,ALMD!$C$3:$G$34,4,FALSE),"") -> ΟΑ ΚΟΡΙΝΘΟΥ | M7: 1 | N7: =IF((OR(M7=1,M7=2)),IF(M7=1,I7,I8),"") -> 34817 | O7: =IF((OR(M7=1,M7=2)),IF(M7=1,K7,K8),"") -> ΤΖΟΥΤΖΟΠΟΥΛΟΣ Θ | R7: 40 42
A8: 4 | B8: =3-D8+8 -> 10 | C8: 15 | D8: =D7+E8 -> 1 | E8: =IF($B$2>=C8,1,0) -> 0 | F8: =IF(NOT($G8="-"),VLOOKUP($G8,ALMD!$A$3:$G$34,2,FALSE),"") -> 0 | G8: =IF($B$2>=C8,"-",VLOOKUP($B8,Setup!$K$2:$L$33,2,FALSE)) -> 9 | H8: =IF(NOT($G8="-"),VLOOKUP($G8,ALMD!$A$3:$G$34,7,FALSE),0) -> 31 | I8: =IF(Setup!$B$24="",0,IF(NOT($G8="-"),VLOOKUP($G8,ALMD!$A$3:$G$34,3,FALSE),0)) -> 33450 | J8: =IF($I8>0,VLOOKUP($I8,ALMD!$C$3:$G$34,2,FALSE),"bye") -> ΚΑΜΠΑΝΟΣ ΕΛΕΥΘΕΡΙΟΣ | K8: ΚΑΜΠΑΝΟΣ Ε | L8: =IF($I8>0,VLOOKUP($I8,ALMD!$C$3:$G$34,4,FALSE),"") -> ΚΕΦΑΛΛΗΝΙΑΚΟΣ ΟΑ | O8: 41 53 | S8: 1 | T8: =IF((OR(S8=1,S8=2)),IF(S8=1,Q6,Q10),"") -> 34598 | U8: =IF(OR(S8=1,S8=2),IF(OR(AND(R7="",N5>0,N7>0),AND(R11="",N9>0,N11>0)),"* αποτέλεσμα! *",IF(S8=1,R6,R10)),"") -> ΚΟΛΛΙΑΣ Σ
A9: 5 | B9: =4-D9+8 -> 11 | D9: 1 | E9: 0 | F9: =IF(NOT($G9="-"),VLOOKUP($G9,ALMD!$A$3:$G$34,2,FALSE),"") -> 0 | G9: =VLOOKUP($B9,Setup!$K$2:$L$33,2,FALSE) -> 16 | H9: =IF($G9>0,VLOOKUP($G9,ALMD!$A$3:$G$34,7,FALSE),0) -> 7.5 | I9: =IF(Setup!$B$24="",0,IF($G9>0,VLOOKUP($G9,ALMD!$A$3:$G$34,3,FALSE),0)) -> 32578 | J9: =IF($I9>0,VLOOKUP($I9,ALMD!$C$3:$G$34,2,FALSE),"bye") -> ΜΟΥΡΙΚΗΣ ΚΩΝΣΤΑΝΤΙΝΟΣ | K9: ΜΟΥΡΙΚΗΣ Κ | L9: =IF($I9>0,VLOOKUP($I9,ALMD!$C$3:$G$34,4,FALSE),"") -> ΑΟ ΑΙΓΙΟΥ ΜΟΡΕΑΣ | M9: 1 | N9: =IF((OR(M9=1,M9=2)),IF(M9=1,I9,I10),"") -> 32578 | O9: =IF((OR(M9=1,M9=2)),IF(M9=1,K9,K10),"") -> ΜΟΥΡΙΚΗΣ Κ | U9: 40 40
A10: 6 | B10: =5-D10+8 -> 11 | C10: 9 | D10: 2 | E10: =IF($B$2>=C10,1,0) -> 1 | F10: =IF(NOT($G10="-"),VLOOKUP($G10,ALMD!$A$3:$G$34,2,FALSE),"") ->  | G10: =IF($B$2>=C10,"-",VLOOKUP($B10,Setup!$K$2:$L$33,2,FALSE)) -> - | H10: =IF(NOT($G10="-"),VLOOKUP($G10,ALMD!$A$3:$G$34,7,FALSE),0) -> 0 | I10: =IF(Setup!$B$24="",0,IF(NOT($G10="-"),VLOOKUP($G10,ALMD!$A$3:$G$34,3,FALSE),0)) -> 0 | J10: =IF($I10>0,VLOOKUP($I10,ALMD!$C$3:$G$34,2,FALSE),"bye") -> bye | L10: =IF($I10>0,VLOOKUP($I10,ALMD!$C$3:$G$34,4,FALSE),"") ->  | P10: 2 | Q10: =IF((OR(P10=1,P10=2)),IF(P10=1,N9,N11),"") -> 30151 | R10: =IF(OR(P10=1,P10=2),IF(OR(AND(O10="",I9>0,I10>0),AND(O12="",I11>0,I12>0)),"* αποτέλεσμα! *",IF(P10=1,O9,O11)),"") -> ΚΑΡΑΝΑΓΝΩΣΤΗΣ Κ
A11: 7 | B11: =6-D11+8 -> 11 | C11: =B12 -> 6 | D11: 3 | E11: =IF($B$2>=C11,1,0) -> 1 | F11: =IF(NOT($G11="-"),VLOOKUP($G11,ALMD!$A$3:$G$34,2,FALSE),"") ->  | G11: =IF($B$2>=C11,"-",VLOOKUP($B11,Setup!$K$2:$L$33,2,FALSE)) -> - | H11: =IF(NOT($G11="-"),VLOOKUP($G11,ALMD!$A$3:$G$34,7,FALSE),0) -> 0 | I11: =IF(Setup!$B$24="",0,IF(NOT($G11="-"),VLOOKUP($G11,ALMD!$A$3:$G$34,3,FALSE),0)) -> 0 | J11: =IF($I11>0,VLOOKUP($I11,ALMD!$C$3:$G$34,2,FALSE),"bye") -> bye | L11: =IF($I11>0,VLOOKUP($I11,ALMD!$C$3:$G$34,4,FALSE),"") ->  | M11: 2 | N11: =IF((OR(M11=1,M11=2)),IF(M11=1,I11,I12),"") -> 30151 | O11: =IF((OR(M11=1,M11=2)),IF(M11=1,K11,K12),"") -> ΚΑΡΑΝΑΓΝΩΣΤΗΣ Κ | R11: 40 40
A12: 8 | B12: =VALUE(Setup!E5) -> 6 | D12: 3 | E12: 0 | F12: =IF(NOT($G12="-"),VLOOKUP($G12,ALMD!$A$3:$G$34,2,FALSE),"") -> 0 | G12: =VLOOKUP($B12,Setup!$K$2:$L$33,2,FALSE) -> 6 | H12: =IF($G12>0,VLOOKUP($G12,ALMD!$A$3:$G$34,7,FALSE),0) -> 34 | I12: =IF(Setup!$B$24="",0,IF($G12>0,VLOOKUP($G12,ALMD!$A$3:$G$34,3,FALSE),0)) -> 30151 | J12: =IF($I12>0,VLOOKUP($I12,ALMD!$C$3:$G$34,2,FALSE),"bye") -> ΚΑΡΑΝΑΓΝΩΣΤΗΣ ΚΩΝΣΤΑΝΤΙΝΟΣ | K12: ΚΑΡΑΝΑΓΝΩΣΤΗΣ Κ | L12: =IF($I12>0,VLOOKUP($I12,ALMD!$C$3:$G$34,4,FALSE),"") -> ΑΕΚ ΤΡΙΠΟΛΗΣ | V12: 1 | W12: =IF((OR(V12=1,V12=2)),IF(V12=1,T8,T16),"") -> 34598 | X12: =IF(OR(V12=1,V12=2),IF(OR(U9="",U17=""),"* αποτέλεσμα! *",IF(V12=1,U8,U16)),"") -> ΚΟΛΛΙΑΣ Σ
A13: 9 | B13: =VALUE(Setup!E2) -> 3 | D13: 3 | E13: 0 | F13: =IF(NOT($G13="-"),VLOOKUP($G13,ALMD!$A$3:$G$34,2,FALSE),"") -> 0 | G13: =VLOOKUP($B13,Setup!$K$2:$L$33,2,FALSE) -> 3 | H13: =IF($G13>0,VLOOKUP($G13,ALMD!$A$3:$G$34,7,FALSE),0) -> 47 | I13: =IF(Setup!$B$24="",0,IF($G13>0,VLOOKUP($G13,ALMD!$A$3:$G$34,3,FALSE),0)) -> 37036 | J13: =IF($I13>0,VLOOKUP($I13,ALMD!$C$3:$G$34,2,FALSE),"bye") -> ΛΟΥΚΑ ΝΙΚΟΛΑΟΣ | K13: ΛΟΥΚΑ Ν | L13: =IF($I13>0,VLOOKUP($I13,ALMD!$C$3:$G$34,4,FALSE),"") -> ΑΟΑ ΠΑΤΡΩΝ | M13: 1 | N13: =IF((OR(M13=1,M13=2)),IF(M13=1,I13,I14),"") -> 37036 | O13: =IF((OR(M13=1,M13=2)),IF(M13=1,K13,K14),"") -> ΛΟΥΚΑ Ν | X13: 62 61
A14: 10 | B14: =7-D14+8 -> 11 | C14: =B13 -> 3 | D14: 4 | E14: =IF($B$2>=C14,1,0) -> 1 | F14: =IF(NOT($G14="-"),VLOOKUP($G14,ALMD!$A$3:$G$34,2,FALSE),"") ->  | G14: =IF($B$2>=C14,"-",VLOOKUP($B14,Setup!$K$2:$L$33,2,FALSE)) -> - | H14: =IF(NOT($G14="-"),VLOOKUP($G14,ALMD!$A$3:$G$34,7,FALSE),0) -> 0 | I14: =IF(Setup!$B$24="",0,IF(NOT($G14="-"),VLOOKUP($G14,ALMD!$A$3:$G$34,3,FALSE),0)) -> 0 | J14: =IF($I14>0,VLOOKUP($I14,ALMD!$C$3:$G$34,2,FALSE),"bye") -> bye | L14: =IF($I14>0,VLOOKUP($I14,ALMD!$C$3:$G$34,4,FALSE),"") ->  | P14: 2 | Q14: =IF((OR(P14=1,P14=2)),IF(P14=1,N13,N15),"") -> 39823 | R14: =IF((OR(P14=1,P14=2)),IF(P14=1,O13,O15),"") -> ΠΑΠΑΝΙΚΟΛΑΟΥ Ε
A15: 11 | B15: =8-D15+8 -> 12 | D15: 4 | E15: 0 | F15: =IF(NOT($G15="-"),VLOOKUP($G15,ALMD!$A$3:$G$34,2,FALSE),"") -> 0 | G15: =VLOOKUP($B15,Setup!$K$2:$L$33,2,FALSE) -> 11 | H15: =IF($G15>0,VLOOKUP($G15,ALMD!$A$3:$G$34,7,FALSE),0) -> 26.6 | I15: =IF(Setup!$B$24="",0,IF($G15>0,VLOOKUP($G15,ALMD!$A$3:$G$34,3,FALSE),0)) -> 39823 | J15: =IF($I15>0,VLOOKUP($I15,ALMD!$C$3:$G$34,2,FALSE),"bye") -> ΠΑΠΑΝΙΚΟΛΑΟΥ ΕΚΤΟΡΑΣ | K15: ΠΑΠΑΝΙΚΟΛΑΟΥ Ε | L15: =IF($I15>0,VLOOKUP($I15,ALMD!$C$3:$G$34,4,FALSE),"") -> ΑΕΚ ΤΡΙΠΟΛΗΣ | M15: 1 | N15: =IF((OR(M15=1,M15=2)),IF(M15=1,I15,I16),"") -> 39823 | O15: =IF((OR(M15=1,M15=2)),IF(M15=1,K15,K16),"") -> ΠΑΠΑΝΙΚΟΛΑΟΥ Ε | R15: 14 40 75
A16: 12 | B16: =9-D16+8 -> 13 | C16: 13 | D16: 4 | E16: =IF($B$2>=C16,1,0) -> 0 | F16: =IF(NOT($G16="-"),VLOOKUP($G16,ALMD!$A$3:$G$34,2,FALSE),"") -> 0 | G16: =IF($B$2>=C16,"-",VLOOKUP($B16,Setup!$K$2:$L$33,2,FALSE)) -> 17 | H16: =IF(NOT($G16="-"),VLOOKUP($G16,ALMD!$A$3:$G$34,7,FALSE),0) -> 7.5 | I16: =IF(Setup!$B$24="",0,IF(NOT($G16="-"),VLOOKUP($G16,ALMD!$A$3:$G$34,3,FALSE),0)) -> 39014 | J16: =IF($I16>0,VLOOKUP($I16,ALMD!$C$3:$G$34,2,FALSE),"bye") -> ΓΡΑΜΜΑΤΙΚΟΣ ΜΙΛΤΙΑΔΗΣ-ΠΑΝΑΓΙΩΤΗΣ | K16: ΓΡΑΜΜΑΤΙΚΟΣ Μ | L16: =IF($I16>0,VLOOKUP($I16,ALMD!$C$3:$G$34,4,FALSE),"") -> ΡΗΓΑΣ ΑΟΑ ΑΡΓΟΛΙΔΑΣ | O16: 41 40 | S16: 2 | T16: =IF((OR(S16=1,S16=2)),IF(S16=1,Q14,Q18),"") -> 36852 | U16: =IF(OR(S16=1,S16=2),IF(OR(AND(R15="",N13>0,N15>0),AND(R19="",N17>0,N19>0)),"* αποτέλεσμα! *",IF(S16=1,R14,R18)),"") -> ΤΖΩΡΤΖΑΤΟΣ Κ
A17: 13 | B17: =10-D17+8 -> 14 | D17: 4 | E17: 0 | F17: =IF(NOT($G17="-"),VLOOKUP($G17,ALMD!$A$3:$G$34,2,FALSE),"") -> 0 | G17: =VLOOKUP($B17,Setup!$K$2:$L$33,2,FALSE) -> 15 | H17: =IF($G17>0,VLOOKUP($G17,ALMD!$A$3:$G$34,7,FALSE),0) -> 10 | I17: =IF(Setup!$B$24="",0,IF($G17>0,VLOOKUP($G17,ALMD!$A$3:$G$34,3,FALSE),0)) -> 37284 | J17: =IF($I17>0,VLOOKUP($I17,ALMD!$C$3:$G$34,2,FALSE),"bye") -> ΑΔΑΜΟΠΟΥΛΟΣ ΙΩΑΝΝΗΣ | K17: ΑΔΑΜΟΠΟΥΛΟΣ Ι | L17: =IF($I17>0,VLOOKUP($I17,ALMD!$C$3:$G$34,4,FALSE),"") -> ΑΟ ΑΙΓΙΟΥ ΜΟΡΕΑΣ | M17: 1 | N17: =IF((OR(M17=1,M17=2)),IF(M17=1,I17,I18),"") -> 37284 | O17: =IF((OR(M17=1,M17=2)),IF(M17=1,K17,K18),"") -> ΑΔΑΜΟΠΟΥΛΟΣ Ι | U17: 24 53 74
A18: 14 | B18: =11-D18+8 -> 14 | C18: 11 | D18: 5 | E18: =IF($B$2>=C18,1,0) -> 1 | F18: =IF(NOT($G18="-"),VLOOKUP($G18,ALMD!$A$3:$G$34,2,FALSE),"") ->  | G18: =IF($B$2>=C18,"-",VLOOKUP($B18,Setup!$K$2:$L$33,2,FALSE)) -> - | H18: =IF(NOT($G18="-"),VLOOKUP($G18,ALMD!$A$3:$G$34,7,FALSE),0) -> 0 | I18: =IF(Setup!$B$24="",0,IF(NOT($G18="-"),VLOOKUP($G18,ALMD!$A$3:$G$34,3,FALSE),0)) -> 0 | J18: =IF($I18>0,VLOOKUP($I18,ALMD!$C$3:$G$34,2,FALSE),"bye") -> bye | L18: =IF($I18>0,VLOOKUP($I18,ALMD!$C$3:$G$34,4,FALSE),"") ->  | P18: 2 | Q18: =IF((OR(P18=1,P18=2)),IF(P18=1,N17,N19),"") -> 36852 | R18: =IF(OR(P18=1,P18=2),IF(OR(AND(O18="",I17>0,I18>0),AND(O20="",I19>0,I20>0)),"* αποτέλεσμα! *",IF(P18=1,O17,O19)),"") -> ΤΖΩΡΤΖΑΤΟΣ Κ
A19: 15 | B19: =12-D19+8 -> 14 | C19: =B20 -> 5 | D19: 6 | E19: =IF($B$2>=C19,1,0) -> 1 | F19: =IF(NOT($G19="-"),VLOOKUP($G19,ALMD!$A$3:$G$34,2,FALSE),"") ->  | G19: =IF($B$2>=C19,"-",VLOOKUP($B19,Setup!$K$2:$L$33,2,FALSE)) -> - | H19: =IF(NOT($G19="-"),VLOOKUP($G19,ALMD!$A$3:$G$34,7,FALSE),0) -> 0 | I19: =IF(Setup!$B$24="",0,IF(NOT($G19="-"),VLOOKUP($G19,ALMD!$A$3:$G$34,3,FALSE),0)) -> 0 | J19: =IF($I19>0,VLOOKUP($I19,ALMD!$C$3:$G$34,2,FALSE),"bye") -> bye | L19: =IF($I19>0,VLOOKUP($I19,ALMD!$C$3:$G$34,4,FALSE),"") ->  | M19: 2 | N19: =IF((OR(M19=1,M19=2)),IF(M19=1,I19,I20),"") -> 36852 | O19: =IF((OR(M19=1,M19=2)),IF(M19=1,K19,K20),"") -> ΤΖΩΡΤΖΑΤΟΣ Κ | R19: 40 40
A20: 16 | B20: =VALUE(Setup!E6) -> 5 | D20: 6 | E20: 0 | F20: =IF(NOT($G20="-"),VLOOKUP($G20,ALMD!$A$3:$G$34,2,FALSE),"") -> 0 | G20: =VLOOKUP($B20,Setup!$K$2:$L$33,2,FALSE) -> 5 | H20: =IF($G20>0,VLOOKUP($G20,ALMD!$A$3:$G$34,7,FALSE),0) -> 36 | I20: =IF(Setup!$B$24="",0,IF($G20>0,VLOOKUP($G20,ALMD!$A$3:$G$34,3,FALSE),0)) -> 36852 | J20: =IF($I20>0,VLOOKUP($I20,ALMD!$C$3:$G$34,2,FALSE),"bye") -> ΤΖΩΡΤΖΑΤΟΣ ΚΩΝΣΤΑΝΤΙΝΟΣ | K20: ΤΖΩΡΤΖΑΤΟΣ Κ | L20: =IF($I20>0,VLOOKUP($I20,ALMD!$C$3:$G$34,4,FALSE),"") -> ΑΟΑ ΠΑΤΡΩΝ | V20: 1 | W20: =IF((OR(V20=1,V20=2)),IF(V20=1,W12,W28),"") -> 34598 | X20: =IF((OR(V20=1,V20=2)),IF(V20=1,X12,X28),"") -> ΚΟΛΛΙΑΣ Σ
A21: 17 | B21: =VALUE(Setup!E7) -> 8 | D21: 6 | E21: 0 | F21: =IF(NOT($G21="-"),VLOOKUP($G21,ALMD!$A$3:$G$34,2,FALSE),"") -> 0 | G21: =VLOOKUP($B21,Setup!$K$2:$L$33,2,FALSE) -> 8 | H21: =IF($G21>0,VLOOKUP($G21,ALMD!$A$3:$G$34,7,FALSE),0) -> 31.5 | I21: =IF(Setup!$B$24="",0,IF($G21>0,VLOOKUP($G21,ALMD!$A$3:$G$34,3,FALSE),0)) -> 37444 | J21: =IF($I21>0,VLOOKUP($I21,ALMD!$C$3:$G$34,2,FALSE),"bye") -> ΝΙΚΟΛΑΟΥ ΑΓΓΕΛΟΣ | K21: ΝΙΚΟΛΑΟΥ Α | L21: =IF($I21>0,VLOOKUP($I21,ALMD!$C$3:$G$34,4,FALSE),"") -> ΑΟΑ ΠΑΤΡΩΝ | M21: 1 | N21: =IF((OR(M21=1,M21=2)),IF(M21=1,I21,I22),"") -> 37444 | O21: =IF((OR(M21=1,M21=2)),IF(M21=1,K21,K22),"") -> ΝΙΚΟΛΑΟΥ Α | X21: 64 46 64
A22: 18 | B22: =13-D22+8 -> 14 | C22: =B21 -> 8 | D22: 7 | E22: =IF($B$2>=C22,1,0) -> 1 | F22: =IF(NOT($G22="-"),VLOOKUP($G22,ALMD!$A$3:$G$34,2,FALSE),"") ->  | G22: =IF($B$2>=C22,"-",VLOOKUP($B22,Setup!$K$2:$L$33,2,FALSE)) -> - | H22: =IF(NOT($G22="-"),VLOOKUP($G22,ALMD!$A$3:$G$34,7,FALSE),0) -> 0 | I22: =IF(Setup!$B$24="",0,IF(NOT($G22="-"),VLOOKUP($G22,ALMD!$A$3:$G$34,3,FALSE),0)) -> 0 | J22: =IF($I22>0,VLOOKUP($I22,ALMD!$C$3:$G$34,2,FALSE),"bye") -> bye | L22: =IF($I22>0,VLOOKUP($I22,ALMD!$C$3:$G$34,4,FALSE),"") ->  | P22: 1 | Q22: =IF((OR(P22=1,P22=2)),IF(P22=1,N21,N23),"") -> 37444 | R22: =IF(OR(P22=1,P22=2),IF(OR(AND(O22="",I21>0,I22>0),AND(O24="",I23>0,I24>0)),"* αποτέλεσμα! *",IF(P22=1,O21,O23)),"") -> ΝΙΚΟΛΑΟΥ Α
A23: 19 | B23: =14-D23+8 -> 15 | D23: 7 | E23: 0 | F23: =IF(NOT($G23="-"),VLOOKUP($G23,ALMD!$A$3:$G$34,2,FALSE),"") -> 0 | G23: =VLOOKUP($B23,Setup!$K$2:$L$33,2,FALSE) -> 12 | H23: =IF($G23>0,VLOOKUP($G23,ALMD!$A$3:$G$34,7,FALSE),0) -> 17.5 | I23: =IF(Setup!$B$24="",0,IF($G23>0,VLOOKUP($G23,ALMD!$A$3:$G$34,3,FALSE),0)) -> 33991 | J23: =IF($I23>0,VLOOKUP($I23,ALMD!$C$3:$G$34,2,FALSE),"bye") -> ΛΑΜΠΡΟΠΟΥΛΟΣ ΜΙΧΑΗΛ | K23: ΛΑΜΠΡΟΠΟΥΛΟΣ Μ | L23: =IF($I23>0,VLOOKUP($I23,ALMD!$C$3:$G$34,4,FALSE),"") -> ΑΕΚ ΤΡΙΠΟΛΗΣ | M23: 1 | N23: =IF((OR(M23=1,M23=2)),IF(M23=1,I23,I24),"") -> 33991 | O23: =IF((OR(M23=1,M23=2)),IF(M23=1,K23,K24),"") -> ΛΑΜΠΡΟΠΟΥΛΟΣ Μ | R23: 40 40
A24: 20 | B24: =15-D24+8 -> 15 | C24: 12 | D24: 8 | E24: =IF($B$2>=C24,1,0) -> 1 | F24: =IF(NOT($G24="-"),VLOOKUP($G24,ALMD!$A$3:$G$34,2,FALSE),"") ->  | G24: =IF($B$2>=C24,"-",VLOOKUP($B24,Setup!$K$2:$L$33,2,FALSE)) -> - | H24: =IF(NOT($G24="-"),VLOOKUP($G24,ALMD!$A$3:$G$34,7,FALSE),0) -> 0 | I24: =IF(Setup!$B$24="",0,IF(NOT($G24="-"),VLOOKUP($G24,ALMD!$A$3:$G$34,3,FALSE),0)) -> 0 | J24: =IF($I24>0,VLOOKUP($I24,ALMD!$C$3:$G$34,2,FALSE),"bye") -> bye | L24: =IF($I24>0,VLOOKUP($I24,ALMD!$C$3:$G$34,4,FALSE),"") ->  | S24: 2 | T24: =IF((OR(S24=1,S24=2)),IF(S24=1,Q22,Q26),"") -> 36030 | U24: =IF(OR(S24=1,S24=2),IF(OR(AND(R23="",N21>0,N23>0),AND(R27="",N25>0,N27>0)),"* αποτέλεσμα! *",IF(S24=1,R22,R26)),"") -> ΤΟΥΝΤΑΣ Μ
A25: 21 | B25: =16-D25+8 -> 16 | D25: 8 | E25: 0 | F25: =IF(NOT($G25="-"),VLOOKUP($G25,ALMD!$A$3:$G$34,2,FALSE),"") -> 0 | G25: =VLOOKUP($B25,Setup!$K$2:$L$33,2,FALSE) -> 18 | H25: =IF($G25>0,VLOOKUP($G25,ALMD!$A$3:$G$34,7,FALSE),0) -> 6 | I25: =IF(Setup!$B$24="",0,IF($G25>0,VLOOKUP($G25,ALMD!$A$3:$G$34,3,FALSE),0)) -> 31630 | J25: =IF($I25>0,VLOOKUP($I25,ALMD!$C$3:$G$34,2,FALSE),"bye") -> ΓΙΑΝΝΑΚΟΠΟΥΛΟΣ ΔΗΜΗΤΡΙΟΣ | K25: ΓΙΑΝΝΑΚΟΠΟΥΛΟΣ Δ | L25: =IF($I25>0,VLOOKUP($I25,ALMD!$C$3:$G$34,4,FALSE),"") -> ΡΗΓΑΣ ΑΟΑ ΑΡΓΟΛΙΔΑΣ | M25: 1 | N25: =IF((OR(M25=1,M25=2)),IF(M25=1,I25,I26),"") -> 31630 | O25: =IF((OR(M25=1,M25=2)),IF(M25=1,K25,K26),"") -> ΓΙΑΝΝΑΚΟΠΟΥΛΟΣ Δ | U25: 42 41
A26: 22 | B26: =17-D26+8 -> 17 | C26: 14 | D26: 8 | E26: =IF($B$2>=C26,1,0) -> 0 | F26: =IF(NOT($G26="-"),VLOOKUP($G26,ALMD!$A$3:$G$34,2,FALSE),"") -> 0 | G26: =IF($B$2>=C26,"-",VLOOKUP($B26,Setup!$K$2:$L$33,2,FALSE)) -> 14 | H26: =IF(NOT($G26="-"),VLOOKUP($G26,ALMD!$A$3:$G$34,7,FALSE),0) -> 14.8 | I26: =IF(Setup!$B$24="",0,IF(NOT($G26="-"),VLOOKUP($G26,ALMD!$A$3:$G$34,3,FALSE),0)) -> 33992 | J26: =IF($I26>0,VLOOKUP($I26,ALMD!$C$3:$G$34,2,FALSE),"bye") -> ΛΑΜΠΡΟΠΟΥΛΟΣ ΑΓΓΕΛΟΣ | K26: ΛΑΜΠΡΟΠΟΥΛΟΣ Α | L26: =IF($I26>0,VLOOKUP($I26,ALMD!$C$3:$G$34,4,FALSE),"") -> ΑΕΚ ΤΡΙΠΟΛΗΣ | O26: 41 41 | P26: 2 | Q26: =IF((OR(P26=1,P26=2)),IF(P26=1,N25,N27),"") -> 36030 | R26: =IF(OR(P26=1,P26=2),IF(OR(AND(O26="",I25>0,I26>0),AND(O28="",I27>0,I28>0)),"* αποτέλεσμα! *",IF(P26=1,O25,O27)),"") -> ΤΟΥΝΤΑΣ Μ
A27: 23 | B27: =18-D27+8 -> 17 | C27: =B28 -> 4 | D27: 9 | E27: =IF($B$2>=C27,1,0) -> 1 | F27: =IF(NOT($G27="-"),VLOOKUP($G27,ALMD!$A$3:$G$34,2,FALSE),"") ->  | G27: =IF($B$2>=C27,"-",VLOOKUP($B27,Setup!$K$2:$L$33,2,FALSE)) -> - | H27: =IF(NOT($G27="-"),VLOOKUP($G27,ALMD!$A$3:$G$34,7,FALSE),0) -> 0 | I27: =IF(Setup!$B$24="",0,IF(NOT($G27="-"),VLOOKUP($G27,ALMD!$A$3:$G$34,3,FALSE),0)) -> 0 | J27: =IF($I27>0,VLOOKUP($I27,ALMD!$C$3:$G$34,2,FALSE),"bye") -> bye | L27: =IF($I27>0,VLOOKUP($I27,ALMD!$C$3:$G$34,4,FALSE),"") ->  | M27: 2 | N27: =IF((OR(M27=1,M27=2)),IF(M27=1,I27,I28),"") -> 36030 | O27: =IF((OR(M27=1,M27=2)),IF(M27=1,K27,K28),"") -> ΤΟΥΝΤΑΣ Μ | R27: 24 40 73
A28: 24 | B28: =VALUE(Setup!E3) -> 4 | D28: 9 | E28: 0 | F28: =IF(NOT($G28="-"),VLOOKUP($G28,ALMD!$A$3:$G$34,2,FALSE),"") -> 0 | G28: =VLOOKUP($B28,Setup!$K$2:$L$33,2,FALSE) -> 4 | H28: =IF($G28>0,VLOOKUP($G28,ALMD!$A$3:$G$34,7,FALSE),0) -> 39.5 | I28: =IF(Setup!$B$24="",0,IF($G28>0,VLOOKUP($G28,ALMD!$A$3:$G$34,3,FALSE),0)) -> 36030 | J28: =IF($I28>0,VLOOKUP($I28,ALMD!$C$3:$G$34,2,FALSE),"bye") -> ΤΟΥΝΤΑΣ ΜΑΡΙΟΣ | K28: ΤΟΥΝΤΑΣ Μ | L28: =IF($I28>0,VLOOKUP($I28,ALMD!$C$3:$G$34,4,FALSE),"") -> ΡΗΓΑΣ ΑΟΑ ΑΡΓΟΛΙΔΑΣ | V28: 1 | W28: =IF((OR(V28=1,V28=2)),IF(V28=1,T24,T32),"") -> 36030 | X28: =IF(OR(V28=1,V28=2),IF(OR(U25="",U33=""),"* αποτέλεσμα! *",IF(V28=1,U24,U32)),"") -> ΤΟΥΝΤΑΣ Μ
A29: 25 | B29: =VALUE(Setup!E8) -> 7 | D29: 9 | E29: 0 | F29: =IF(NOT($G29="-"),VLOOKUP($G29,ALMD!$A$3:$G$34,2,FALSE),"") -> 0 | G29: =VLOOKUP($B29,Setup!$K$2:$L$33,2,FALSE) -> 7 | H29: =IF($G29>0,VLOOKUP($G29,ALMD!$A$3:$G$34,7,FALSE),0) -> 33 | I29: =IF(Setup!$B$24="",0,IF($G29>0,VLOOKUP($G29,ALMD!$A$3:$G$34,3,FALSE),0)) -> 36853 | J29: =IF($I29>0,VLOOKUP($I29,ALMD!$C$3:$G$34,2,FALSE),"bye") -> ΜΑΛΕΒΙΤΗΣ ΓΡΗΓΟΡΗΣ | K29: ΜΑΛΕΒΙΤΗΣ Γ | L29: =IF($I29>0,VLOOKUP($I29,ALMD!$C$3:$G$34,4,FALSE),"") -> ΑΟΑ ΠΑΤΡΩΝ | M29: 1 | N29: =IF((OR(M29=1,M29=2)),IF(M29=1,I29,I30),"") -> 36853 | O29: =IF((OR(M29=1,M29=2)),IF(M29=1,K29,K30),"") -> ΜΑΛΕΒΙΤΗΣ Γ | X29: 64 61
A30: 26 | B30: =19-D30+8 -> 17 | C30: =B29 -> 7 | D30: 10 | E30: =IF($B$2>=C30,1,0) -> 1 | F30: =IF(NOT($G30="-"),VLOOKUP($G30,ALMD!$A$3:$G$34,2,FALSE),"") ->  | G30: =IF($B$2>=C30,"-",VLOOKUP($B30,Setup!$K$2:$L$33,2,FALSE)) -> - | H30: =IF(NOT($G30="-"),VLOOKUP($G30,ALMD!$A$3:$G$34,7,FALSE),0) -> 0 | I30: =IF(Setup!$B$24="",0,IF(NOT($G30="-"),VLOOKUP($G30,ALMD!$A$3:$G$34,3,FALSE),0)) -> 0 | J30: =IF($I30>0,VLOOKUP($I30,ALMD!$C$3:$G$34,2,FALSE),"bye") -> bye | L30: =IF($I30>0,VLOOKUP($I30,ALMD!$C$3:$G$34,4,FALSE),"") ->  | P30: 1 | Q30: =IF((OR(P30=1,P30=2)),IF(P30=1,N29,N31),"") -> 36853 | R30: =IF(OR(P30=1,P30=2),IF(OR(AND(O30="",I29>0,I30>0),AND(O32="",I31>0,I32>0)),"* αποτέλεσμα! *",IF(P30=1,O29,O31)),"") -> ΜΑΛΕΒΙΤΗΣ Γ
A31: 27 | B31: =20-D31+8 -> 18 | D31: 10 | E31: 0 | F31: =IF(NOT($G31="-"),VLOOKUP($G31,ALMD!$A$3:$G$34,2,FALSE),"") -> 0 | G31: =VLOOKUP($B31,Setup!$K$2:$L$33,2,FALSE) -> 19 | H31: =IF($G31>0,VLOOKUP($G31,ALMD!$A$3:$G$34,7,FALSE),0) -> 4.5 | I31: =IF(Setup!$B$24="",0,IF($G31>0,VLOOKUP($G31,ALMD!$A$3:$G$34,3,FALSE),0)) -> 36997 | J31: =IF($I31>0,VLOOKUP($I31,ALMD!$C$3:$G$34,2,FALSE),"bye") -> ΜΠΑΚΑΛΟΣ ΑΘΑΝΑΣΙΟΣ-ΕΦΡΑΙΜ | K31: ΜΠΑΚΑΛΟΣ Α | L31: =IF($I31>0,VLOOKUP($I31,ALMD!$C$3:$G$34,4,FALSE),"") -> ΟΑ ΚΟΡΙΝΘΟΥ | M31: 1 | N31: =IF((OR(M31=1,M31=2)),IF(M31=1,I31,I32),"") -> 36997 | O31: =IF((OR(M31=1,M31=2)),IF(M31=1,K31,K32),"") -> ΜΠΑΚΑΛΟΣ Α | R31: 40 40
A32: 28 | B32: =21-D32+8 -> 18 | C32: 10 | D32: 11 | E32: =IF($B$2>=C32,1,0) -> 1 | F32: =IF(NOT($G32="-"),VLOOKUP($G32,ALMD!$A$3:$G$34,2,FALSE),"") ->  | G32: =IF($B$2>=C32,"-",VLOOKUP($B32,Setup!$K$2:$L$33,2,FALSE)) -> - | H32: =IF(NOT($G32="-"),VLOOKUP($G32,ALMD!$A$3:$G$34,7,FALSE),0) -> 0 | I32: =IF(Setup!$B$24="",0,IF(NOT($G32="-"),VLOOKUP($G32,ALMD!$A$3:$G$34,3,FALSE),0)) -> 0 | J32: =IF($I32>0,VLOOKUP($I32,ALMD!$C$3:$G$34,2,FALSE),"bye") -> bye | L32: =IF($I32>0,VLOOKUP($I32,ALMD!$C$3:$G$34,4,FALSE),"") ->  | S32: 2 | T32: =IF((OR(S32=1,S32=2)),IF(S32=1,Q30,Q34),"") -> 36854 | U32: =IF(OR(S32=1,S32=2),IF(OR(AND(R31="",N29>0,N31>0),AND(R35="",N33>0,N35>0)),"* αποτέλεσμα! *",IF(S32=1,R30,R34)),"") -> ΚΥΡΙΑΚΟΠΟΥΛΟΣ Α
A33: 29 | B33: =22-D33+8 -> 19 | D33: 11 | E33: 0 | F33: =IF(NOT($G33="-"),VLOOKUP($G33,ALMD!$A$3:$G$34,2,FALSE),"") -> 0 | G33: =VLOOKUP($B33,Setup!$K$2:$L$33,2,FALSE) -> 10 | H33: =IF($G33>0,VLOOKUP($G33,ALMD!$A$3:$G$34,7,FALSE),0) -> 30 | I33: =IF(Setup!$B$24="",0,IF($G33>0,VLOOKUP($G33,ALMD!$A$3:$G$34,3,FALSE),0)) -> 31771 | J33: =IF($I33>0,VLOOKUP($I33,ALMD!$C$3:$G$34,2,FALSE),"bye") -> ΓΚΟΥΝΤΑΝΗΣ ΒΑΣΙΛΗΣ | K33: ΓΚΟΥΝΤΑΝΗΣ Β | L33: =IF($I33>0,VLOOKUP($I33,ALMD!$C$3:$G$34,4,FALSE),"") -> ΣΑ ΤΡΙΠΟΛΗΣ | M33: 1 | N33: =IF((OR(M33=1,M33=2)),IF(M33=1,I33,I34),"") -> 31771 | O33: =IF((OR(M33=1,M33=2)),IF(M33=1,K33,K34),"") -> ΓΚΟΥΝΤΑΝΗΣ Β | U33: 41 40
A34: 30 | B34: =23-D34+8 -> 20 | C34: 16 | D34: 11 | E34: =IF($B$2>=C34,1,0) -> 0 | F34: =IF(NOT($G34="-"),VLOOKUP($G34,ALMD!$A$3:$G$34,2,FALSE),"") -> 0 | G34: =IF($B$2>=C34,"-",VLOOKUP($B34,Setup!$K$2:$L$33,2,FALSE)) -> 20 | H34: =IF(NOT($G34="-"),VLOOKUP($G34,ALMD!$A$3:$G$34,7,FALSE),0) -> 3 | I34: =IF(Setup!$B$24="",0,IF(NOT($G34="-"),VLOOKUP($G34,ALMD!$A$3:$G$34,3,FALSE),0)) -> 38866 | J34: =IF($I34>0,VLOOKUP($I34,ALMD!$C$3:$G$34,2,FALSE),"bye") -> ΝΤΟΥΛΙΑΣ ΛΕΩΝΙΔΑΣ | K34: ΝΤΟΥΛΙΑΣ Λ | L34: =IF($I34>0,VLOOKUP($I34,ALMD!$C$3:$G$34,4,FALSE),"") -> ΡΗΓΑΣ ΑΟΑ ΑΡΓΟΛΙΔΑΣ | O34: 41 42 | P34: 2 | Q34: =IF((OR(P34=1,P34=2)),IF(P34=1,N33,N35),"") -> 36854 | R34: =IF(OR(P34=1,P34=2),IF(OR(AND(O34="",I33>0,I34>0),AND(O36="",I35>0,I36>0)),"* αποτέλεσμα! *",IF(P34=1,O33,O35)),"") -> ΚΥΡΙΑΚΟΠΟΥΛΟΣ Α
A35: 31 | B35: =24-D35+8 -> 20 | C35: =B36 -> 2 | D35: 12 | E35: =IF($B$2>=C35,1,0) -> 1 | F35: =IF(NOT($G35="-"),VLOOKUP($G35,ALMD!$A$3:$G$34,2,FALSE),"") ->  | G35: =IF($B$2>=C35,"-",VLOOKUP($B35,Setup!$K$2:$L$33,2,FALSE)) -> - | H35: =IF(NOT($G35="-"),VLOOKUP($G35,ALMD!$A$3:$G$34,7,FALSE),0) -> 0 | I35: =IF(Setup!$B$24="",0,IF(NOT($G35="-"),VLOOKUP($G35,ALMD!$A$3:$G$34,3,FALSE),0)) -> 0 | J35: =IF($I35>0,VLOOKUP($I35,ALMD!$C$3:$G$34,2,FALSE),"bye") -> bye | L35: =IF($I35>0,VLOOKUP($I35,ALMD!$C$3:$G$34,4,FALSE),"") ->  | M35: 2 | N35: =IF((OR(M35=1,M35=2)),IF(M35=1,I35,I36),"") -> 36854 | O35: =IF((OR(M35=1,M35=2)),IF(M35=1,K35,K36),"") -> ΚΥΡΙΑΚΟΠΟΥΛΟΣ Α | R35: 40 53
A36: 32 | B36: 2 | D36: 12 | E36: 0 | F36: =IF(NOT($G36="-"),VLOOKUP($G36,ALMD!$A$3:$G$34,2,FALSE),"") -> 0 | G36: =VLOOKUP($B36,Setup!$K$2:$L$33,2,FALSE) -> 2 | H36: =IF($G36>0,VLOOKUP($G36,ALMD!$A$3:$G$34,7,FALSE),0) -> 68 | I36: =IF(Setup!$B$24="",0,IF($G36>0,VLOOKUP($G36,ALMD!$A$3:$G$34,3,FALSE),0)) -> 36854 | J36: =IF($I36>0,VLOOKUP($I36,ALMD!$C$3:$G$34,2,FALSE),"bye") -> ΚΥΡΙΑΚΟΠΟΥΛΟΣ ΑΝΔΡΕΑΣ | K36: ΚΥΡΙΑΚΟΠΟΥΛΟΣ Α | L36: =IF($I36>0,VLOOKUP($I36,ALMD!$C$3:$G$34,4,FALSE),"") -> ΑΟΑ ΠΑΤΡΩΝ
J38: seeded players
J39: ="1. " & IF(Setup!B19>0,LEFT(ALMD!D3,FIND(" ",ALMD!D3)+1),"") -> 1. ΚΟΛΛΙΑΣ Σ | L39: ="5. " & IF(Setup!B19>4,LEFT(ALMD!D7,FIND(" ",ALMD!D7)+1),"") -> 5. ΤΖΩΡΤΖΑΤΟΣ Κ
J40: ="2. " & IF(Setup!B19>1,LEFT(ALMD!D4,FIND(" ",ALMD!D4)+1),"") -> 2. ΚΥΡΙΑΚΟΠΟΥΛΟΣ Α | L40: ="6. " & IF(Setup!B19>5,LEFT(ALMD!D8,FIND(" ",ALMD!D8)+1),"") -> 6. ΚΑΡΑΝΑΓΝΩΣΤΗΣ Κ | U40: επιδιαιτητής
J41: ="3. " & IF(Setup!B19>2,LEFT(ALMD!D5,FIND(" ",ALMD!D5)+1),"") -> 3. ΛΟΥΚΑ Ν | L41: ="7. " & IF(Setup!B19>6,LEFT(ALMD!D9,FIND(" ",ALMD!D9)+1),"") -> 7. ΜΑΛΕΒΙΤΗΣ Γ | U41: =IF(Setup!$B$11>" ",Setup!$B$11,"ΧΩΡΙΣ ΑΔΕΙΑ ΧΡΗΣΗΣ") -> ΚΑΛΟΓΡΗ Σ
J42: ="4. " & IF(Setup!B19>3,LEFT(ALMD!D6,FIND(" ",ALMD!D6)+1),"") -> 4. ΤΟΥΝΤΑΣ Μ | L42: ="8. " & IF(Setup!B19>7,LEFT(ALMD!D10,FIND(" ",ALMD!D10)+1),"") -> 8. ΝΙΚΟΛΑΟΥ Α
J58: BoldPlayers
J59: =IF(Setup!$B$19>0,LEFT(ALMD!D3,FIND(" ",ALMD!D3)+1)) -> ΚΟΛΛΙΑΣ Σ
J60: =IF(Setup!$B$19>1,LEFT(ALMD!D4,FIND(" ",ALMD!D4)+1)) -> ΚΥΡΙΑΚΟΠΟΥΛΟΣ Α
J61: =IF(Setup!$B$19>2,LEFT(ALMD!D5,FIND(" ",ALMD!D5)+1)) -> ΛΟΥΚΑ Ν
J62: =IF(Setup!$B$19>3,LEFT(ALMD!D6,FIND(" ",ALMD!D6)+1)) -> ΤΟΥΝΤΑΣ Μ
J63: =IF(Setup!$B$19>4,LEFT(ALMD!D7,FIND(" ",ALMD!D7)+1)) -> ΤΖΩΡΤΖΑΤΟΣ Κ
J64: =IF(Setup!$B$19>5,LEFT(ALMD!D8,FIND(" ",ALMD!D8)+1)) -> ΚΑΡΑΝΑΓΝΩΣΤΗΣ Κ
J65: =IF(Setup!$B$19>6,LEFT(ALMD!D9,FIND(" ",ALMD!D9)+1)) -> ΜΑΛΕΒΙΤΗΣ Γ
J66: =IF(Setup!$B$19>7,LEFT(ALMD!D10,FIND(" ",ALMD!D10)+1)) -> ΝΙΚΟΛΑΟΥ Α

Sheet OoP
A1: ΣΤ' ΕΝΩΣΗ, Ε3 19η, ΣΑ ΤΡΙΠΟΛΗΣ, 12/5-13/5 (Α14)
A2: ΚΑΛΟΓΡΗ Σ
C3: Πρόγραμμα αγώνων
C5: Round 32 | F5: info
A6: ΩΡΑ | B6: Κτγρ. | C6: Αθλητής-Σύλλογος | E6: Αθλητής-Σύλλογος
A7: Έναρξη | B7: Α14 R32 | C7: ΚΟΛΛΙΑΣ Σ (ΡΗΓΑΣ ΑΟΑ ΑΡ)
B8: Α14 R32 | C8: ΤΖΟΥΤΖΟΠΟΥΛΟΣ Θ (ΟΑ ΚΟΡΙΝΘΟΥ) | D8: - | E8: ΚΑΜΠΑΝΟΣ Ε (ΚΕΦΑΛΛΗΝΙΑΚΟ)
B9: Α14 R32 | C9: ΜΟΥΡΙΚΗΣ Κ (ΑΟ ΑΙΓΙΟΥ ΜΟ)
B10: Α14 R32 | E10: ΚΑΡΑΝΑΓΝΩΣΤΗΣ Κ (ΑΕΚ ΤΡΙΠΟΛΗΣ)
A11: όχι πριν | B11: Α14 R32 | C11: ΛΟΥΚΑ Ν (ΑΟΑ ΠΑΤΡΩΝ)
B12: Α14 R32 | C12: ΠΑΠΑΝΙΚΟΛΑΟΥ Ε (ΑΕΚ ΤΡΙΠΟΛΗΣ) | D12: - | E12: ΓΡΑΜΜΑΤΙΚΟΣ Μ (ΡΗΓΑΣ ΑΟΑ ΑΡ)
B13: Α14 R32 | C13: ΑΔΑΜΟΠΟΥΛΟΣ Ι (ΑΟ ΑΙΓΙΟΥ ΜΟ)
B14: Α14 R32 | E14: ΤΖΩΡΤΖΑΤΟΣ Κ (ΑΟΑ ΠΑΤΡΩΝ)
A15: όχι πριν | B15: Α14 R32 | C15: ΝΙΚΟΛΑΟΥ Α (ΑΟΑ ΠΑΤΡΩΝ)
B16: Α14 R32 | C16: ΛΑΜΠΡΟΠΟΥΛΟΣ Μ (ΑΕΚ ΤΡΙΠΟΛΗΣ)
B17: Α14 R32 | C17: ΓΙΑΝΝΑΚΟΠΟΥΛΟΣ Δ (ΡΗΓΑΣ ΑΟΑ ΑΡ) | D17: - | E17: ΛΑΜΠΡΟΠΟΥΛΟΣ Α (ΑΕΚ ΤΡΙΠΟΛΗΣ)
B18: Α14 R32 | E18: ΤΟΥΝΤΑΣ Μ (ΡΗΓΑΣ ΑΟΑ ΑΡ)
A19: όχι πριν | B19: Α14 R32 | C19: ΜΑΛΕΒΙΤΗΣ Γ (ΑΟΑ ΠΑΤΡΩΝ)
B20: Α14 R32 | C20: ΜΠΑΚΑΛΟΣ Α (ΟΑ ΚΟΡΙΝΘΟΥ)
B21: Α14 R32 | C21: ΓΚΟΥΝΤΑΝΗΣ Β (ΣΑ ΤΡΙΠΟΛΗΣ) | D21: - | E21: ΝΤΟΥΛΙΑΣ Λ (ΡΗΓΑΣ ΑΟΑ ΑΡ)
B22: Α14 R32 | E22: ΚΥΡΙΑΚΟΠΟΥΛΟΣ Α (ΑΟΑ ΠΑΤΡΩΝ)
C24: Round 16 | F24: info
A25: ΩΡΑ | B25: Κτγρ. | C25: Αθλητής-Σύλλογος | E25: Αθλητής-Σύλλογος
A26: Έναρξη | B26: Α14 R16 | C26: ΚΟΛΛΙΑΣ Σ (ΡΗΓΑΣ ΑΟΑ ΑΡ) | D26: - | E26: ΤΖΟΥΤΖΟΠΟΥΛΟΣ Θ (ΟΑ ΚΟΡΙΝΘΟΥ)
B27: Α14 R16 | C27: ΜΟΥΡΙΚΗΣ Κ (ΑΟ ΑΙΓΙΟΥ ΜΟ) | D27: - | E27: ΚΑΡΑΝΑΓΝΩΣΤΗΣ Κ (ΑΕΚ ΤΡΙΠΟΛΗΣ)
B28: Α14 R16 | C28: ΛΟΥΚΑ Ν (ΑΟΑ ΠΑΤΡΩΝ) | D28: - | E28: ΠΑΠΑΝΙΚΟΛΑΟΥ Ε (ΑΕΚ ΤΡΙΠΟΛΗΣ)
B29: Α14 R16 | C29: ΑΔΑΜΟΠΟΥΛΟΣ Ι (ΑΟ ΑΙΓΙΟΥ ΜΟ) | D29: - | E29: ΤΖΩΡΤΖΑΤΟΣ Κ (ΑΟΑ ΠΑΤΡΩΝ)
A30: όχι πριν | B30: Α14 R16 | C30: ΝΙΚΟΛΑΟΥ Α (ΑΟΑ ΠΑΤΡΩΝ) | D30: - | E30: ΛΑΜΠΡΟΠΟΥΛΟΣ Μ (ΑΕΚ ΤΡΙΠΟΛΗΣ)
B31: Α14 R16 | C31: ΓΙΑΝΝΑΚΟΠΟΥΛΟΣ Δ (ΡΗΓΑΣ ΑΟΑ ΑΡ) | D31: - | E31: ΤΟΥΝΤΑΣ Μ (ΡΗΓΑΣ ΑΟΑ ΑΡ)
B32: Α14 R16 | C32: ΜΑΛΕΒΙΤΗΣ Γ (ΑΟΑ ΠΑΤΡΩΝ) | D32: - | E32: ΜΠΑΚΑΛΟΣ Α (ΟΑ ΚΟΡΙΝΘΟΥ)
B33: Α14 R16 | C33: ΓΚΟΥΝΤΑΝΗΣ Β (ΣΑ ΤΡΙΠΟΛΗΣ) | D33: - | E33: ΚΥΡΙΑΚΟΠΟΥΛΟΣ Α (ΑΟΑ ΠΑΤΡΩΝ)
C35: Round 8 | F35: info
A36: ΩΡΑ | B36: Κτγρ. | C36: Αθλητής-Σύλλογος | E36: Αθλητής-Σύλλογος
A37: Έναρξη | B37: Α14 R8 | C37: ΚΟΛΛΙΑΣ Σ (ΡΗΓΑΣ ΑΟΑ ΑΡ) | E37: ΚΑΡΑΝΑΓΝΩΣΤΗΣ Κ (ΑΕΚ ΤΡΙΠΟΛΗΣ)
B38: Α14 R8 | C38: ΠΑΠΑΝΙΚΟΛΑΟΥ Ε (ΑΕΚ ΤΡΙΠΟΛΗΣ) | E38: ΤΖΩΡΤΖΑΤΟΣ Κ (ΑΟΑ ΠΑΤΡΩΝ)
B39: Α14 R8 | C39: ΝΙΚΟΛΑΟΥ Α (ΑΟΑ ΠΑΤΡΩΝ) | E39: ΤΟΥΝΤΑΣ Μ (ΡΗΓΑΣ ΑΟΑ ΑΡ)
B40: Α14 R8 | C40: ΜΑΛΕΒΙΤΗΣ Γ (ΑΟΑ ΠΑΤΡΩΝ) | E40: ΚΥΡΙΑΚΟΠΟΥΛΟΣ Α (ΑΟΑ ΠΑΤΡΩΝ)
C42: Ημιτελικοί | F42: info
A43: ΩΡΑ | B43: Κτγρ. | C43: Αθλητής-Σύλλογος | E43: Αθλητής-Σύλλογος
A44: Έναρξη | B44: Α14 Ημιτελ | C44: ΚΟΛΛΙΑΣ Σ (ΡΗΓΑΣ ΑΟΑ ΑΡ) | E44: ΤΖΩΡΤΖΑΤΟΣ Κ (ΑΟΑ ΠΑΤΡΩΝ)
B45: Α14 Ημιτελ | C45: ΤΟΥΝΤΑΣ Μ (ΡΗΓΑΣ ΑΟΑ ΑΡ) | E45: ΚΥΡΙΑΚΟΠΟΥΛΟΣ Α (ΑΟΑ ΠΑΤΡΩΝ)
C47: Τελικός | F47: info
A48: ΩΡΑ | B48: Κτγρ. | C48: Αθλητής-Σύλλογος | E48: Αθλητής-Σύλλογος
A49: Έναρξη | B49: Α14 Τελ | C49: ΚΟΛΛΙΑΣ Σ (ΡΗΓΑΣ ΑΟΑ ΑΡ) | E49: ΤΟΥΝΤΑΣ Μ (ΡΗΓΑΣ ΑΟΑ ΑΡ)

Sheet ALMD
A1: =Setup!$B$3&", "&Setup!$B$7&", "&Setup!$B$4&", "&DAY(Setup!$B$8)&"/"&MONTH(Setup!$B$8)&"-"&DAY(Setup!$B$9)&"/"&MONTH(Setup!$B$9)&"/"&YEAR(Setup!$B$9) -> ΣΤ' ΕΝΩΣΗ, Ε3 19η, ΣΑ ΤΡΙΠΟΛΗΣ, 12/5-13/5/2018 | H1: =Setup!B6&" /md" -> Α14 /md | I1: =Setup!B6&" /md" -> Α14 /md
A2: α/α | B2: από | C2: Α.Μ. | D2: Ονοματεπώνυμο | E2: Γέννηση | F2: Σύλλογος | G2: βαθμοί | H2: Τηλέφωνο | I2: Υπογραφή | J2: SortPts | K2: Rnd
A3: 1 | C3: 34598 | D3: ΚΟΛΛΙΑΣ ΣΤΑΥΡΟΣ | E3: 2004-03-02 | F3: ΡΗΓΑΣ ΑΟΑ ΑΡΓΟΛΙΔΑΣ | G3: 122 | J3: =IF(D3>" ",G3+K3,0) -> 122.0034837 | K3: 0.003483748267 | L3: =TRIM(IF(LEN(D3)<2,"",LEFT(D3,MIN(20,FIND(" ",D3)-1))&MID(D3,FIND(" ",D3),2)&" ("&LEFT(F3,12)&")")) -> ΚΟΛΛΙΑΣ Σ (ΡΗΓΑΣ ΑΟΑ ΑΡ)
A4: 2 | C4: 36854 | D4: ΚΥΡΙΑΚΟΠΟΥΛΟΣ ΑΝΔΡΕΑΣ | E4: 2005-05-23 | F4: ΑΟΑ ΠΑΤΡΩΝ | G4: 68 | J4: 68.00387607 | K4: 0.003876067296 | L4: =TRIM(IF(LEN(D4)<2,"",LEFT(D4,MIN(20,FIND(" ",D4)-1))&MID(D4,FIND(" ",D4),2)&" ("&LEFT(F4,12)&")")) -> ΚΥΡΙΑΚΟΠΟΥΛΟΣ Α (ΑΟΑ ΠΑΤΡΩΝ)
A5: 3 | C5: 37036 | D5: ΛΟΥΚΑ ΝΙΚΟΛΑΟΣ | E5: 2005-03-17 | F5: ΑΟΑ ΠΑΤΡΩΝ | G5: 47 | J5: 47.0033274 | K5: 0.003327403833 | L5: ΛΟΥΚΑ Ν (ΑΟΑ ΠΑΤΡΩΝ)
A6: 4 | C6: 36030 | D6: ΤΟΥΝΤΑΣ ΜΑΡΙΟΣ | E6: 2005-06-04 | F6: ΡΗΓΑΣ ΑΟΑ ΑΡΓΟΛΙΔΑΣ | G6: 39.5 | J6: 39.50220405 | K6: 0.002204047994 | L6: ΤΟΥΝΤΑΣ Μ (ΡΗΓΑΣ ΑΟΑ ΑΡ)
A7: 5 | C7: 36852 | D7: ΤΖΩΡΤΖΑΤΟΣ ΚΩΝΣΤΑΝΤΙΝΟΣ | E7: 2006-05-11 | F7: ΑΟΑ ΠΑΤΡΩΝ | G7: 36 | J7: 36.0023057 | K7: 0.002305696435 | L7: ΤΖΩΡΤΖΑΤΟΣ Κ (ΑΟΑ ΠΑΤΡΩΝ)
A8: 6 | C8: 30151 | D8: ΚΑΡΑΝΑΓΝΩΣΤΗΣ ΚΩΝΣΤΑΝΤΙΝΟΣ | E8: 2004-06-11 | F8: ΑΕΚ ΤΡΙΠΟΛΗΣ | G8: 34 | J8: 34.00449999 | K8: 0.004499988295 | L8: ΚΑΡΑΝΑΓΝΩΣΤΗΣ Κ (ΑΕΚ ΤΡΙΠΟΛΗΣ)
A9: 7 | C9: 36853 | D9: ΜΑΛΕΒΙΤΗΣ ΓΡΗΓΟΡΗΣ | E9: 2006-05-07 | F9: ΑΟΑ ΠΑΤΡΩΝ | G9: 33 | J9: 33.0018361 | K9: 0.001836100803 | L9: ΜΑΛΕΒΙΤΗΣ Γ (ΑΟΑ ΠΑΤΡΩΝ)
A10: 8 | C10: 37444 | D10: ΝΙΚΟΛΑΟΥ ΑΓΓΕΛΟΣ | E10: 2005-05-20 | F10: ΑΟΑ ΠΑΤΡΩΝ | G10: 31.5 | J10: 31.50292616 | K10: 0.002926164733 | L10: ΝΙΚΟΛΑΟΥ Α (ΑΟΑ ΠΑΤΡΩΝ)
A11: 9 | C11: 33450 | D11: ΚΑΜΠΑΝΟΣ ΕΛΕΥΘΕΡΙΟΣ | E11: 2005-10-18 | F11: ΚΕΦΑΛΛΗΝΙΑΚΟΣ ΟΑ | G11: 31 | J11: 31.00361479 | K11: 0.003614794583 | L11: ΚΑΜΠΑΝΟΣ Ε (ΚΕΦΑΛΛΗΝΙΑΚΟ)
A12: 10 | C12: 31771 | D12: ΓΚΟΥΝΤΑΝΗΣ ΒΑΣΙΛΗΣ | E12: 2005-03-11 | F12: ΣΑ ΤΡΙΠΟΛΗΣ | G12: 30 | J12: 30.00434521 | K12: 0.004345208157 | L12: ΓΚΟΥΝΤΑΝΗΣ Β (ΣΑ ΤΡΙΠΟΛΗΣ)
A13: 11 | C13: 39823 | D13: ΠΑΠΑΝΙΚΟΛΑΟΥ ΕΚΤΟΡΑΣ | E13: 2004-07-05 | F13: ΑΕΚ ΤΡΙΠΟΛΗΣ | G13: 26.6 | J13: 26.60000543 | K13: 5.430313392e-06 | L13: ΠΑΠΑΝΙΚΟΛΑΟΥ Ε (ΑΕΚ ΤΡΙΠΟΛΗΣ)
A14: 12 | C14: 33991 | D14: ΛΑΜΠΡΟΠΟΥΛΟΣ ΜΙΧΑΗΛ | E14: 2006-02-20 | F14: ΑΕΚ ΤΡΙΠΟΛΗΣ | G14: 17.5 | J14: 17.50334271 | K14: 0.003342707861 | L14: ΛΑΜΠΡΟΠΟΥΛΟΣ Μ (ΑΕΚ ΤΡΙΠΟΛΗΣ)
A15: 13 | C15: 34817 | D15: ΤΖΟΥΤΖΟΠΟΥΛΟΣ ΘΕΜΙΣΤΟΚΛΗΣ | E15: 2005-04-13 | F15: ΟΑ ΚΟΡΙΝΘΟΥ | G15: 14.9 | J15: 14.90315842 | K15: 0.003158422128 | L15: ΤΖΟΥΤΖΟΠΟΥΛΟΣ Θ (ΟΑ ΚΟΡΙΝΘΟΥ)
A16: 14 | C16: 33992 | D16: ΛΑΜΠΡΟΠΟΥΛΟΣ ΑΓΓΕΛΟΣ | E16: 2006-02-20 | F16: ΑΕΚ ΤΡΙΠΟΛΗΣ | G16: 14.8 | J16: 14.8040668 | K16: 0.004066803792 | L16: ΛΑΜΠΡΟΠΟΥΛΟΣ Α (ΑΕΚ ΤΡΙΠΟΛΗΣ)
A17: 15 | C17: 37284 | D17: ΑΔΑΜΟΠΟΥΛΟΣ ΙΩΑΝΝΗΣ | E17: 2005-11-08 | F17: ΑΟ ΑΙΓΙΟΥ ΜΟΡΕΑΣ | G17: 10 | J17: 10.00038068 | K17: 0.0003806833286 | L17: ΑΔΑΜΟΠΟΥΛΟΣ Ι (ΑΟ ΑΙΓΙΟΥ ΜΟ)
A18: 16 | C18: 32578 | D18: ΜΟΥΡΙΚΗΣ ΚΩΝΣΤΑΝΤΙΝΟΣ | E18: 2005-02-22 | F18: ΑΟ ΑΙΓΙΟΥ ΜΟΡΕΑΣ | G18: 7.5 | J18: 7.503073023 | K18: 0.003073022772 | L18: ΜΟΥΡΙΚΗΣ Κ (ΑΟ ΑΙΓΙΟΥ ΜΟ)
A19: 17 | C19: 39014 | D19: ΓΡΑΜΜΑΤΙΚΟΣ ΜΙΛΤΙΑΔΗΣ-ΠΑΝΑΓΙΩΤΗΣ | E19: 2005-10-01 | F19: ΡΗΓΑΣ ΑΟΑ ΑΡΓΟΛΙΔΑΣ | G19: 7.5 | J19: 7.502747894 | K19: 0.002747894107 | L19: ΓΡΑΜΜΑΤΙΚΟΣ Μ (ΡΗΓΑΣ ΑΟΑ ΑΡ)
A20: 18 | C20: 31630 | D20: ΓΙΑΝΝΑΚΟΠΟΥΛΟΣ ΔΗΜΗΤΡΙΟΣ | E20: 2004-01-24 | F20: ΡΗΓΑΣ ΑΟΑ ΑΡΓΟΛΙΔΑΣ | G20: 6 | J20: 6.001758706 | K20: 0.001758705621 | L20: ΓΙΑΝΝΑΚΟΠΟΥΛΟΣ Δ (ΡΗΓΑΣ ΑΟΑ ΑΡ)
A21: 19 | C21: 36997 | D21: ΜΠΑΚΑΛΟΣ ΑΘΑΝΑΣΙΟΣ-ΕΦΡΑΙΜ | E21: 2004-11-04 | F21: ΟΑ ΚΟΡΙΝΘΟΥ | G21: 4.5 | J21: 4.502860297 | K21: 0.002860297102 | L21: ΜΠΑΚΑΛΟΣ Α (ΟΑ ΚΟΡΙΝΘΟΥ)
A22: 20 | C22: 38866 | D22: ΝΤΟΥΛΙΑΣ ΛΕΩΝΙΔΑΣ | E22: 2005-10-07 | F22: ΡΗΓΑΣ ΑΟΑ ΑΡΓΟΛΙΔΑΣ | G22: 3 | J22: 3.002533017 | K22: 0.002533016574 | L22: ΝΤΟΥΛΙΑΣ Λ (ΡΗΓΑΣ ΑΟΑ ΑΡ)
A23: 21 | J23: 0 | K23: 0.004160575919
A24: 22 | J24: 0 | K24: 0.003730136405
A25: 23 | J25: 0 | K25: 0.003301847332
A26: 24 | J26: 0 | K26: 0.003973918849
A27: 25 | J27: 0 | K27: 0.003972555082
A28: 26 | J28: 0 | K28: 0.00349938577
A29: 27 | J29: 0 | K29: 0.00132760726
A30: 28 | J30: 0 | K30: 0.0001987279422
A31: 29 | J31: 0 | K31: 0.0005264252175
A32: 30 | J32: 0 | K32: 0.0002812294248
A33: 31 | J33: 0 | K33: 5.396419609e-05
A34: 32 | J34: 0 | K34: 0.001415728171
H36: επιδιαιτητής:
H37: =Setup!$B$11 -> ΚΑΛΟΓΡΗ Σ
B38: Walk over
B39: α/α | C39: Α.Μ. | D39: Ονοματεπώνυμο | E39: med
B40: 1 | C40: 37037 | D40: ΓΟΥΒΕΛΗΣ ΔΙΟΝΥΣΗΣ | E40: Ναι
B41: 2 | C41: 35908 | D41: ΜΠΑΜΠΗΣ ΠΑΝΑΓΙΩΤΗΣ | E41: Όχι
B42: 3 | C42: 34258 | D42: ΠΑΠΑΔΟΠΟΥΛΟΣ ΒΛΑΣΗΣ | E42: Ναι
B43: 4 | C43: 37434 | D43: ΚΑΤΑΠΟΔΗΣ ΓΕΩΡΓΙΟΣ | E43: Ναι
B44: 5 | C44: 29322 | D44: ΑΝΑΣΤΟΠΟΥΛΟΣ ΠΑΝΑΓΙΩΤΗΣ | E44: Ναι
B45: 6 | C45: 39979 | D45: ΣΠΥΡΟΠΟΥΛΟΣ ΠΑΝΑΓΙΩΤΗΣ | E45: Όχι

Sheet PrepOP (hidden)
A1: =Setup!$B$3&", "&Setup!$B$7&", "&Setup!$B$4&", "&DAY(Setup!$B$8)&"/"&MONTH(Setup!$B$8)&"-"&DAY(Setup!$B$9)&"/"&MONTH(Setup!$B$9)& " (" & Setup!B6 & ")" -> ΣΤ' ΕΝΩΣΗ, Ε3 19η, ΣΑ ΤΡΙΠΟΛΗΣ, 12/5-13/5 (Α14)
A2: =Setup!$B$11 -> ΚΑΛΟΓΡΗ Σ
C3: Πρόγραμμα αγώνων
C5: Round 32 | F5: info
A6: ΩΡΑ | B6: Κτγρ. | C6: Αθλητής-Σύλλογος | E6: Αθλητής-Σύλλογος
A7: Έναρξη | B7: =Setup!$B$6&" R32" -> Α14 R32 | C7: =IF(LEN(MD!I5)<2,"",VLOOKUP(MD!I5,ALMD!$C:$L,10,FALSE)) -> ΚΟΛΛΙΑΣ Σ (ΡΗΓΑΣ ΑΟΑ ΑΡ) | D7: =IF(OR(C7="",E7="")," ","-") ->  | E7: =IF(LEN(MD!I6)<2, "",VLOOKUP(MD!I6,ALMD!$C:$L,10,FALSE)) -> 
B8: =Setup!$B$6&" R32" -> Α14 R32 | C8: =IF(LEN(MD!I7)<2,"",VLOOKUP(MD!I7,ALMD!$C:$L,10,FALSE)) -> ΤΖΟΥΤΖΟΠΟΥΛΟΣ Θ (ΟΑ ΚΟΡΙΝΘΟΥ) | D8: =IF(OR(C8="",E8="")," ","-") -> - | E8: =IF(LEN(MD!I8)<2, "",VLOOKUP(MD!I8,ALMD!$C:$L,10,FALSE)) -> ΚΑΜΠΑΝΟΣ Ε (ΚΕΦΑΛΛΗΝΙΑΚΟ)
B9: =Setup!$B$6&" R32" -> Α14 R32 | C9: =IF(LEN(MD!I9)<2,"",VLOOKUP(MD!I9,ALMD!$C:$L,10,FALSE)) -> ΜΟΥΡΙΚΗΣ Κ (ΑΟ ΑΙΓΙΟΥ ΜΟ) | E9: =IF(LEN(MD!I10)<2,"",VLOOKUP(MD!I10,ALMD!$C:$L,10,FALSE)) -> 
B10: =Setup!$B$6&" R32" -> Α14 R32 | C10: =IF(LEN(MD!I11)<2,"",VLOOKUP(MD!I11,ALMD!$C:$L,10,FALSE)) ->  | E10: =IF(LEN(MD!I12)<2,"",VLOOKUP(MD!I12,ALMD!$C:$L,10,FALSE)) -> ΚΑΡΑΝΑΓΝΩΣΤΗΣ Κ (ΑΕΚ ΤΡΙΠΟΛΗΣ)
A11: όχι πριν | B11: =Setup!$B$6&" R32" -> Α14 R32 | C11: =IF(LEN(MD!I13)<2,"",VLOOKUP(MD!I13,ALMD!$C:$L,10,FALSE)) -> ΛΟΥΚΑ Ν (ΑΟΑ ΠΑΤΡΩΝ) | E11: =IF(LEN(MD!I14)<2,"",VLOOKUP(MD!I14,ALMD!$C:$L,10,FALSE)) -> 
B12: =Setup!$B$6&" R32" -> Α14 R32 | C12: =IF(LEN(MD!I15)<2,"",VLOOKUP(MD!I15,ALMD!$C:$L,10,FALSE)) -> ΠΑΠΑΝΙΚΟΛΑΟΥ Ε (ΑΕΚ ΤΡΙΠΟΛΗΣ) | D12: - | E12: =IF(LEN(MD!I16)<2,"",VLOOKUP(MD!I16,ALMD!$C:$L,10,FALSE)) -> ΓΡΑΜΜΑΤΙΚΟΣ Μ (ΡΗΓΑΣ ΑΟΑ ΑΡ)
B13: =Setup!$B$6&" R32" -> Α14 R32 | C13: =IF(LEN(MD!I17)<2,"",VLOOKUP(MD!I17,ALMD!$C:$L,10,FALSE)) -> ΑΔΑΜΟΠΟΥΛΟΣ Ι (ΑΟ ΑΙΓΙΟΥ ΜΟ) | E13: =IF(LEN(MD!I18)<2,"",VLOOKUP(MD!I18,ALMD!$C:$L,10,FALSE)) -> 
B14: =Setup!$B$6&" R32" -> Α14 R32 | C14: =IF(LEN(MD!I19)<2,"",VLOOKUP(MD!I19,ALMD!$C:$L,10,FALSE)) ->  | E14: =IF(LEN(MD!I20)<2,"",VLOOKUP(MD!I20,ALMD!$C:$L,10,FALSE)) -> ΤΖΩΡΤΖΑΤΟΣ Κ (ΑΟΑ ΠΑΤΡΩΝ)
A15: όχι πριν | B15: =Setup!$B$6&" R32" -> Α14 R32 | C15: =IF(LEN(MD!I21)<2,"",VLOOKUP(MD!I21,ALMD!$C:$L,10,FALSE)) -> ΝΙΚΟΛΑΟΥ Α (ΑΟΑ ΠΑΤΡΩΝ) | E15: =IF(LEN(MD!I22)<2,"",VLOOKUP(MD!I22,ALMD!$C:$L,10,FALSE)) -> 
B16: =Setup!$B$6&" R32" -> Α14 R32 | C16: =IF(LEN(MD!I23)<2,"",VLOOKUP(MD!I23,ALMD!$C:$L,10,FALSE)) -> ΛΑΜΠΡΟΠΟΥΛΟΣ Μ (ΑΕΚ ΤΡΙΠΟΛΗΣ) | E16: =IF(LEN(MD!I24)<2,"",VLOOKUP(MD!I24,ALMD!$C:$L,10,FALSE)) -> 
B17: =Setup!$B$6&" R32" -> Α14 R32 | C17: =IF(LEN(MD!I25)<2,"",VLOOKUP(MD!I25,ALMD!$C:$L,10,FALSE)) -> ΓΙΑΝΝΑΚΟΠΟΥΛΟΣ Δ (ΡΗΓΑΣ ΑΟΑ ΑΡ) | D17: - | E17: =IF(LEN(MD!I26)<2,"",VLOOKUP(MD!I26,ALMD!$C:$L,10,FALSE)) -> ΛΑΜΠΡΟΠΟΥΛΟΣ Α (ΑΕΚ ΤΡΙΠΟΛΗΣ)
B18: =Setup!$B$6&" R32" -> Α14 R32 | C18: =IF(LEN(MD!I27)<2,"",VLOOKUP(MD!I27,ALMD!$C:$L,10,FALSE)) ->  | E18: =IF(LEN(MD!I28)<2,"",VLOOKUP(MD!I28,ALMD!$C:$L,10,FALSE)) -> ΤΟΥΝΤΑΣ Μ (ΡΗΓΑΣ ΑΟΑ ΑΡ)
A19: όχι πριν | B19: =Setup!$B$6&" R32" -> Α14 R32 | C19: =IF(LEN(MD!I29)<2,"",VLOOKUP(MD!I29,ALMD!$C:$L,10,FALSE)) -> ΜΑΛΕΒΙΤΗΣ Γ (ΑΟΑ ΠΑΤΡΩΝ) | E19: =IF(LEN(MD!I30)<2,"",VLOOKUP(MD!I30,ALMD!$C:$L,10,FALSE)) -> 
B20: =Setup!$B$6&" R32" -> Α14 R32 | C20: =IF(LEN(MD!I31)<2,"",VLOOKUP(MD!I31,ALMD!$C:$L,10,FALSE)) -> ΜΠΑΚΑΛΟΣ Α (ΟΑ ΚΟΡΙΝΘΟΥ) | E20: =IF(LEN(MD!I32)<2,"",VLOOKUP(MD!I32,ALMD!$C:$L,10,FALSE)) -> 
B21: =Setup!$B$6&" R32" -> Α14 R32 | C21: =IF(LEN(MD!I33)<2,"",VLOOKUP(MD!I33,ALMD!$C:$L,10,FALSE)) -> ΓΚΟΥΝΤΑΝΗΣ Β (ΣΑ ΤΡΙΠΟΛΗΣ) | D21: - | E21: =IF(LEN(MD!I34)<2,"",VLOOKUP(MD!I34,ALMD!$C:$L,10,FALSE)) -> ΝΤΟΥΛΙΑΣ Λ (ΡΗΓΑΣ ΑΟΑ ΑΡ)
B22: =Setup!$B$6&" R32" -> Α14 R32 | C22: =IF(LEN(MD!I35)<2,"",VLOOKUP(MD!I35,ALMD!$C:$L,10,FALSE)) ->  | E22: =IF(LEN(MD!I36)<2,"",VLOOKUP(MD!I36,ALMD!$C:$L,10,FALSE)) -> ΚΥΡΙΑΚΟΠΟΥΛΟΣ Α (ΑΟΑ ΠΑΤΡΩΝ)
C24: Round 16 | F24: info
A25: ΩΡΑ | B25: Κτγρ. | C25: Αθλητής-Σύλλογος | E25: Αθλητής-Σύλλογος
A26: Έναρξη | B26: =Setup!$B$6&" R16" -> Α14 R16 | C26: =IF(LEN(MD!N5)<2,"",VLOOKUP(MD!N5,ALMD!$C:$L,10,FALSE)) -> ΚΟΛΛΙΑΣ Σ (ΡΗΓΑΣ ΑΟΑ ΑΡ) | D26: =IF(OR(C26="",E26="")," ","-") -> - | E26: =IF(LEN(MD!N7)<2,"",VLOOKUP(MD!N7,ALMD!$C:$L,10,FALSE)) -> ΤΖΟΥΤΖΟΠΟΥΛΟΣ Θ (ΟΑ ΚΟΡΙΝΘΟΥ)
B27: =Setup!$B$6&" R16" -> Α14 R16 | C27: =IF(LEN(MD!N9)<2,"",VLOOKUP(MD!N9,ALMD!$C:$L,10,FALSE)) -> ΜΟΥΡΙΚΗΣ Κ (ΑΟ ΑΙΓΙΟΥ ΜΟ) | D27: - | E27: =IF(LEN(MD!N11)<2,"",VLOOKUP(MD!N11,ALMD!$C:$L,10,FALSE)) -> ΚΑΡΑΝΑΓΝΩΣΤΗΣ Κ (ΑΕΚ ΤΡΙΠΟΛΗΣ)
B28: =Setup!$B$6&" R16" -> Α14 R16 | C28: =IF(LEN(MD!N13)<2,"",VLOOKUP(MD!N13,ALMD!$C:$L,10,FALSE)) -> ΛΟΥΚΑ Ν (ΑΟΑ ΠΑΤΡΩΝ) | D28: - | E28: =IF(LEN(MD!N15)<2,"",VLOOKUP(MD!N15,ALMD!$C:$L,10,FALSE)) -> ΠΑΠΑΝΙΚΟΛΑΟΥ Ε (ΑΕΚ ΤΡΙΠΟΛΗΣ)
B29: =Setup!$B$6&" R16" -> Α14 R16 | C29: =IF(LEN(MD!N17)<2,"",VLOOKUP(MD!N17,ALMD!$C:$L,10,FALSE)) -> ΑΔΑΜΟΠΟΥΛΟΣ Ι (ΑΟ ΑΙΓΙΟΥ ΜΟ) | D29: - | E29: =IF(LEN(MD!N19)<2,"",VLOOKUP(MD!N19,ALMD!$C:$L,10,FALSE)) -> ΤΖΩΡΤΖΑΤΟΣ Κ (ΑΟΑ ΠΑΤΡΩΝ)
A30: όχι πριν | B30: =Setup!$B$6&" R16" -> Α14 R16 | C30: =IF(LEN(MD!N21)<2,"",VLOOKUP(MD!N21,ALMD!$C:$L,10,FALSE)) -> ΝΙΚΟΛΑΟΥ Α (ΑΟΑ ΠΑΤΡΩΝ) | D30: - | E30: =IF(LEN(MD!N23)<2,"",VLOOKUP(MD!N23,ALMD!$C:$L,10,FALSE)) -> ΛΑΜΠΡΟΠΟΥΛΟΣ Μ (ΑΕΚ ΤΡΙΠΟΛΗΣ)
B31: =Setup!$B$6&" R16" -> Α14 R16 | C31: =IF(LEN(MD!N25)<2,"",VLOOKUP(MD!N25,ALMD!$C:$L,10,FALSE)) -> ΓΙΑΝΝΑΚΟΠΟΥΛΟΣ Δ (ΡΗΓΑΣ ΑΟΑ ΑΡ) | D31: - | E31: =IF(LEN(MD!N27)<2,"",VLOOKUP(MD!N27,ALMD!$C:$L,10,FALSE)) -> ΤΟΥΝΤΑΣ Μ (ΡΗΓΑΣ ΑΟΑ ΑΡ)
B32: =Setup!$B$6&" R16" -> Α14 R16 | C32: =IF(LEN(MD!N29)<2,"",VLOOKUP(MD!N29,ALMD!$C:$L,10,FALSE)) -> ΜΑΛΕΒΙΤΗΣ Γ (ΑΟΑ ΠΑΤΡΩΝ) | D32: - | E32: =IF(LEN(MD!N31)<2,"",VLOOKUP(MD!N31,ALMD!$C:$L,10,FALSE)) -> ΜΠΑΚΑΛΟΣ Α (ΟΑ ΚΟΡΙΝΘΟΥ)
B33: =Setup!$B$6&" R16" -> Α14 R16 | C33: =IF(LEN(MD!N33)<2,"",VLOOKUP(MD!N33,ALMD!$C:$L,10,FALSE)) -> ΓΚΟΥΝΤΑΝΗΣ Β (ΣΑ ΤΡΙΠΟΛΗΣ) | D33: - | E33: =IF(LEN(MD!N35)<2,"",VLOOKUP(MD!N35,ALMD!$C:$L,10,FALSE)) -> ΚΥΡΙΑΚΟΠΟΥΛΟΣ Α (ΑΟΑ ΠΑΤΡΩΝ)
C35: Round 8 | F35: info
A36: ΩΡΑ | B36: Κτγρ. | C36: Αθλητής-Σύλλογος | E36: Αθλητής-Σύλλογος
A37: Έναρξη | B37: =Setup!$B$6&" R8" -> Α14 R8 | C37: =IF(LEN(MD!Q6)<2,"",VLOOKUP(MD!Q6,ALMD!$C:$L,10,FALSE)) -> ΚΟΛΛΙΑΣ Σ (ΡΗΓΑΣ ΑΟΑ ΑΡ) | E37: =IF(LEN(MD!Q10)<2,"",VLOOKUP(MD!Q10,ALMD!$C:$L,10,FALSE)) -> ΚΑΡΑΝΑΓΝΩΣΤΗΣ Κ (ΑΕΚ ΤΡΙΠΟΛΗΣ)
B38: =Setup!$B$6&" R8" -> Α14 R8 | C38: =IF(LEN(MD!Q14)<2,"",VLOOKUP(MD!Q14,ALMD!$C:$L,10,FALSE)) -> ΠΑΠΑΝΙΚΟΛΑΟΥ Ε (ΑΕΚ ΤΡΙΠΟΛΗΣ) | E38: =IF(LEN(MD!Q18)<2,"",VLOOKUP(MD!Q18,ALMD!$C:$L,10,FALSE)) -> ΤΖΩΡΤΖΑΤΟΣ Κ (ΑΟΑ ΠΑΤΡΩΝ)
B39: =Setup!$B$6&" R8" -> Α14 R8 | C39: =IF(LEN(MD!Q22)<2,"",VLOOKUP(MD!Q22,ALMD!$C:$L,10,FALSE)) -> ΝΙΚΟΛΑΟΥ Α (ΑΟΑ ΠΑΤΡΩΝ) | E39: =IF(LEN(MD!Q26)<2,"",VLOOKUP(MD!Q26,ALMD!$C:$L,10,FALSE)) -> ΤΟΥΝΤΑΣ Μ (ΡΗΓΑΣ ΑΟΑ ΑΡ)
B40: =Setup!$B$6&" R8" -> Α14 R8 | C40: =IF(LEN(MD!Q30)<2,"",VLOOKUP(MD!Q30,ALMD!$C:$L,10,FALSE)) -> ΜΑΛΕΒΙΤΗΣ Γ (ΑΟΑ ΠΑΤΡΩΝ) | E40: =IF(LEN(MD!Q34)<2,"",VLOOKUP(MD!Q34,ALMD!$C:$L,10,FALSE)) -> ΚΥΡΙΑΚΟΠΟΥΛΟΣ Α (ΑΟΑ ΠΑΤΡΩΝ)
C42: Ημιτελικοί | F42: info
A43: ΩΡΑ | B43: Κτγρ. | C43: Αθλητής-Σύλλογος | E43: Αθλητής-Σύλλογος
A44: Έναρξη | B44: =Setup!$B$6&" Ημιτελ" -> Α14 Ημιτελ | C44: =IF(LEN(MD!T8)<2,"",VLOOKUP(MD!T8,ALMD!$C:$L,10,FALSE)) -> ΚΟΛΛΙΑΣ Σ (ΡΗΓΑΣ ΑΟΑ ΑΡ) | E44: =IF(LEN(MD!T16)<2,"",VLOOKUP(MD!T16,ALMD!$C:$L,10,FALSE)) -> ΤΖΩΡΤΖΑΤΟΣ Κ (ΑΟΑ ΠΑΤΡΩΝ)
B45: =Setup!$B$6&" Ημιτελ" -> Α14 Ημιτελ | C45: =IF(LEN(MD!T24)<2,"",VLOOKUP(MD!T24,ALMD!$C:$L,10,FALSE)) -> ΤΟΥΝΤΑΣ Μ (ΡΗΓΑΣ ΑΟΑ ΑΡ) | E45: =IF(LEN(MD!T32)<2,"",VLOOKUP(MD!T32,ALMD!$C:$L,10,FALSE)) -> ΚΥΡΙΑΚΟΠΟΥΛΟΣ Α (ΑΟΑ ΠΑΤΡΩΝ)
C47: Τελικός | F47: info
A48: ΩΡΑ | B48: Κτγρ. | C48: Αθλητής-Σύλλογος | E48: Αθλητής-Σύλλογος
A49: Έναρξη | B49: =Setup!$B$6&" Τελ" -> Α14 Τελ | C49: =IF(LEN(MD!W12)<2,"",VLOOKUP(MD!W12,ALMD!$C:$L,10,FALSE)) -> ΚΟΛΛΙΑΣ Σ (ΡΗΓΑΣ ΑΟΑ ΑΡ) | E49: =IF(LEN(MD!W28)<2,"",VLOOKUP(MD!W28,ALMD!$C:$L,10,FALSE)) -> ΤΟΥΝΤΑΣ Μ (ΡΗΓΑΣ ΑΟΑ ΑΡ)

Sheet tables (hidden)
A1: RndIndx | B1: random | C1: FixRandom | G1: 33-64 | H1: 17-32 | I1: 9-16 | J1: 5-8 | K1: 3-4 | L1: 2ος | M1: 1ος | P1: Categories | Q1: Juniors | R1: Serniors | V1: Tours | X1: Clubs | Y1: Id | Z1: Union | AB1: Organizers | AD1: Referees | AF1: key | AG1: pts18 | AI1: KEY TourDetails | AJ1: Date | AK1: TourName | AL1: CLUBid | AM1: CLUB | AN1: TYPE | AO1: GRP | AP1: GRPid | AQ1: TDid | AS1: Group | AT1: GroupID
A2: 1 | B2: =RAND()/222 -> 0.00378560814 | C2: 0.003483748267 | F2: Ε1-12 | H2: 5 | I2: 7.5 | J2: 10 | K2: 15 | L2: 25 | M2: 30 | Q2: Α10 | R2: m35 | V2: Παν | AF2: Ε1S-12-1st | AG2: 30 | AI2: =AJ2&AK2&AL2&AN2&AO2 -> 43113Ε3 2η (Β)152Sα12 | AJ2: 2018-01-13 | AK2: Ε3 2η (Β) | AL2: 152 | AM2: ΟΑ ΚΑΛΑΜΑΡΙΑΣ | AN2: S | AO2: α12 | AP2: 5 | AQ2: 3305 | AS2: Α10 | AT2: 3
A3: 2 | B3: 0.0009704665289 | C3: 0.003876067296 | F3: Ε1-14 | H3: 10 | I3: 15 | J3: 20 | K3: 30 | L3: 50 | M3: 60 | P3: Α12 | Q3: Α12 | R3: m40 | V3: Ε3 | X3: ΑΑ ΑΙΓΑΛΕΩ | Y3: 366 | Z3: Θ | AB3: ΕΦΟΑ | AD3: Θα-ανακοινωθεί | AF3: Ε1S-12-2nd | AG3: 25 | AI3: =AJ3&AK3&AL3&AN3&AO3 -> 43113Ε3 2η (Β)152Sα16 | AJ3: 2018-01-13 | AK3: Ε3 2η (Β) | AL3: 152 | AM3: ΟΑ ΚΑΛΑΜΑΡΙΑΣ | AN3: S | AO3: α16 | AP3: 7 | AQ3: 3306 | AS3: Κ10 | AT3: 4
A4: 3 | B4: =RAND()/222 -> 0.004349360425 | C4: 0.003327403833 | F4: Ε1-16 | H4: 20 | I4: 30 | J4: 40 | K4: 60 | L4: 100 | M4: 120 | P4: Α14 | Q4: Α14 | R4: m45 | V4: Ε4 | X4: ΑΑ ΑΛΜΠΑΤΡΟΣ | Y4: 124 | Z4: Β | AB4: Α' ΕΝΩΣΗ | AD4: ΑΛΕΞΙΟΥ Δ | AF4: Ε1S-12-3_4 | AG4: 15 | AI4: 43113Ε3 2η (Β)152Sκ12 | AJ4: 2018-01-13 | AK4: Ε3 2η (Β) | AL4: 152 | AM4: ΟΑ ΚΑΛΑΜΑΡΙΑΣ | AN4: S | AO4: κ12 | AP4: 9 | AQ4: 3307 | AS4: Α12 | AT4: 5
A5: 4 | B5: =RAND()/222 -> 0.0002438565538 | C5: 0.002204047994 | F5: Ε1-18 | H5: 25 | I5: 37.5 | J5: 50 | K5: 75 | L5: 125 | M5: 150 | P5: Α16 | Q5: Α16 | R5: m50 | V5: Open | X5: ΑΑ ΚΕΡΚΥΡΑΣ | Y5: 201 | Z5: Δ | AB5: Β' ΕΝΩΣΗ | AD5: ΑΜΟΥΤΖΟΓΛΟΥ Κ | AF5: Ε1S-12-5_8 | AG5: 10 | AI5: 43113Ε3 2η (Β)152Sκ16 | AJ5: 2018-01-13 | AK5: Ε3 2η (Β) | AL5: 152 | AM5: ΟΑ ΚΑΛΑΜΑΡΙΑΣ | AN5: S | AO5: κ16 | AP5: 11 | AQ5: 3308 | AS5: Α14 | AT5: 6
A6: 5 | B6: =RAND()/222 -> 0.003407955962 | C6: 0.002305696435 | F6: Ε2-12 | H6: 2.5 | I6: 4 | J6: 5 | K6: 7.5 | L6: 12.5 | M6: 15 | P6: Α18 | Q6: Α18 | R6: m55 | V6: ΠανΑΓ | X6: ΑΑ ΝΑΟΥΣΑΣ | Y6: 169 | Z6: Γ | AB6: Γ' ΕΝΩΣΗ | AD6: ΑΞΑΡΛΗ Ν | AF6: Ε1S-12-9_16 | AG6: 7.5 | AI6: 43120Ε3 4η (Δ)217Sα12 | AJ6: 2018-01-20 | AK6: Ε3 4η (Δ) | AL6: 217 | AM6: ΟΑ ΑΡΤΑΣ | AN6: S | AO6: α12 | AP6: 5 | AQ6: 3309 | AS6: Α16 | AT6: 7
A7: 6 | B7: =RAND()/222 -> 1.024768539e-05 | C7: 0.004499988295 | F7: Ε2-14 | H7: 5 | I7: 7.5 | J7: 10 | K7: 15 | L7: 25 | M7: 30 | P7: Κ12 | Q7: Κ10 | R7: m60 | V7: OpenΑΓ | X7: ΑΑΑ ΑΛΙΜΟΥ | Y7: 407 | Z7: ΙΑ | AB7: Δ' ΕΝΩΣΗ | AD7: ΒΑΒΙΤΣΑ Π | AF7: Ε1S-12-17_32 | AG7: 1 | AI7: 43120Ε3 4η (Δ)217Sα16 | AJ7: 2018-01-20 | AK7: Ε3 4η (Δ) | AL7: 217 | AM7: ΟΑ ΑΡΤΑΣ | AN7: S | AO7: α16 | AP7: 7 | AQ7: 3310 | AS7: Α18 | AT7: 8
A8: 7 | B8: =RAND()/222 -> 0.002942754632 | C8: 0.001836100803 | F8: Ε2-16 | H8: 10 | I8: 16 | J8: 20 | K8: 30 | L8: 50 | M8: 60 | P8: Κ14 | Q8: Κ12 | R8: m65 | X8: ΑΓΟ ΒΟΛΟΥ | Y8: 470 | Z8: Ε | AB8: Ε' ΕΝΩΣΗ | AD8: ΒΑΒΟΥΡΑΚΗ Ε | AF8: Ε1S-12-q8 | AG8: 2 | AI8: 43120Ε3 4η (Δ)217Sκ12 | AJ8: 2018-01-20 | AK8: Ε3 4η (Δ) | AL8: 217 | AM8: ΟΑ ΑΡΤΑΣ | AN8: S | AO8: κ12 | AP8: 9 | AQ8: 3311 | AS8: Κ12 | AT8: 9
A9: 8 | B9: 0.002512618037 | C9: 0.002926164733 | F9: Ε3-12 | G9: 0.5 | H9: 1.5 | I9: 2.4 | J9: 3 | K9: 4.5 | L9: 7.5 | M9: 9 | P9: Κ16 | Q9: Κ14 | R9: m70 | X9: ΑΓΟ ΕΥΡΥΑΛΗ ΓΛΥΦΑΔΑΣ | Y9: 408 | Z9: ΙΑ | AB9: ΣΤ' ΕΝΩΣΗ | AD9: ΒΑΚΟΥΦΑΡΗΣ Δ | AF9: Ε1S-12-q16 | AG9: 2 | AI9: 43120Ε3 4η (Δ)217Sκ16 | AJ9: 2018-01-20 | AK9: Ε3 4η (Δ) | AL9: 217 | AM9: ΟΑ ΑΡΤΑΣ | AN9: S | AO9: κ16 | AP9: 11 | AQ9: 3312 | AS9: Κ14 | AT9: 10
A10: 9 | B10: 0.0007137799568 | C10: 0.003614794583 | F10: Ε3-14 | G10: 1 | H10: 3 | I10: 4.5 | J10: 6 | K10: 9 | L10: 15 | M10: 18 | P10: Κ18 | Q10: Κ16 | R10: m75 | X10: ΑΓΟ ΘΕΣΠΡΩΤΙΚΟΥ | Y10: 202 | Z10: Δ | AB10: Ζ' ΕΝΩΣΗ | AD10: ΒΑΛΤΑΔΩΡΟΣ Δ | AF10: Ε1S-12-q8/2 | AG10: 1 | AI10: 43120Ε3 3η (Ε)244Sα12 | AJ10: 2018-01-20 | AK10: Ε3 3η (Ε) | AL10: 244 | AM10: ΟΑ ΜΑΓΝΗΣΙΑΣ | AN10: S | AO10: α12 | AP10: 5 | AQ10: 3313 | AS10: Κ16 | AT10: 11
A11: 10 | B11: 0.003454489512 | C11: 0.004345208157 | F11: Ε3-16 | G11: 2 | H11: 6 | I11: 9.6 | J11: 12 | K11: 18 | L11: 30 | M11: 36 | P11: Α10 | Q11: Κ18 | R11: w35 | X11: ΑΓΟ ΝΑΥΠΑΚΤΟΥ | Y11: 203 | Z11: Δ | AB11: Η' ΕΝΩΣΗ | AD11: ΒΑΛΤΑΔΩΡΟΣ Μ | AF11: Ε1S-12-q32 | AG11: 1 | AI11: 43120Ε3 3η (Ε)244Sα16 | AJ11: 2018-01-20 | AK11: Ε3 3η (Ε) | AL11: 244 | AM11: ΟΑ ΜΑΓΝΗΣΙΑΣ | AN11: S | AO11: α16 | AP11: 7 | AQ11: 3314 | AS11: Κ18 | AT11: 12
A12: 11 | B12: 0.002084794472 | C12: 5.430313392e-06 | F12: Ε4-12 | G12: 0.2 | H12: 0.5 | I12: 1 | J12: 1.2 | K12: 1.7 | L12: 3.2 | M12: 3.7 | P12: Κ10 | Q12: ΑΝΔ | R12: w40 | X12: ΑΓΟ ΦΙΛΙΠΠΙΑΔΑΣ | Y12: 204 | Z12: Δ | AB12: Θ' ΕΝΩΣΗ | AD12: ΒΑΧΑΡΙΔΗΣ Γ | AF12: Ε1S-12-33_64 | AG12: 0 | AI12: 43120Ε3 3η (Ε)244Sκ12 | AJ12: 2018-01-20 | AK12: Ε3 3η (Ε) | AL12: 244 | AM12: ΟΑ ΜΑΓΝΗΣΙΑΣ | AN12: S | AO12: κ12 | AP12: 9 | AQ12: 3315 | AS12: Α12 Δ | AT12: 13
A13: 12 | B13: 0.002697381546 | C13: 0.003342707861 | F13: Ε4-14 | G13: 0.5 | H13: 1.2 | I13: 1.8 | J13: 2.5 | K13: 3.7 | L13: 6.2 | M13: 7.5 | P13: Ανδ | Q13: ΓΥΝ | R13: w45 | V13: Παν | X13: ΑΓΣ ΜΥΛΩΝ Ο ΛΕΡΝΟΣ | Y13: 258 | Z13: ΣΤ | AB13: ΙΑ' ΕΝΩΣΗ | AD13: ΒΟΥΡΟΥΚΟΣ Κ | AF13: Ε1S-12-q | AG13: 0 | AI13: 43120Ε3 3η (Ε)244Sκ16 | AJ13: 2018-01-20 | AK13: Ε3 3η (Ε) | AL13: 244 | AM13: ΟΑ ΜΑΓΝΗΣΙΑΣ | AN13: S | AO13: κ16 | AP13: 11 | AQ13: 3316 | AS13: Α14 Δ | AT13: 14
A14: 13 | B14: 0.003640601813 | C14: 0.003158422128 | F14: Ε4-16 | G14: 1 | H14: 2.5 | I14: 4 | J14: 5 | K14: 7.5 | L14: 12.5 | M14: 15 | P14: Γυν | Q14: - | R14: w50 | V14: Ε1 | X14: ΑΕ ΒΟΥΛΑΣ | Y14: 496 | Z14: ΙΑ | AB14: ΣΒΑΕ | AD14: ΓΑΛΑΤΙΔΗΣ Α | AF14: Ε1S-12-q64 | AG14: 0 | AI14: 43126Ε3 4η (Η)336Sα12 | AJ14: 2018-01-26 | AK14: Ε3 4η (Η) | AL14: 336 | AM14: ΑΟΑ ΦΙΛΟΘΕΗΣ | AN14: S | AO14: α12 | AP14: 5 | AQ14: 3317 | AS14: Α16 Δ | AT14: 15
A15: 14 | B15: 0.004043274879 | C15: 0.004066803792 | F15: Παν-12 | G15: 5 | H15: 10 | I15: 15 | J15: 20 | K15: 30 | L15: 50 | M15: 60 | Q15: - | R15: w55 | V15: Ε2 | X15: ΑΕ ΚΑΛΑΒΡΥΤΩΝ | Y15: 259 | Z15: ΣΤ | AB15: ITF & ΣΒΑΕ | AD15: ΓΕΡΑΡΔΟΣ Γ | AF15: Ε1S-12-q128 | AG15: 0 | AI15: 43126Ε3 4η (Η)336Sκ12 | AJ15: 2018-01-26 | AK15: Ε3 4η (Η) | AL15: 336 | AM15: ΑΟΑ ΦΙΛΟΘΕΗΣ | AN15: S | AO15: κ12 | AP15: 9 | AQ15: 3318 | AS15: Α18 Δ | AT15: 16
A16: 15 | B16: 0.0004944513703 | C16: 0.0003806833286 | F16: Παν-14 | G16: 10 | H16: 20 | I16: 30 | J16: 40 | K16: 60 | L16: 100 | M16: 120 | Q16: - | R16: - | V16: Ε3 | X16: ΑΕ ΠΟΡΤΟ ΡΑΦΤΗ | Y16: 313 | Z16: Η | AB16: INTERSPORT | AD16: ΓΕΩΡΓΑΚΗΣ Κ | AF16: Ε1S-12-q256 | AG16: 0 | AI16: 43126Ε3 4η (Η)336Sα14 | AJ16: 2018-01-26 | AK16: Ε3 4η (Η) | AL16: 336 | AM16: ΑΟΑ ΦΙΛΟΘΕΗΣ | AN16: S | AO16: α14 | AP16: 6 | AQ16: 3319 | AS16: Κ12 Δ | AT16: 17
A17: 16 | B17: 0.000249192733 | C17: 0.002747894107 | F17: Παν-16 | G17: 20 | H17: 40 | I17: 60 | J17: 80 | K17: 120 | L17: 200 | M17: 240 | V17: Ε4 | X17: ΑΕΚ ΤΡΙΠΟΛΗΣ | Y17: 260 | Z17: ΣΤ | AD17: ΓΕΩΡΓΑΡΑ Ε | AF17: Ε1S-12-wo | AG17: 0 | AI17: 43126Ε3 4η (Η)336Sκ14 | AJ17: 2018-01-26 | AK17: Ε3 4η (Η) | AL17: 336 | AM17: ΑΟΑ ΦΙΛΟΘΕΗΣ | AN17: S | AO17: κ14 | AP17: 10 | AQ17: 3320 | AS17: Κ14 Δ | AT17: 18
A18: 17 | B18: 0.003468045214 | C18: 0.003073022772 | F18: Παν-18 | G18: 25 | H18: 50 | I18: 75 | J18: 100 | K18: 150 | L18: 250 | M18: 300 | X18: ΑΕΣΑ Φ ΚΟΥΡΟΣ | Y18: 478 | Z18: Η | AD18: ΓΕΩΡΓΑΤΗΣ Ι | AF18: Ε1D-12-1st | AG18: 7.5 | AI18: 43126Ε3 4η (Η)336Sκ16 | AJ18: 2018-01-26 | AK18: Ε3 4η (Η) | AL18: 336 | AM18: ΑΟΑ ΦΙΛΟΘΕΗΣ | AN18: S | AO18: κ16 | AP18: 11 | AQ18: 3321 | AS18: Κ16 Δ | AT18: 19
A19: 18 | B19: 0.003096813566 | C19: 0.001758705621 | V19: G1 | X19: ΑΕΤ ΝΙΚΗ ΠΑΤΡΩΝ | Y19: 261 | Z19: ΣΤ | AD19: ΓΕΩΡΓΙΑΔΗΣ Σ | AF19: Ε1D-12-2nd | AG19: 6.5 | AI19: 43126Ε3 4η (Η)336Sα16 | AJ19: 2018-01-26 | AK19: Ε3 4η (Η) | AL19: 336 | AM19: ΑΟΑ ΦΙΛΟΘΕΗΣ | AN19: S | AO19: α16 | AP19: 7 | AQ19: 3322 | AS19: Κ18 Δ | AT19: 20
A20: 19 | B20: 0.00111582892 | C20: 0.002860297102 | G20: q256 | H20: q128 | I20: q64 | J20: q32 | K20: q16 | L20: q8 | V20: G2 | X20: ΑΘΛ ΑΚΑΔ ΙΩΑΝΝΙΝΩΝ | Y20: 205 | Z20: Δ | AD20: ΓΙΑΝΝΟΥΛΟΠΟΥΛΟΥ Α | AF20: Ε1D-12-3_4 | AG20: 4 | AI20: 43141Ε3 6η (Δ)217Sα14 | AJ20: 2018-02-10 | AK20: Ε3 6η (Δ) | AL20: 217 | AM20: ΟΑ ΑΡΤΑΣ | AN20: S | AO20: α14 | AP20: 6 | AQ20: 3323 | AS20: Μ12 Δ | AT20: 21
A21: 20 | B21: 0.004190596062 | C21: 0.002533016574 | F21: Ε1-12 | J21: 1 | K21: 2 | L21: 2 | V21: G3 | X21: ΑΘΛ ΚΕΝΤΡΟ ΑΝΤΙΣΦ ΛΑΜΙΑΣ | Y21: 223 | Z21: Ε | AD21: ΓΙΑΤΣΟΣ Β | AF21: Ε1D-12-5_8 | AG21: 2.5 | AI21: 43141Ε3 6η (Δ)217Sκ14 | AJ21: 2018-02-10 | AK21: Ε3 6η (Δ) | AL21: 217 | AM21: ΟΑ ΑΡΤΑΣ | AN21: S | AO21: κ14 | AP21: 10 | AQ21: 3324 | AS21: Μ14 Δ | AT21: 22
A22: 21 | B22: 0.0006890863269 | C22: 0.004160575919 | F22: Ε1-14 | J22: 2 | K22: 4 | L22: 4 | V22: G4 | X22: ΑΙΟΛΟΣ ΑΛ ΙΛΙΟΥ | Y22: 367 | Z22: Θ | AD22: ΓΙΩΓΙΑ Π | AF22: Ε1D-12-9_16 | AG22: 2 | AI22: 43119Ε3 3η (Θ)374Sα12 | AJ22: 2018-01-19 | AK22: Ε3 3η (Θ) | AL22: 374 | AM22: ΑΟΑ ΧΑΪΔΑΡΙΟΥ | AN22: S | AO22: α12 | AP22: 5 | AQ22: 3325 | AS22: Μ16 Δ | AT22: 23
A23: 22 | B23: 0.001131770649 | C23: 0.003730136405 | F23: Ε1-16 | J23: 4 | K23: 8 | L23: 8 | V23: G5 | X23: ΑΚ ΖΩΓΡΑΦΟΥ | Y23: 410 | Z23: ΙΑ | AD23: ΓΚΟΓΚΟΥ Κ | AF23: Ε1D-12-17_32 | AG23: 0 | AI23: 43119Ε3 3η (Θ)374Sκ12 | AJ23: 2018-01-19 | AK23: Ε3 3η (Θ) | AL23: 374 | AM23: ΑΟΑ ΧΑΪΔΑΡΙΟΥ | AN23: S | AO23: κ12 | AP23: 9 | AQ23: 3326 | AS23: Μ18 Δ | AT23: 24
A24: 23 | B24: 0.002920272265 | C24: 0.003301847332 | F24: Ε1-18 | J24: 5 | K24: 10 | L24: 10 | X24: ΑΚΑ Α ΠΑΝΤΑΛΚΗΣ | Y24: 487 | Z24: Θ | AD24: ΓΚΟΥΝΤΑΝΗ Γ | AF24: Ε1D-12-wo | AG24: 0 | AI24: 43119Ε3 3η (Θ)374Sα16 | AJ24: 2018-01-19 | AK24: Ε3 3η (Θ) | AL24: 374 | AM24: ΑΟΑ ΧΑΪΔΑΡΙΟΥ | AN24: S | AO24: α16 | AP24: 7 | AQ24: 3327 | AS24: ΑΝΔ | AT24: 25
A25: 24 | B25: 0.004270716286 | C25: 0.003973918849 | F25: Ε2-12 | J25: 0.5 | K25: 1 | L25: 1 | X25: ΑΚΑ ΜΑΡΑΘΩΝΑ | Y25: 315 | Z25: Η | AD25: ΔΑΜΙΑΝΟΥ Α | AF25: Ε1S-14-1st | AG25: 60 | AI25: 43119Ε3 3η (Θ)374Sκ16 | AJ25: 2018-01-19 | AK25: Ε3 3η (Θ) | AL25: 374 | AM25: ΑΟΑ ΧΑΪΔΑΡΙΟΥ | AN25: S | AO25: κ16 | AP25: 11 | AQ25: 3328 | AS25: ΓΥΝ | AT25: 26
A26: 25 | B26: 0.0005574204346 | C26: 0.003972555082 | F26: Ε2-14 | J26: 1 | K26: 2 | L26: 2 | X26: ΑΚΑΔ ΑΝΤΙΣΦ ΙΩΑΝΝΙΝΩΝ | Y26: 206 | Z26: Δ | AD26: ΔΕΡΜΙΤΖΑΚΗ Ε | AF26: Ε1S-14-2nd | AG26: 50 | AI26: 43126Ε3 4η (Θ)374Sα14 | AJ26: 2018-01-26 | AK26: Ε3 4η (Θ) | AL26: 374 | AM26: ΑΟΑ ΧΑΪΔΑΡΙΟΥ | AN26: S | AO26: α14 | AP26: 6 | AQ26: 3329 | AS26: ΑΝΔ Δ | AT26: 27
A27: 26 | B27: 0.00126193773 | C27: 0.00349938577 | F27: Ε2-16 | J27: 2 | K27: 4 | L27: 4 | P27: Ναι | X27: ΑΚΑΔ ΑΝΤΙΣΦ ΣΕΡΡΩΝ 2008 | Y27: 101 | Z27: Α | AD27: ΔΗΜΗΤΡΙΟΥ Ε | AF27: Ε1S-14-3_4 | AG27: 30 | AI27: 43126Ε3 4η (Θ)374Sκ14 | AJ27: 2018-01-26 | AK27: Ε3 4η (Θ) | AL27: 374 | AM27: ΑΟΑ ΧΑΪΔΑΡΙΟΥ | AN27: S | AO27: κ14 | AP27: 10 | AQ27: 3330 | AS27: ΓΥΝ Δ | AT27: 28
A28: 27 | B28: 2.859528315e-05 | C28: 0.00132760726 | F28: Ε3-12 | P28: Όχι | X28: ΑΚΑΔ ΑΝΤΙΣΦ ΧΑΝΙΩΝ | Y28: 298 | Z28: Ζ | AD28: ΔΡΑΓΟΥΜΗΣ Π | AF28: Ε1S-14-5_8 | AG28: 20 | AI28: 43127Ε3 4η (Α)107Sα12 | AJ28: 2018-01-27 | AK28: Ε3 4η (Α) | AL28: 107 | AM28: ΑΟΑ Ν ΠΕΡΑΜΟΥ ΤΙΤΑΝΕΣ | AN28: S | AO28: α12 | AP28: 5 | AQ28: 3331 | AS28: ΜΙΚΤ Α/Γ | AT28: 29
A29: 28 | B29: 0.001178626994 | C29: 0.0001987279422 | F29: Ε3-14 | X29: ΑΜΕΣ Ν ΕΡΥΘΡΑΙΑΣ | Y29: 316 | Z29: Η | AD29: ΘΕΟΔΩΡΟΠΟΥΛΟΥ Α | AF29: Ε1S-14-9_16 | AG29: 15 | AI29: 43127Ε3 4η (Α)107Sκ12 | AJ29: 2018-01-27 | AK29: Ε3 4η (Α) | AL29: 107 | AM29: ΑΟΑ Ν ΠΕΡΑΜΟΥ ΤΙΤΑΝΕΣ | AN29: S | AO29: κ12 | AP29: 9 | AQ29: 3332
A30: 29 | B30: 0.001447582656 | C30: 0.0005264252175 | F30: Ε3-16 | P30: από values | X30: ΑΜΣ ΠΑΝΟΡΑΜΑΤΟΣ | Y30: 458 | Z30: Β | AD30: ΙΩΑΝΝΙΔΗΣ Ι | AF30: Ε1S-14-17_32 | AG30: 2 | AI30: 43127Ε3 4η (Α)108Sα14 | AJ30: 2018-01-27 | AK30: Ε3 4η (Α) | AL30: 108 | AM30: ΑΟΑ ΠΡΩΤΑΘΛ ΚΑΒΑΛΑΣ | AN30: S | AO30: α14 | AP30: 6 | AQ30: 3333
A31: 30 | B31: 0.004048523963 | C31: 0.0002812294248 | F31: Ε4-12 | X31: ΑΝΟ ΓΛΥΦΑΔΑΣ | Y31: 411 | Z31: ΙΑ | AD31: ΚΑΔΟΓΛΟΥ Κ | AF31: Ε1S-14-q8 | AG31: 4 | AI31: 43127Ε3 4η (Α)108Sκ14 | AJ31: 2018-01-27 | AK31: Ε3 4η (Α) | AL31: 108 | AM31: ΑΟΑ ΠΡΩΤΑΘΛ ΚΑΒΑΛΑΣ | AN31: S | AO31: κ14 | AP31: 10 | AQ31: 3334
A32: 31 | B32: 0.004268271984 | C32: 5.396419609e-05 | F32: Ε4-14 | P32: alt | X32: ΑΝΣ ΕΛΛΗΝΙΚΙΩΤΩΝ | Y32: 412 | Z32: ΙΑ | AD32: ΚΑΖΑΝΗΣ Γ | AF32: Ε1S-14-q16 | AG32: 4 | AI32: 43127Ε3 4η (Α)108Sα16 | AJ32: 2018-01-27 | AK32: Ε3 4η (Α) | AL32: 108 | AM32: ΑΟΑ ΠΡΩΤΑΘΛ ΚΑΒΑΛΑΣ | AN32: S | AO32: α16 | AP32: 7 | AQ32: 3335
A33: 32 | B33: 0.003357981536 | C33: 0.001415728171 | F33: Ε4-16 | P33: Q | X33: ΑΟ ΑΘΗΝΑΪΚΗ | Y33: 488 | Z33: Θ | AD33: ΚΑΚΚΑΛΟΣ Γ | AF33: Ε1S-14-q8/2 | AG33: 2 | AI33: 43127Ε3 4η (Α)108Sκ16 | AJ33: 2018-01-27 | AK33: Ε3 4η (Α) | AL33: 108 | AM33: ΑΟΑ ΠΡΩΤΑΘΛ ΚΑΒΑΛΑΣ | AN33: S | AO33: κ16 | AP33: 11 | AQ33: 3336
F34: Παν-12 | G34: 0.5 | H34: 1 | I34: 1.5 | J34: 2.5 | K34: 2.5 | P34: LL | X34: ΑΟ ΑΙΓΙΟΥ ΜΟΡΕΑΣ | Y34: 262 | Z34: ΣΤ | AD34: ΚΑΛΟΓΡΗ Σ | AF34: Ε1S-14-q32 | AG34: 2 | AI34: 43126Ε3 4η (ΙΑ)442Sα12 | AJ34: 2018-01-26 | AK34: Ε3 4η (ΙΑ) | AL34: 442 | AM34: ΑΟΑ ΚΑΒΟΥΡΙΟΥ | AN34: S | AO34: α12 | AP34: 5 | AQ34: 3337
F35: Παν-14 | G35: 1 | H35: 2 | I35: 3 | J35: 5 | K35: 5 | P35: DQ | X35: ΑΟ ΑΛΦΕΙΟΣ ΕΠΙΤΑΛΙΟΥ | Y35: 501 | Z35: ΣΤ | AD35: ΚΑΜΙΛΗ Α | AF35: Ε1S-14-33_64 | AG35: 0 | AI35: 43126Ε3 4η (ΙΑ)442Sκ12 | AJ35: 2018-01-26 | AK35: Ε3 4η (ΙΑ) | AL35: 442 | AM35: ΑΟΑ ΚΑΒΟΥΡΙΟΥ | AN35: S | AO35: κ12 | AP35: 9 | AQ35: 3338
F36: Παν-16 | G36: 2 | H36: 4 | I36: 6 | J36: 10 | K36: 10 | X36: ΑΟ ΑΣΤΕΡΑΣ ΗΛΙΟΥΠΟΛΗΣ | Y36: 497 | Z36: ΙΑ | AD36: ΚΑΡΑΜΗΤΡΟΣ Κ | AF36: Ε1S-14-q | AG36: 0 | AI36: 43126Ε3 4η (ΙΑ)442Sα14 | AJ36: 2018-01-26 | AK36: Ε3 4η (ΙΑ) | AL36: 442 | AM36: ΑΟΑ ΚΑΒΟΥΡΙΟΥ | AN36: S | AO36: α14 | AP36: 6 | AQ36: 3339
F37: Παν-18 | G37: 2.5 | H37: 5 | I37: 7.5 | J37: 12.5 | K37: 12.5 | X37: ΑΟ ΑΤΛΑΝΤΙΣ | Y37: 317 | Z37: Η | AD37: ΚΑΡΑΤΑΣΟΣ Κ | AF37: Ε1S-14-q64 | AG37: 0 | AI37: 43126Ε3 4η (ΙΑ)442Sκ14 | AJ37: 2018-01-26 | AK37: Ε3 4η (ΙΑ) | AL37: 442 | AM37: ΑΟΑ ΚΑΒΟΥΡΙΟΥ | AN37: S | AO37: κ14 | AP37: 10 | AQ37: 3340
X38: ΑΟ ΒΑΡΗΣ ΑΝΑΓΥΡΟΥΣ | Y38: 318 | Z38: Η | AD38: ΚΑΦΕΤΖΟΠΟΥΛΟΣ Π | AF38: Ε1S-14-q128 | AG38: 0 | AI38: 43126Ε3 4η (ΙΑ)442Sα16 | AJ38: 2018-01-26 | AK38: Ε3 4η (ΙΑ) | AL38: 442 | AM38: ΑΟΑ ΚΑΒΟΥΡΙΟΥ | AN38: S | AO38: α16 | AP38: 7 | AQ38: 3341
X39: ΑΟ ΒΟΥΛΙΑΓΜΕΝΗΣ | Y39: 415 | Z39: ΙΑ | AD39: ΚΑΦΦΕ Μ | AF39: Ε1S-14-q256 | AG39: 0 | AI39: 43126Ε3 4η (ΙΑ)442Sκ16 | AJ39: 2018-01-26 | AK39: Ε3 4η (ΙΑ) | AL39: 442 | AM39: ΑΟΑ ΚΑΒΟΥΡΙΟΥ | AN39: S | AO39: κ16 | AP39: 11 | AQ39: 3342
X40: ΑΟ ΓΛΥΦΑΔΑΣ ΦΙΛΙΑ 2000 | Y40: 416 | Z40: ΙΑ | AD40: ΚΙΜΟΓΛΟΥ Ε | AF40: Ε1S-14-wo | AG40: 0 | AI40: 43127Ε3 4η (Ε)244Sα14 | AJ40: 2018-01-27 | AK40: Ε3 4η (Ε) | AL40: 244 | AM40: ΟΑ ΜΑΓΝΗΣΙΑΣ | AN40: S | AO40: α14 | AP40: 6 | AQ40: 3343
X41: ΑΟ ΔΑΣΟΣ ΧΑΪΔΑΡΙΟΥ | Y41: 489 | Z41: Θ | AD41: ΚΟΣΚΙΝΑΣ Ι | AF41: Ε1D-14-1st | AG41: 15 | AI41: 43127Ε3 4η (Ε)244Sκ14 | AJ41: 2018-01-27 | AK41: Ε3 4η (Ε) | AL41: 244 | AM41: ΟΑ ΜΑΓΝΗΣΙΑΣ | AN41: S | AO41: κ14 | AP41: 10 | AQ41: 3344
X42: ΑΟ ΔΙΑΣ ΠΟΛΙΧΝΗΣ | Y42: 126 | Z42: Β | AD42: ΚΟΤΣΑΡΙΝΗΣ Β | AF42: Ε1D-14-2nd | AG42: 13 | AI42: 43127Ε3 4η (Ζ)309Sα12 | AJ42: 2018-01-27 | AK42: Ε3 4η (Ζ) | AL42: 309 | AM42: ΟΑ ΣΟΥΔΑΣ | AN42: S | AO42: α12 | AP42: 5 | AQ42: 3345
X43: ΑΟ ΔΙΛΟΦΟ ΒΑΡΗΣ | Y43: 319 | Z43: Η | AD43: ΚΟΤΣΩΝΗΣ Ε | AF43: Ε1D-14-3_4 | AG43: 8 | AI43: 43127Ε3 4η (Ζ)309Sκ12 | AJ43: 2018-01-27 | AK43: Ε3 4η (Ζ) | AL43: 309 | AM43: ΟΑ ΣΟΥΔΑΣ | AN43: S | AO43: κ12 | AP43: 9 | AQ43: 3346
X44: ΑΟ ΕΜΙΛΕΟΝ | Y44: 207 | Z44: Δ | AD44: ΚΟΥΚΟΥΒΙΤΑΚΗ Γ | AF44: Ε1D-14-5_8 | AG44: 5 | AI44: 43127Ε3 4η (Ζ)298Sα14 | AJ44: 2018-01-27 | AK44: Ε3 4η (Ζ) | AL44: 298 | AM44: ΑΚΑΔ ΑΝΤΙΣΦ ΧΑΝΙΩΝ | AN44: S | AO44: α14 | AP44: 6 | AQ44: 3347
X45: ΑΟ ΘΕΡΜΗΣ ΘΕΡΜΑΙΟΣ | Y45: 127 | Z45: Β | AD45: ΚΟΥΚΟΥΝΙΑΣ Χ | AF45: Ε1D-14-9_16 | AG45: 4 | AI45: 43127Ε3 4η (Ζ)298Sκ14 | AJ45: 2018-01-27 | AK45: Ε3 4η (Ζ) | AL45: 298 | AM45: ΑΚΑΔ ΑΝΤΙΣΦ ΧΑΝΙΩΝ | AN45: S | AO45: κ14 | AP45: 10 | AQ45: 3348
X46: ΑΟ ΚΑΒΑΛΑΣ ΜΑΚΕΔΟΝΙΚΟΣ | Y46: 102 | Z46: Α | AD46: ΚΟΥΛΟΥΡΗΣ Π | AF46: Ε1D-14-17_32 | AG46: 0 | AI46: 43127Ε3 4η (Ζ)310Sα16 | AJ46: 2018-01-27 | AK46: Ε3 4η (Ζ) | AL46: 310 | AM46: ΟΑ ΧΑΝΙΩΝ | AN46: S | AO46: α16 | AP46: 7 | AQ46: 3349
X47: ΑΟ ΚΑΛΛΙΤΕΧΝΟΥΠΟΛΗΣ | Y47: 320 | Z47: Η | AD47: ΚΟΥΜΑΝΤΑΣ Κ | AF47: Ε1D-14-wo | AG47: 0 | AI47: 43127Ε3 4η (Ζ)310Sκ16 | AJ47: 2018-01-27 | AK47: Ε3 4η (Ζ) | AL47: 310 | AM47: ΟΑ ΧΑΝΙΩΝ | AN47: S | AO47: κ16 | AP47: 11 | AQ47: 3350
X48: ΑΟ ΚΗΦΙΣΙΑΣ | Y48: 321 | Z48: Η | AD48: ΚΟΥΤΣΟΛΑΜΠΡΟΥ Α | AF48: Ε1S-16-1st | AG48: 120 | AI48: 43127Ε3 4η (ΣΤ)261Sα12 | AJ48: 2018-01-27 | AK48: Ε3 4η (ΣΤ) | AL48: 261 | AM48: ΑΕΤ ΝΙΚΗ ΠΑΤΡΩΝ | AN48: S | AO48: α12 | AP48: 5 | AQ48: 3351
X49: ΑΟ ΚΡΑΝΙΔΙΟΥ | Y49: 264 | Z49: ΣΤ | AD49: ΚΡΑΝΙΩΤΗ Σ | AF49: Ε1S-16-2nd | AG49: 100 | AI49: 43127Ε3 4η (ΣΤ)261Sα16 | AJ49: 2018-01-27 | AK49: Ε3 4η (ΣΤ) | AL49: 261 | AM49: ΑΕΤ ΝΙΚΗ ΠΑΤΡΩΝ | AN49: S | AO49: α16 | AP49: 7 | AQ49: 3380
X50: ΑΟ ΚΥΔΩΝΙΑΣ | Y50: 299 | Z50: Ζ | AD50: ΚΩΝΣΤΑΝΤΙΝΟΥ Κ | AF50: Ε1S-16-3_4 | AG50: 60 | AI50: 43127Ε3 4η (ΣΤ)261Sκ12 | AJ50: 2018-01-27 | AK50: Ε3 4η (ΣΤ) | AL50: 261 | AM50: ΑΕΤ ΝΙΚΗ ΠΑΤΡΩΝ | AN50: S | AO50: κ12 | AP50: 9 | AQ50: 3381
X51: ΑΟ ΛΑΓΟΝΗΣΙΟΥ | Y51: 322 | Z51: Η | AD51: ΚΩΣΤΙΔΟΥ Χ | AF51: Ε1S-16-5_8 | AG51: 40 | AI51: 43127Ε3 4η (ΣΤ)261Sκ16 | AJ51: 2018-01-27 | AK51: Ε3 4η (ΣΤ) | AL51: 261 | AM51: ΑΕΤ ΝΙΚΗ ΠΑΤΡΩΝ | AN51: S | AO51: κ16 | AP51: 11 | AQ51: 3382
X52: ΑΟ ΛΑΤΩ ΑΓ ΝΙΚΟΛΑΟΥ | Y52: 300 | Z52: Ζ | AD52: ΛΑΖΑΡΙΔΗΣ Ι | AF52: Ε1S-16-9_16 | AG52: 30 | AI52: 43127Ε3 4η (Β)124Sα14 | AJ52: 2018-01-27 | AK52: Ε3 4η (Β) | AL52: 124 | AM52: ΑΑ ΑΛΜΠΑΤΡΟΣ | AN52: S | AO52: α14 | AP52: 6 | AQ52: 3352
X53: ΑΟ ΛΙΒΑΔΕΙΩΝ ΒΟΥΡΕΙΟΣ | Y53: 323 | Z53: Η | AD53: ΛΑΛΟΥΜΗΣ Λ | AF53: Ε1S-16-17_32 | AG53: 4 | AI53: 43127Ε3 4η (Β)124Sκ14 | AJ53: 2018-01-27 | AK53: Ε3 4η (Β) | AL53: 124 | AM53: ΑΑ ΑΛΜΠΑΤΡΟΣ | AN53: S | AO53: κ14 | AP53: 10 | AQ53: 3353
X54: ΑΟ ΜΑΡΚΟΠΟΥΛΟΥ | Y54: 479 | Z54: Η | AD54: ΛΑΜΠΡΟΥ Μ | AF54: Ε1S-16-q8 | AG54: 8 | AI54: 43127Ε3 4η (Γ)171Sα14 | AJ54: 2018-01-27 | AK54: Ε3 4η (Γ) | AL54: 171 | AM54: ΑΟΑ ΚΑΤΕΡΙΝΗΣ | AN54: S | AO54: α14 | AP54: 6 | AQ54: 3354
X55: ΑΟ ΜΕΓΑΣ ΑΛΕΞΑΝΔΡΟΣ | Y55: 418 | Z55: ΙΑ | AD55: ΛΙΓΓΟΣ Ι | AF55: Ε1S-16-q16 | AG55: 8 | AI55: 43127Ε3 4η (Γ)171Sκ14 | AJ55: 2018-01-27 | AK55: Ε3 4η (Γ) | AL55: 171 | AM55: ΑΟΑ ΚΑΤΕΡΙΝΗΣ | AN55: S | AO55: κ14 | AP55: 10 | AQ55: 3355
X56: ΑΟ ΜΟΡΤΕΡΟΥ | Y56: 480 | Z56: Η | AD56: ΜΕΛΛΙΟΣ Α | AF56: Ε1S-16-q8/2 | AG56: 4 | AI56: 43133Ε2 5η (ΣΤ)294Sα12 | AJ56: 2018-02-02 | AK56: Ε2 5η (ΣΤ) | AL56: 294 | AM56: ΣΑ ΤΡΙΠΟΛΗΣ | AN56: S | AO56: α12 | AP56: 5 | AQ56: 3362
X57: ΑΟ ΜΥΤΙΛΗΝΗΣ | Y57: 371 | Z57: Θ | AD57: ΜΙΧΑΗΛΙΔΗΣ Σ | AF57: Ε1S-16-q32 | AG57: 4 | AI57: 43133Ε2 5η (ΣΤ)294Sκ12 | AJ57: 2018-02-02 | AK57: Ε2 5η (ΣΤ) | AL57: 294 | AM57: ΣΑ ΤΡΙΠΟΛΗΣ | AN57: S | AO57: κ12 | AP57: 9 | AQ57: 3363
X58: ΑΟ Ν ΣΜΥΡΝΗΣ ΜΙΛΩΝ | Y58: 419 | Z58: ΙΑ | AD58: ΜΟΥΡΒΑΤΗΣ Π | AF58: Ε1S-16-33_64 | AG58: 0 | AI58: 43133Ε2 5η (ΣΤ)294Sα16 | AJ58: 2018-02-02 | AK58: Ε2 5η (ΣΤ) | AL58: 294 | AM58: ΣΑ ΤΡΙΠΟΛΗΣ | AN58: S | AO58: α16 | AP58: 7 | AQ58: 3364
X59: ΑΟ ΝΕΟΥ ΦΑΛΗΡΟΥ | Y59: 490 | Z59: Θ | AD59: ΜΟΥΡΤΖΙΟΥ Ι | AF59: Ε1S-16-q | AG59: 0 | AI59: 43133Ε2 5η (ΣΤ)294Sκ16 | AJ59: 2018-02-02 | AK59: Ε2 5η (ΣΤ) | AL59: 294 | AM59: ΣΑ ΤΡΙΠΟΛΗΣ | AN59: S | AO59: κ16 | AP59: 11 | AQ59: 3365
X60: ΑΟ ΝΦ ΑΤΤΑΛΟΣ | Y60: 326 | Z60: Η | AD60: ΜΠΑΛΑΦΑΣ Σ | AF60: Ε1S-16-q64 | AG60: 0 | AI60: 43133Ε2 5η (ΣΤ)270Sα14 | AJ60: 2018-02-02 | AK60: Ε2 5η (ΣΤ) | AL60: 270 | AM60: ΑΡΚΑΔΙΚΟΣ ΟΑ ΑΤΛΑΣ | AN60: S | AO60: α14 | AP60: 6 | AQ60: 3366
X61: ΑΟ ΟΛΥΜΠΙΑΔΑ ΒΥΡΩΝΑ | Y61: 481 | Z61: Η | AD61: ΜΠΑΡΚΑΣ Α | AF61: Ε1S-16-q128 | AG61: 0 | AI61: 43133Ε2 5η (ΣΤ)270Sκ14 | AJ61: 2018-02-02 | AK61: Ε2 5η (ΣΤ) | AL61: 270 | AM61: ΑΡΚΑΔΙΚΟΣ ΟΑ ΑΤΛΑΣ | AN61: S | AO61: κ14 | AP61: 10 | AQ61: 3367
X62: ΑΟ ΟΡΕΣΤΙΑΔΑΣ | Y62: 103 | Z62: Α | AD62: ΜΠΑΡΜΠΟΠΟΥΛΟΣ Κ | AF62: Ε1S-16-q256 | AG62: 0 | AI62: 43133Ε2 5η (Ζ)305Sα12 | AJ62: 2018-02-02 | AK62: Ε2 5η (Ζ) | AL62: 305 | AM62: ΗΡΑΚΛΕΙΟ ΟΑΑ | AN62: S | AO62: α12 | AP62: 5 | AQ62: 3368
X63: ΑΟ Π ΦΑΛΗΡΟΥ | Y63: 420 | Z63: ΙΑ | AD63: ΜΠΑΤΣΙΟΣ Κ | AF63: Ε1S-16-wo | AG63: 0 | AI63: 43133Ε2 5η (Ζ)305Sκ12 | AJ63: 2018-02-02 | AK63: Ε2 5η (Ζ) | AL63: 305 | AM63: ΗΡΑΚΛΕΙΟ ΟΑΑ | AN63: S | AO63: κ12 | AP63: 9 | AQ63: 3369
X64: ΑΟ ΠΑΡΑΔΕΙΣΟΣ ΑΜΑΡΟΥΣΙΟΥ | Y64: 482 | Z64: Η | AD64: ΝΙΚΗΦΟΡΑΚΗΣ Σ | AF64: Ε1D-16-1st | AG64: 30 | AI64: 43133Ε2 5η (Ζ)305Sα14 | AJ64: 2018-02-02 | AK64: Ε2 5η (Ζ) | AL64: 305 | AM64: ΗΡΑΚΛΕΙΟ ΟΑΑ | AN64: S | AO64: α14 | AP64: 6 | AQ64: 3370
X65: ΑΟ ΠΑΡΓΑΣ | Y65: 468 | Z65: Δ | AD65: ΝΤΑΛΑΜΑΓΚΑ Β | AF65: Ε1D-16-2nd | AG65: 26 | AI65: 43133Ε2 5η (Ζ)305Sκ14 | AJ65: 2018-02-02 | AK65: Ε2 5η (Ζ) | AL65: 305 | AM65: ΗΡΑΚΛΕΙΟ ΟΑΑ | AN65: S | AO65: κ14 | AP65: 10 | AQ65: 3371
X66: ΑΟ ΠΕΥΚΗΣ TIE BREAK | Y66: 329 | Z66: Η | AD66: ΝΤΙΝΟΠΟΥΛΟΣ Π | AF66: Ε1D-16-3_4 | AG66: 16 | AI66: 43133Ε2 5η (Ζ)305Sα16 | AJ66: 2018-02-02 | AK66: Ε2 5η (Ζ) | AL66: 305 | AM66: ΗΡΑΚΛΕΙΟ ΟΑΑ | AN66: S | AO66: α16 | AP66: 7 | AQ66: 3372
X67: ΑΟ ΠΟΣΕΙΔΩΝ ΛΟΥΤΡΑΚΙΟΥ | Y67: 265 | Z67: ΣΤ | AD67: ΟΥΛΑΣΟΓΛΟΥ Ν | AF67: Ε1D-16-5_8 | AG67: 10 | AI67: =AJ67&AK67&AL67&AN67&AO67 -> 43133Ε2 5η (Ζ)305Sκ16 | AJ67: 2018-02-02 | AK67: Ε2 5η (Ζ) | AL67: 305 | AM67: ΗΡΑΚΛΕΙΟ ΟΑΑ | AN67: S | AO67: κ16 | AP67: 11 | AQ67: 3373
X68: ΑΟ ΣΙΚΥΩΝΟΣ ΚΙΑΤΟΥ | Y68: 266 | Z68: ΣΤ | AD68: ΟΥΝΑΝΙΔΟΥ Λ | AF68: Ε1D-16-9_16 | AG68: 8 | AI68: 43133Ε2 5η (Ζ)305Dα12 | AJ68: 2018-02-02 | AK68: Ε2 5η (Ζ) | AL68: 305 | AM68: ΗΡΑΚΛΕΙΟ ΟΑΑ | AN68: D | AO68: α12 | AP68: 13 | AQ68: 3403
X69: ΑΟ ΤΑΤΑΥΛΑ ΚΩΝΣΤ | Y69: 421 | Z69: ΙΑ | AD69: ΟΥΡΑΝΙΔΗΣ Φ | AF69: Ε1D-16-17_32 | AG69: 0 | AI69: 43133Ε2 5η (Ζ)305Dα14 | AJ69: 2018-02-02 | AK69: Ε2 5η (Ζ) | AL69: 305 | AM69: ΗΡΑΚΛΕΙΟ ΟΑΑ | AN69: D | AO69: α14 | AP69: 14 | AQ69: 3404
X70: ΑΟ ΤΑΤΟΪΟΥ | Y70: 330 | Z70: Η | AD70: ΠΑΛΑΙΣΤΗ Γ | AF70: Ε1D-16-wo | AG70: 0 | AI70: 43133Ε2 5η (Ζ)305Dα16 | AJ70: 2018-02-02 | AK70: Ε2 5η (Ζ) | AL70: 305 | AM70: ΗΡΑΚΛΕΙΟ ΟΑΑ | AN70: D | AO70: α16 | AP70: 15 | AQ70: 3405
X71: ΑΟ ΤΕΡΨΙΘΕΑΣ ΓΛΥΦΑΔΑΣ | Y71: 422 | Z71: ΙΑ | AD71: ΠΑΛΑΙΣΤΗ Ν | AF71: Ε1S-18-1st | AG71: 150 | AI71: 43133Ε2 5η (Ζ)305Dκ12 | AJ71: 2018-02-02 | AK71: Ε2 5η (Ζ) | AL71: 305 | AM71: ΗΡΑΚΛΕΙΟ ΟΑΑ | AN71: D | AO71: κ12 | AP71: 17 | AQ71: 3406
X72: ΑΟ ΦΙΛΙΠΠΟΣ ΠΟΛΥΔΡΟΣΟΥ | Y72: 331 | Z72: Η | AD72: ΠΑΛΑΙΣΤΗ Χ | AF72: Ε1S-18-2nd | AG72: 125 | AI72: 43133Ε2 5η (Ζ)305Dκ14 | AJ72: 2018-02-02 | AK72: Ε2 5η (Ζ) | AL72: 305 | AM72: ΗΡΑΚΛΕΙΟ ΟΑΑ | AN72: D | AO72: κ14 | AP72: 18 | AQ72: 3407
X73: ΑΟ ΦΟΥΡΕΣΙ ΓΛ ΝΕΡΩΝ | Y73: 483 | Z73: Η | AD73: ΠΑΝΤΕΛΙΔΗΣ Σ | AF73: Ε1S-18-3_4 | AG73: 75 | AI73: 43133Ε2 5η (Ζ)305Dκ16 | AJ73: 2018-02-02 | AK73: Ε2 5η (Ζ) | AL73: 305 | AM73: ΗΡΑΚΛΕΙΟ ΟΑΑ | AN73: D | AO73: κ16 | AP73: 19 | AQ73: 3408
X74: ΑΟ ΧΡΥΣΟΥΠΟΛΗΣ | Y74: 104 | Z74: Α | AD74: ΠΑΠΑΒΑΣΙΛΕΙΟΥ Χ | AF74: Ε1S-18-5_8 | AG74: 50 | AI74: 43133Ε2 5η (Ε)256Sα12 | AJ74: 2018-02-02 | AK74: Ε2 5η (Ε) | AL74: 256 | AM74: ΦΘΙΩΤΙΚΟΣ ΟΑ | AN74: S | AO74: α12 | AP74: 5 | AQ74: 3374
X75: ΑΟΑ ΑΙΓΑΛΕΩ 92 | Y75: 373 | Z75: Θ | AD75: ΠΑΠΑΝΙΚΟΛΑΟΥ Γ | AF75: Ε1S-18-9_16 | AG75: 37.5 | AI75: 43133Ε2 5η (Ε)256Sκ12 | AJ75: 2018-02-02 | AK75: Ε2 5η (Ε) | AL75: 256 | AM75: ΦΘΙΩΤΙΚΟΣ ΟΑ | AN75: S | AO75: κ12 | AP75: 9 | AQ75: 3375
X76: ΑΟΑ ΑΛΕΞΑΝΔΡΟΣ Β | Y76: 333 | Z76: Η | AD76: ΠΑΠΑΧΡΗΣΤΟΥ Δ | AF76: Ε1S-18-17_32 | AG76: 5 | AI76: 43133Ε2 5η (Ε)256Dα12 | AJ76: 2018-02-02 | AK76: Ε2 5η (Ε) | AL76: 256 | AM76: ΦΘΙΩΤΙΚΟΣ ΟΑ | AN76: D | AO76: α12 | AP76: 13 | AQ76: 3413
X77: ΑΟΑ ΑΜΠΕΛ ΜΕΝΕΜΕΝΗΣ | Y77: 128 | Z77: Β | AD77: ΠΑΠΠΑΣ Α | AF77: Ε1S-18-q8 | AG77: 10 | AI77: 43133Ε2 5η (Ε)256Dκ12 | AJ77: 2018-02-02 | AK77: Ε2 5η (Ε) | AL77: 256 | AM77: ΦΘΙΩΤΙΚΟΣ ΟΑ | AN77: D | AO77: κ12 | AP77: 17 | AQ77: 3414
X78: ΑΟΑ ΑΡΓΥΡΟΥΠΟΛΗΣ | Y78: 423 | Z78: ΙΑ | AD78: ΠΑΠΠΑΣ Π | AF78: Ε1S-18-q16 | AG78: 10 | AI78: 43133Ε2 5η (Ε)244Sα14 | AJ78: 2018-02-02 | AK78: Ε2 5η (Ε) | AL78: 244 | AM78: ΟΑ ΜΑΓΝΗΣΙΑΣ | AN78: S | AO78: α14 | AP78: 6 | AQ78: 3376
X79: ΑΟΑ ΑΣΤΕΡΑΣ ΘΕΣ | Y79: 129 | Z79: Β | AD79: ΠΑΤΡΙΚΙΟΣ Ν | AF79: Ε1S-18-q8/2 | AG79: 5 | AI79: 43133Ε2 5η (Ε)244Sκ14 | AJ79: 2018-02-02 | AK79: Ε2 5η (Ε) | AL79: 244 | AM79: ΟΑ ΜΑΓΝΗΣΙΑΣ | AN79: S | AO79: κ14 | AP79: 10 | AQ79: 3377
X80: ΑΟΑ ΑΤΤΙΚΟΣ ΗΛΙΟΣ | Y80: 334 | Z80: Η | AD80: ΠΑΤΣΟΥΡΑΚΟΥ Δ | AF80: Ε1S-18-q32 | AG80: 5 | AI80: 43133Ε2 5η (Ε)244Sα16 | AJ80: 2018-02-02 | AK80: Ε2 5η (Ε) | AL80: 244 | AM80: ΟΑ ΜΑΓΝΗΣΙΑΣ | AN80: S | AO80: α16 | AP80: 7 | AQ80: 3378
X81: ΑΟΑ ΔΗΜΟΥ ΕΛΕΥΘΕΡΩΝ | Y81: 105 | Z81: Α | AD81: ΠΕΡΝΑΓΚΙΔΗ Γ | AF81: Ε1S-18-33_64 | AG81: 0 | AI81: 43133Ε2 5η (Ε)244Sκ16 | AJ81: 2018-02-02 | AK81: Ε2 5η (Ε) | AL81: 244 | AM81: ΟΑ ΜΑΓΝΗΣΙΑΣ | AN81: S | AO81: κ16 | AP81: 11 | AQ81: 3379
X82: ΑΟΑ ΕΛΕΥΣΙΝΑΣ | Y82: 441 | Z82: Θ | AD82: ΠΟΝΤΙΔΑΣ Α | AF82: Ε1S-18-q | AG82: 0 | AI82: 43133Ε2 5η (Ε)244Dα14 | AJ82: 2018-02-02 | AK82: Ε2 5η (Ε) | AL82: 244 | AM82: ΟΑ ΜΑΓΝΗΣΙΑΣ | AN82: D | AO82: α14 | AP82: 14 | AQ82: 3409
X83: ΑΟΑ ΗΛΙΟΥΠΟΛΗΣ | Y83: 424 | Z83: ΙΑ | AD83: ΠΡΑΣΙΝΟΣ Β | AF83: Ε1S-18-q64 | AG83: 0 | AI83: 43133Ε2 5η (Ε)244Dα16 | AJ83: 2018-02-02 | AK83: Ε2 5η (Ε) | AL83: 244 | AM83: ΟΑ ΜΑΓΝΗΣΙΑΣ | AN83: D | AO83: α16 | AP83: 15 | AQ83: 3410
X84: ΑΟΑ ΚΑΒΑΛΑΣ | Y84: 106 | Z84: Α | AD84: ΠΡΙΤΣΚΑΣ Π | AF84: Ε1S-18-q128 | AG84: 0 | AI84: 43133Ε2 5η (Ε)244Dκ14 | AJ84: 2018-02-02 | AK84: Ε2 5η (Ε) | AL84: 244 | AM84: ΟΑ ΜΑΓΝΗΣΙΑΣ | AN84: D | AO84: κ14 | AP84: 18 | AQ84: 3411
X85: ΑΟΑ ΚΑΒΟΥΡΙΟΥ | Y85: 442 | Z85: ΙΑ | AD85: ΣΑΚΚΑΣ Β | AF85: Ε1S-18-q256 | AG85: 0 | AI85: 43133Ε2 5η (Ε)244Dκ16 | AJ85: 2018-02-02 | AK85: Ε2 5η (Ε) | AL85: 244 | AM85: ΟΑ ΜΑΓΝΗΣΙΑΣ | AN85: D | AO85: κ16 | AP85: 19 | AQ85: 3412
X86: ΑΟΑ ΚΑΙΣΑΡΙΑΝΗΣ | Y86: 390 | Z86: Θ | AD86: ΣΑΜΑΡΑ Ε | AF86: Ε1S-18-wo | AG86: 0 | AI86: 43120Ε3 3η (Γ)192Sα12 | AJ86: 2018-01-20 | AK86: Ε3 3η (Γ) | AL86: 192 | AM86: ΟΑ ΛΙΤΟΧΩΡΟΥ | AN86: S | AO86: α12 | AP86: 5 | AQ86: 3383
X87: ΑΟΑ ΚΑΣΤΟΡΙΑΣ | Y87: 463 | Z87: Γ | AD87: ΣΑΡΑΤΖΙΔΗΣ Δ | AF87: Ε1D-18-1st | AG87: 37.5 | AI87: 43120Ε3 3η (Γ)192Sκ12 | AJ87: 2018-01-20 | AK87: Ε3 3η (Γ) | AL87: 192 | AM87: ΟΑ ΛΙΤΟΧΩΡΟΥ | AN87: S | AO87: κ12 | AP87: 9 | AQ87: 3384
X88: ΑΟΑ ΚΑΤΕΡΙΝΗΣ | Y88: 171 | Z88: Γ | AD88: ΣΑΧΠΑΤΖΙΔΗΣ Γ | AF88: Ε1D-18-2nd | AG88: 32.5 | AI88: 43120Ε3 3η (Γ)171Sα16 | AJ88: 2018-01-20 | AK88: Ε3 3η (Γ) | AL88: 171 | AM88: ΑΟΑ ΚΑΤΕΡΙΝΗΣ | AN88: S | AO88: α16 | AP88: 7 | AQ88: 3385
X89: ΑΟΑ ΚΟΖΑΝΗΣ | Y89: 464 | Z89: Γ | AD89: ΣΙΑΠΑΤΗΣ Γ | AF89: Ε1D-18-3_4 | AG89: 20 | AI89: 43120Ε3 3η (Γ)171Sκ16 | AJ89: 2018-01-20 | AK89: Ε3 3η (Γ) | AL89: 171 | AM89: ΑΟΑ ΚΑΤΕΡΙΝΗΣ | AN89: S | AO89: κ16 | AP89: 11 | AQ89: 3386
X90: ΑΟΑ ΛΕ ΡΑΚΕΤ | Y90: 130 | Z90: Β | AD90: ΣΙΟΝΤΗ Η | AF90: Ε1D-18-5_8 | AG90: 12.5 | AI90: 43140Ε3 6η (Η)363Sα12 | AJ90: 2018-02-09 | AK90: Ε3 6η (Η) | AL90: 363 | AM90: ΣΑ ΡΑΦΗΝΑΣ | AN90: S | AO90: α12 | AP90: 5 | AQ90: 3387
X91: ΑΟΑ ΜΕΓΑΛΟΠΟΛΗΣ | Y91: 267 | Z91: ΣΤ | AD91: ΣΙΡΠΟΣ Π | AF91: Ε1D-18-9_16 | AG91: 10 | AI91: 43140Ε3 6η (Η)363Sκ12 | AJ91: 2018-02-09 | AK91: Ε3 6η (Η) | AL91: 363 | AM91: ΣΑ ΡΑΦΗΝΑΣ | AN91: S | AO91: κ12 | AP91: 9 | AQ91: 3388
X92: ΑΟΑ Ν ΠΕΡΑΜΟΥ ΤΙΤΑΝΕΣ | Y92: 107 | Z92: Α | AD92: ΣΚΟΥΡΤΙΑΣ Ε | AF92: Ε1D-18-wo | AG92: 0 | AI92: 43140Ε3 6η (Η)363Sα16 | AJ92: 2018-02-09 | AK92: Ε3 6η (Η) | AL92: 363 | AM92: ΣΑ ΡΑΦΗΝΑΣ | AN92: S | AO92: α16 | AP92: 7 | AQ92: 3389
X93: ΑΟΑ ΠΑΠΑΓΟΥ | Y93: 425 | Z93: ΙΑ | AD93: ΣΠΑΘΗΣ Μ | AF93: Ε1D-18-17_32 | AG93: 0 | AI93: 43140Ε3 6η (Η)363Sκ16 | AJ93: 2018-02-09 | AK93: Ε3 6η (Η) | AL93: 363 | AM93: ΣΑ ΡΑΦΗΝΑΣ | AN93: S | AO93: κ16 | AP93: 11 | AQ93: 3390
X94: ΑΟΑ ΠΑΤΡΩΝ | Y94: 268 | Z94: ΣΤ | AD94: ΣΤΑΜΑΤΙΑΔΗΣ Γ | AF94: Ε2S-12-1st | AG94: 15 | AI94: 43147Ε1 7η (ΙΑ)424Sα12 | AJ94: 2018-02-16 | AK94: Ε1 7η (ΙΑ) | AL94: 424 | AM94: ΑΟΑ ΗΛΙΟΥΠΟΛΗΣ | AN94: S | AO94: α12 | AP94: 5 | AQ94: 3429
X95: ΑΟΑ ΠΟΣΕΙΔΩΝ ΘΕΣ | Y95: 131 | Z95: Β | AD95: ΣΤΑΜΑΤΙΑΔΟΥ Ε | AF95: Ε2S-12-2nd | AG95: 12.5 | AI95: 43147Ε1 7η (ΙΑ)424Sκ12 | AJ95: 2018-02-16 | AK95: Ε1 7η (ΙΑ) | AL95: 424 | AM95: ΑΟΑ ΗΛΙΟΥΠΟΛΗΣ | AN95: S | AO95: κ12 | AP95: 9 | AQ95: 3430
X96: ΑΟΑ ΠΡΩΤΑΘΛ ΚΑΒΑΛΑΣ | Y96: 108 | Z96: Α | AD96: ΣΤΑΦΥΛΙΔΗΣ Α | AF96: Ε2S-12-3_4 | AG96: 7.5 | AI96: 43147Ε1 7η (ΙΑ)424Sα14 | AJ96: 2018-02-16 | AK96: Ε1 7η (ΙΑ) | AL96: 424 | AM96: ΑΟΑ ΗΛΙΟΥΠΟΛΗΣ | AN96: S | AO96: α14 | AP96: 6 | AQ96: 3431
X97: ΑΟΑ ΡΕΘΥΜΝΟ ΤΚ | Y97: 476 | Z97: Ζ | AD97: ΣΤΕΦΑΝΙΔΗΣ Γ | AF97: Ε2S-12-5_8 | AG97: 5 | AI97: 43147Ε1 7η (ΙΑ)424Sκ14 | AJ97: 2018-02-16 | AK97: Ε1 7η (ΙΑ) | AL97: 424 | AM97: ΑΟΑ ΗΛΙΟΥΠΟΛΗΣ | AN97: S | AO97: κ14 | AP97: 10 | AQ97: 3432
X98: ΑΟΑ ΣΤΑΥΡΟΥΠΟΛΗΣ ΙΦΙΤΟΣ | Y98: 132 | Z98: Β | AD98: ΣΤΟΛΗ Κ | AF98: Ε2S-12-9_16 | AG98: 4 | AI98: 43147Ε1 7η (ΙΑ)424Dα12 | AJ98: 2018-02-16 | AK98: Ε1 7η (ΙΑ) | AL98: 424 | AM98: ΑΟΑ ΗΛΙΟΥΠΟΛΗΣ | AN98: D | AO98: α12 | AP98: 13 | AQ98: 3433
X99: ΑΟΑ ΥΕΛΟΥ | Y99: 335 | Z99: Η | AD99: ΤΑΜΠΟΣΗ Τ | AF99: Ε2S-12-17_32 | AG99: 0.5 | AI99: 43147Ε1 7η (ΙΑ)424Dκ12 | AJ99: 2018-02-16 | AK99: Ε1 7η (ΙΑ) | AL99: 424 | AM99: ΑΟΑ ΗΛΙΟΥΠΟΛΗΣ | AN99: D | AO99: κ12 | AP99: 17 | AQ99: 3434
X100: ΑΟΑ ΦΙΛΟΘΕΗΣ | Y100: 336 | Z100: Η | AD100: ΤΑΡΑΜΟΝΛΗΣ Ι | AF100: Ε2S-12-q8 | AG100: 1 | AI100: 43147Ε1 7η (ΙΑ)424Dα14 | AJ100: 2018-02-16 | AK100: Ε1 7η (ΙΑ) | AL100: 424 | AM100: ΑΟΑ ΗΛΙΟΥΠΟΛΗΣ | AN100: D | AO100: α14 | AP100: 14 | AQ100: 3435
X101: ΑΟΑ Χ ΤΡΙΠΟΛΗΣ | Y101: 500 | Z101: ΣΤ | AD101: ΤΖΙΓΚΟΥΝΑΚΗΣ Κ | AF101: Ε2S-12-q16 | AG101: 1 | AI101: 43147Ε1 7η (ΙΑ)424Dκ14 | AJ101: 2018-02-16 | AK101: Ε1 7η (ΙΑ) | AL101: 424 | AM101: ΑΟΑ ΗΛΙΟΥΠΟΛΗΣ | AN101: D | AO101: κ14 | AP101: 18 | AQ101: 3436
X102: ΑΟΑ ΧΑΪΔΑΡΙΟΥ | Y102: 374 | Z102: Θ | AD102: ΤΖΟΒΑΡΑΣ Ν | AF102: Ε2S-12-q8/2 | AG102: 0.5 | AI102: 43147Ε1 7η (ΙΑ)435Sα16 | AJ102: 2018-02-16 | AK102: Ε1 7η (ΙΑ) | AL102: 435 | AM102: ΟΑ ΓΛΥΦΑΔΑΣ | AN102: S | AO102: α16 | AP102: 7 | AQ102: 3437
X103: ΑΠΜΣ ΑΣΚΗΣΗ ΗΡΑΚΛΕΙΟΥ | Y103: 302 | Z103: Ζ | AD103: ΤΟΚΑΤΛΙΔΗΣ Χ | AF103: Ε2S-12-q32 | AG103: 0.5 | AI103: 43147Ε1 7η (ΙΑ)435Sκ16 | AJ103: 2018-02-16 | AK103: Ε1 7η (ΙΑ) | AL103: 435 | AM103: ΟΑ ΓΛΥΦΑΔΑΣ | AN103: S | AO103: κ16 | AP103: 11 | AQ103: 3438
X104: ΑΠΟ ΣΑΝΗ | Y104: 337 | Z104: Η | AD104: ΤΟΥΤΟΥΚΤΣΗΣ Ε | AF104: Ε2S-12-33_64 | AG104: 0 | AI104: 43147Ε1 7η (ΙΑ)435Sα18 | AJ104: 2018-02-16 | AK104: Ε1 7η (ΙΑ) | AL104: 435 | AM104: ΟΑ ΓΛΥΦΑΔΑΣ | AN104: S | AO104: α18 | AP104: 8 | AQ104: 3439
X105: ΑΡΚΑΔΙΚΟΣ ΟΑ ΑΤΛΑΣ | Y105: 270 | Z105: ΣΤ | AD105: ΤΡΙΚΚΑ-ΨΩΜΑ Δ | AF105: Ε2S-12-q | AG105: 0 | AI105: 43147Ε1 7η (ΙΑ)435Sκ18 | AJ105: 2018-02-16 | AK105: Ε1 7η (ΙΑ) | AL105: 435 | AM105: ΟΑ ΓΛΥΦΑΔΑΣ | AN105: S | AO105: κ18 | AP105: 12 | AQ105: 3440
X106: ΑΣ ΑΘΛΟΠΑΙΔΕΙΑ ΝΑΞΟΥ | Y106: 509 | Z106: Η | AD106: ΤΣΑΓΛΙΩΤΗΣ Ε | AF106: Ε2S-12-q64 | AG106: 0 | AI106: 43147Ε1 7η (ΙΑ)435Dα16 | AJ106: 2018-02-16 | AK106: Ε1 7η (ΙΑ) | AL106: 435 | AM106: ΟΑ ΓΛΥΦΑΔΑΣ | AN106: D | AO106: α16 | AP106: 15 | AQ106: 3441
X107: ΑΣ ΑΚΑΔ ΠΡΩΤΑΘΛ ΠΕΥΚΩΝ | Y107: 133 | Z107: Β | AD107: ΤΣΑΡΚΝΙΑΣ Π | AF107: Ε2S-12-q128 | AG107: 0 | AI107: 43147Ε1 7η (ΙΑ)435Dκ16 | AJ107: 2018-02-16 | AK107: Ε1 7η (ΙΑ) | AL107: 435 | AM107: ΟΑ ΓΛΥΦΑΔΑΣ | AN107: D | AO107: κ16 | AP107: 19 | AQ107: 3442
X108: ΑΣ ΑΚΡΟΠΟΛΙΣ | Y108: 338 | Z108: Η | AD108: ΤΣΑΡΚΝΙΑΣ Σ | AF108: Ε2S-12-q256 | AG108: 0 | AI108: 43147Ε1 7η (ΙΑ)435Dα18 | AJ108: 2018-02-16 | AK108: Ε1 7η (ΙΑ) | AL108: 435 | AM108: ΟΑ ΓΛΥΦΑΔΑΣ | AN108: D | AO108: α18 | AP108: 16 | AQ108: 3443
X109: ΑΣ ΑΝΤΙΣΦΑΙΡΙΣΗ κ ΖΩΗ | Y109: 444 | Z109: Ε | AD109: ΤΣΙΑΡΤΑΣ Β | AF109: Ε2S-12-wo | AG109: 0 | AI109: 43147Ε1 7η (ΙΑ)435Dκ18 | AJ109: 2018-02-16 | AK109: Ε1 7η (ΙΑ) | AL109: 435 | AM109: ΟΑ ΓΛΥΦΑΔΑΣ | AN109: D | AO109: κ18 | AP109: 20 | AQ109: 3444
X110: ΑΣ ΑΠΟΛΛΩΝ ΚΑΛΥΜΝΟΥ | Y110: 375 | Z110: Θ | AD110: ΤΣΟΥΛΦΑ Α | AF110: Ε2D-12-1st | AG110: 4 | AI110: 43147Ε4 7η (ΙΑ)439Sα12 | AJ110: 2018-02-16 | AK110: Ε4 7η (ΙΑ) | AL110: 439 | AM110: ΟΑ ΧΟΛΑΡΓΟΥ | AN110: S | AO110: α12 | AP110: 5 | AQ110: 3445
X111: ΑΣ ΑΣΤΕΡΑΣ ΠΕΝΤΕΛΙΚΟΥ | Y111: 484 | Z111: Η | AD111: ΦΟΝΔΟΥΛΑΚΟΣ Μ | AF111: Ε2D-12-2nd | AG111: 3 | AI111: 43147Ε4 7η (ΙΑ)439Sκ12 | AJ111: 2018-02-16 | AK111: Ε4 7η (ΙΑ) | AL111: 439 | AM111: ΟΑ ΧΟΛΑΡΓΟΥ | AN111: S | AO111: κ12 | AP111: 9 | AQ111: 3446
X112: ΑΣ ΒΑ ΚΥΝΟΥΡΙΑΣ ΑΙΟΛΟΣ | Y112: 271 | Z112: ΣΤ | AD112: ΧΑΝΤΖΗΣ Δ | AF112: Ε2D-12-3_4 | AG112: 2 | AI112: 43147Ε4 7η (ΙΑ)439Sα14 | AJ112: 2018-02-16 | AK112: Ε4 7η (ΙΑ) | AL112: 439 | AM112: ΟΑ ΧΟΛΑΡΓΟΥ | AN112: S | AO112: α14 | AP112: 6 | AQ112: 3449
X113: ΑΣ ΒΕΡΟΙΑΣ ΗΜΑΘΙΩΝ | Y113: 173 | Z113: Γ | AD113: ΧΑΡΜΑΝΑΣ Α | AF113: Ε2D-12-5_8 | AG113: 1.5 | AI113: 43147Ε4 7η (ΙΑ)439Sκ14 | AJ113: 2018-02-16 | AK113: Ε4 7η (ΙΑ) | AL113: 439 | AM113: ΟΑ ΧΟΛΑΡΓΟΥ | AN113: S | AO113: κ14 | AP113: 10 | AQ113: 3450
X114: ΑΣ Δ ΚΟΛΛΕΓΙΟΥ ICBS 2009 | Y114: 134 | Z114: Β | AD114: ΧΑΤΖΗΜΕΝΤΩΡ Α | AF114: Ε2D-12-9_16 | AG114: 1 | AI114: 43147Ε4 7η (ΙΑ)424Sα16 | AJ114: 2018-02-16 | AK114: Ε4 7η (ΙΑ) | AL114: 424 | AM114: ΑΟΑ ΗΛΙΟΥΠΟΛΗΣ | AN114: S | AO114: α16 | AP114: 7 | AQ114: 3447
X115: ΑΣ Η ΠΑΡΝΗΘΑ | Y115: 376 | Z115: Θ | AD115: ΧΡΙΣΤΟΠΟΥΛΟΣ Χ | AF115: Ε2D-12-17_32 | AG115: 0 | AI115: 43147Ε4 7η (ΙΑ)424Sκ16 | AJ115: 2018-02-16 | AK115: Ε4 7η (ΙΑ) | AL115: 424 | AM115: ΑΟΑ ΗΛΙΟΥΠΟΛΗΣ | AN115: S | AO115: κ16 | AP115: 11 | AQ115: 3448
X116: ΑΣ ΚΑΡΠΕΝΗΣΙ ΤΕΝΙΣ ΚΛΑΜΠ | Y116: 224 | Z116: Ε | AD116: ΧΡΟΝΗ Ο | AF116: Ε2D-12-wo | AG116: 0 | AI116: 43161Ε3 9η (Θ)400Sα12 | AJ116: 2018-03-02 | AK116: Ε3 9η (Θ) | AL116: 400 | AM116: ΟΑ ΧΑΛΚΙΔΑΣ | AN116: S | AO116: α12 | AP116: 5 | AQ116: 3451
X117: ΑΣ ΚΟΛΛΕΓΙΟΥ ΝΤΕΡΗ | Y117: 340 | Z117: Η | AF117: Ε2S-14-1st | AG117: 30 | AI117: 43161Ε3 9η (Θ)400Sκ12 | AJ117: 2018-03-02 | AK117: Ε3 9η (Θ) | AL117: 400 | AM117: ΟΑ ΧΑΛΚΙΔΑΣ | AN117: S | AO117: κ12 | AP117: 9 | AQ117: 3452
X118: ΑΣ ΜΑΧΗΤΕΣ ΠΕΥΚΩΝ | Y118: 135 | Z118: Β | AF118: Ε2S-14-2nd | AG118: 25 | AI118: 43161Ε3 9η (Θ)400Sα14 | AJ118: 2018-03-02 | AK118: Ε3 9η (Θ) | AL118: 400 | AM118: ΟΑ ΧΑΛΚΙΔΑΣ | AN118: S | AO118: α14 | AP118: 6 | AQ118: 3453
X119: ΑΣ Ν ΒΟΥΤΖΑ ΠΡΟΟΔΟΣ | Y119: 341 | Z119: Η | AF119: Ε2S-14-3_4 | AG119: 15 | AI119: 43161Ε3 9η (Θ)400Sκ14 | AJ119: 2018-03-02 | AK119: Ε3 9η (Θ) | AL119: 400 | AM119: ΟΑ ΧΑΛΚΙΔΑΣ | AN119: S | AO119: κ14 | AP119: 10 | AQ119: 3454
X120: ΑΣ ΝΗΡΕΑΣ ΒΕΡΟΙΑΣ | Y120: 174 | Z120: Γ | AF120: Ε2S-14-5_8 | AG120: 10 | AI120: 43161Ε3 9η (Θ)400Sα16 | AJ120: 2018-03-02 | AK120: Ε3 9η (Θ) | AL120: 400 | AM120: ΟΑ ΧΑΛΚΙΔΑΣ | AN120: S | AO120: α16 | AP120: 7 | AQ120: 3455
X121: ΑΣ ΝΙΚΗ ΑΓ ΔΗΜΗΤΡΙΟΥ | Y121: 507 | Z121: ΙΑ | AF121: Ε2S-14-9_16 | AG121: 7.5 | AI121: 43161Ε3 9η (Θ)400Sκ16 | AJ121: 2018-03-02 | AK121: Ε3 9η (Θ) | AL121: 400 | AM121: ΟΑ ΧΑΛΚΙΔΑΣ | AN121: S | AO121: κ16 | AP121: 11 | AQ121: 3456
X122: ΑΣ ΟΛΥΜΠ ΧΩΡΙΟΥ Ο ΦΟΙΒΟΣ | Y122: 377 | Z122: Θ | AF122: Ε2S-14-17_32 | AG122: 1 | AI122: 43155Ε3 8η (Γ)195Sα12 | AJ122: 2018-02-24 | AK122: Ε3 8η (Γ) | AL122: 195 | AM122: ΟΑ ΠΤΟΛΕΜΑΪΔΑΣ | AN122: S | AO122: α12 | AP122: 5 | AQ122: 3461
X123: ΑΣ ΟΡΦΕΑΣ ΛΑΡΙΣΑΣ | Y123: 225 | Z123: Ε | AF123: Ε2S-14-q8 | AG123: 2 | AI123: 43155Ε3 8η (Γ)195Sκ12 | AJ123: 2018-02-24 | AK123: Ε3 8η (Γ) | AL123: 195 | AM123: ΟΑ ΠΤΟΛΕΜΑΪΔΑΣ | AN123: S | AO123: κ12 | AP123: 9 | AQ123: 3462
X124: ΑΣ ΠΑΝΟΡΑΜΑ | Y124: 136 | Z124: Β | AF124: Ε2S-14-q16 | AG124: 2 | AI124: 43155Ε3 8η (Γ)195Sα16 | AJ124: 2018-02-24 | AK124: Ε3 8η (Γ) | AL124: 195 | AM124: ΟΑ ΠΤΟΛΕΜΑΪΔΑΣ | AN124: S | AO124: α16 | AP124: 7 | AQ124: 3463
X125: ΑΣ ΠΑΠΑΓΟΥ | Y125: 498 | Z125: ΙΑ | AF125: Ε2S-14-q8/2 | AG125: 1 | AI125: 43155Ε3 8η (Γ)195Sκ16 | AJ125: 2018-02-24 | AK125: Ε3 8η (Γ) | AL125: 195 | AM125: ΟΑ ΠΤΟΛΕΜΑΪΔΑΣ | AN125: S | AO125: κ16 | AP125: 11 | AQ125: 3464
X126: ΑΣ ΠΕΝΤΕΛΗΣ ΑΣΤΕΡΑΣ | Y126: 445 | Z126: Η | AF126: Ε2S-14-q32 | AG126: 1 | AI126: 43155Ε3 8η (Α)112Sα12 | AJ126: 2018-02-24 | AK126: Ε3 8η (Α) | AL126: 112 | AM126: ΟΑ ΑΛΕΞΑΝΔΡΟΥΠΟΛΗΣ | AN126: S | AO126: α12 | AP126: 5 | AQ126: 3465
X127: ΑΣ ΠΕΡΑ | Y127: 427 | Z127: ΙΑ | AF127: Ε2S-14-33_64 | AG127: 0 | AI127: 43155Ε3 8η (Α)112Sκ12 | AJ127: 2018-02-24 | AK127: Ε3 8η (Α) | AL127: 112 | AM127: ΟΑ ΑΛΕΞΑΝΔΡΟΥΠΟΛΗΣ | AN127: S | AO127: κ12 | AP127: 9 | AQ127: 3466
X128: ΑΣ ΠΙΕΡΙΑ ΤΕΝΙΣ | Y128: 465 | Z128: Γ | AF128: Ε2S-14-q | AG128: 0 | AI128: 43155Ε3 8η (Α)112Sα16 | AJ128: 2018-02-24 | AK128: Ε3 8η (Α) | AL128: 112 | AM128: ΟΑ ΑΛΕΞΑΝΔΡΟΥΠΟΛΗΣ | AN128: S | AO128: α16 | AP128: 7 | AQ128: 3467
X129: ΑΣ ΣΠΑΡΤΑΚΟΣ ΓΛΥΦΑΔΑΣ | Y129: 428 | Z129: ΙΑ | AF129: Ε2S-14-q64 | AG129: 0 | AI129: 43155Ε3 8η (Α)112Sκ16 | AJ129: 2018-02-24 | AK129: Ε3 8η (Α) | AL129: 112 | AM129: ΟΑ ΑΛΕΞΑΝΔΡΟΥΠΟΛΗΣ | AN129: S | AO129: κ16 | AP129: 11 | AQ129: 3468
X130: ΑΣ ΤΕΝΙΣ ΚΛΑΜΠ ΚΟΖΑΝΗΣ | Y130: 176 | Z130: Γ | AF130: Ε2S-14-q128 | AG130: 0 | AI130: 43154Ε3 8η (ΙΑ)425Sα12 | AJ130: 2018-02-23 | AK130: Ε3 8η (ΙΑ) | AL130: 425 | AM130: ΑΟΑ ΠΑΠΑΓΟΥ | AN130: S | AO130: α12 | AP130: 5 | AQ130: 3469
X131: ΑΣ ΦΛΟΓΑ ΑΘΗΝΩΝ | Y131: 342 | Z131: Η | AF131: Ε2S-14-q256 | AG131: 0 | AI131: =AJ131&AK131&AL131&AN131&AO131 -> 43154Ε3 8η (ΙΑ)425Sκ12 | AJ131: 2018-02-23 | AK131: Ε3 8η (ΙΑ) | AL131: 425 | AM131: ΑΟΑ ΠΑΠΑΓΟΥ | AN131: S | AO131: κ12 | AP131: 9 | AQ131: 3470
X132: ΑΣ ΦΠ ΑΝΑΠΛΑΣΗΣ ΦΕΡΕΝΙΚΟΣ | Y132: 343 | Z132: Η | AF132: Ε2S-14-wo | AG132: 0 | AI132: 43154Ε3 8η (ΙΑ)425Sα14 | AJ132: 2018-02-23 | AK132: Ε3 8η (ΙΑ) | AL132: 425 | AM132: ΑΟΑ ΠΑΠΑΓΟΥ | AN132: S | AO132: α14 | AP132: 6 | AQ132: 3471
X133: ΑΣΑ ΑΓΡΙΝΙΟΥ | Y133: 209 | Z133: Δ | AF133: Ε2D-14-1st | AG133: 8 | AI133: 43154Ε3 8η (ΙΑ)425Sκ14 | AJ133: 2018-02-23 | AK133: Ε3 8η (ΙΑ) | AL133: 425 | AM133: ΑΟΑ ΠΑΠΑΓΟΥ | AN133: S | AO133: κ14 | AP133: 10 | AQ133: 3472
X134: ΑΣΑ ΓΡΕΒΕΝΩΝ | Y134: 177 | Z134: Γ | AF134: Ε2D-14-2nd | AG134: 6 | AI134: 43154Ε3 8η (ΙΑ)425Sα16 | AJ134: 2018-02-23 | AK134: Ε3 8η (ΙΑ) | AL134: 425 | AM134: ΑΟΑ ΠΑΠΑΓΟΥ | AN134: S | AO134: α16 | AP134: 7 | AQ134: 3473
X135: ΑΣΑ ΕΛΠΙΔΑ ΣΟΥΦΛΙΟΥ | Y135: 443 | Z135: Α | AF135: Ε2D-14-3_4 | AG135: 4 | AI135: 43154Ε3 8η (ΙΑ)425Sκ16 | AJ135: 2018-02-23 | AK135: Ε3 8η (ΙΑ) | AL135: 425 | AM135: ΑΟΑ ΠΑΠΑΓΟΥ | AN135: S | AO135: κ16 | AP135: 11 | AQ135: 3474
X136: ΑΣΑ ΖΕΦΥΡΟΣ | Y136: 178 | Z136: Γ | AF136: Ε2D-14-5_8 | AG136: 3 | AI136: 43155Ε3 8η (Δ)204Sα12 | AJ136: 2018-02-24 | AK136: Ε3 8η (Δ) | AL136: 204 | AM136: ΑΓΟ ΦΙΛΙΠΠΙΑΔΑΣ | AN136: S | AO136: α12 | AP136: 5 | AQ136: 3475
X137: ΑΣΑ ΘΕΣΣΑΛΟΝΙΚΗΣ | Y137: 165 | Z137: Β | AF137: Ε2D-14-9_16 | AG137: 2 | AI137: 43155Ε3 8η (Δ)204Sκ12 | AJ137: 2018-02-24 | AK137: Ε3 8η (Δ) | AL137: 204 | AM137: ΑΓΟ ΦΙΛΙΠΠΙΑΔΑΣ | AN137: S | AO137: κ12 | AP137: 9 | AQ137: 3476
X138: ΑΣΑ ΛΑΡΙΣΑΣ | Y138: 226 | Z138: Ε | AF138: Ε2D-14-17_32 | AG138: 0 | AI138: 43155Ε3 8η (Δ)204Sα16 | AJ138: 2018-02-24 | AK138: Ε3 8η (Δ) | AL138: 204 | AM138: ΑΓΟ ΦΙΛΙΠΠΙΑΔΑΣ | AN138: S | AO138: α16 | AP138: 7 | AQ138: 3477
X139: ΑΣΑ ΜΑΥΡΟΧΩΡΙΟΥ ΚΑΣΤΟΡΙΑΣ | Y139: 179 | Z139: Γ | AF139: Ε2D-14-wo | AG139: 0 | AI139: 43155Ε3 8η (Δ)204Sκ16 | AJ139: 2018-02-24 | AK139: Ε3 8η (Δ) | AL139: 204 | AM139: ΑΓΟ ΦΙΛΙΠΠΙΑΔΑΣ | AN139: S | AO139: κ16 | AP139: 11 | AQ139: 3478
X140: ΑΣΑ ΜΥΤΙΛΗΝΗΣ | Y140: 491 | Z140: Θ | AF140: Ε2S-16-1st | AG140: 60 | AI140: 43155Ε3 8η (Ζ)307Sα12 | AJ140: 2018-02-24 | AK140: Ε3 8η (Ζ) | AL140: 307 | AM140: ΟΑ ΡΕΘΥΜΝΟΥ | AN140: S | AO140: α12 | AP140: 5 | AQ140: 3479
X141: ΑΣΑ ΠΑΜΒΩΤΙΣ ΙΩΑΝΝΙΝΩΝ | Y141: 210 | Z141: Δ | AF141: Ε2S-16-2nd | AG141: 50 | AI141: 43155Ε3 8η (Ζ)307Sκ12 | AJ141: 2018-02-24 | AK141: Ε3 8η (Ζ) | AL141: 307 | AM141: ΟΑ ΡΕΘΥΜΝΟΥ | AN141: S | AO141: κ12 | AP141: 9 | AQ141: 3480
X142: ΑΣΑ ΠΑΝΟΡΑΜΑΤΟΣ ΠΥΛΑΙΑΣ | Y142: 137 | Z142: Β | AF142: Ε2S-16-3_4 | AG142: 30 | AI142: 43155Ε3 8η (Ζ)307Sα16 | AJ142: 2018-02-24 | AK142: Ε3 8η (Ζ) | AL142: 307 | AM142: ΟΑ ΡΕΘΥΜΝΟΥ | AN142: S | AO142: α16 | AP142: 7 | AQ142: 3481
X143: ΑΣΑ ΤΡΙΚΑΛΩΝ | Y143: 508 | Z143: Ε | AF143: Ε2S-16-5_8 | AG143: 20 | AI143: 43155Ε3 8η (Ζ)307Sκ16 | AJ143: 2018-02-24 | AK143: Ε3 8η (Ζ) | AL143: 307 | AM143: ΟΑ ΡΕΘΥΜΝΟΥ | AN143: S | AO143: κ16 | AP143: 11 | AQ143: 3482
X144: ΑΣΑ ΩΡΩΠΟΥ | Y144: 344 | Z144: Η | AF144: Ε2S-16-9_16 | AG144: 16 | AI144: 43162Ε3 9η (Ζ)307Sα14 | AJ144: 2018-03-03 | AK144: Ε3 9η (Ζ) | AL144: 307 | AM144: ΟΑ ΡΕΘΥΜΝΟΥ | AN144: S | AO144: α14 | AP144: 6 | AQ144: 3483
X145: ΑΣΕ ΘΗΣΕΑΣ ΑΓ ΔΗΜΗΤΡΙΟΥ | Y145: 417 | Z145: ΙΑ | AF145: Ε2S-16-17_32 | AG145: 2 | AI145: 43162Ε3 9η (Ζ)307Sκ14 | AJ145: 2018-03-03 | AK145: Ε3 9η (Ζ) | AL145: 307 | AM145: ΟΑ ΡΕΘΥΜΝΟΥ | AN145: S | AO145: κ14 | AP145: 10 | AQ145: 3484
X146: ΑΤ ΧΟΛΑΡΓΟΥ | Y146: 429 | Z146: ΙΑ | AF146: Ε2S-16-q8 | AG146: 4 | AI146: 43162Ε3 9η (Γ)185Sα14 | AJ146: 2018-03-03 | AK146: Ε3 9η (Γ) | AL146: 185 | AM146: ΟΑ ΑΡΙΔΑΙΑΣ | AN146: S | AO146: α14 | AP146: 6 | AQ146: 3485
X147: ΑΧΑΪΚΟΣ ΟΑ | Y147: 502 | Z147: ΣΤ | AF147: Ε2S-16-q16 | AG147: 4 | AI147: 43162Ε3 9η (Γ)185Sκ14 | AJ147: 2018-03-03 | AK147: Ε3 9η (Γ) | AL147: 185 | AM147: ΟΑ ΑΡΙΔΑΙΑΣ | AN147: S | AO147: κ14 | AP147: 10 | AQ147: 3486
X148: ΑΨΛ ΑΓ ΓΕΩΡΓΙΟΥ ΗΣΙΟΔΟΣ | Y148: 227 | Z148: Ε | AF148: Ε2S-16-q8/2 | AG148: 2 | AI148: 43155Ε3 8η (ΣΤ)286Sα14 | AJ148: 2018-02-24 | AK148: Ε3 8η (ΣΤ) | AL148: 286 | AM148: ΟΑ ΚΟΡΙΝΘΟΥ | AN148: S | AO148: α14 | AP148: 6 | AQ148: 3487
X149: ΑΨΛ ΜΕΔΕΩΝ | Y149: 228 | Z149: Ε | AF149: Ε2S-16-q32 | AG149: 2 | AI149: 43155Ε3 8η (ΣΤ)286Sκ14 | AJ149: 2018-02-24 | AK149: Ε3 8η (ΣΤ) | AL149: 286 | AM149: ΟΑ ΚΟΡΙΝΘΟΥ | AN149: S | AO149: κ14 | AP149: 10 | AQ149: 3488
X150: ΓΑΕ ΤΡΙΦΥΛΙΑΣ ΚΥΠΑΡΙΣΣΕΥΣ | Y150: 273 | Z150: ΣΤ | AF150: Ε2S-16-33_64 | AG150: 0
X151: ΓΑΣ ΑΛΕΞΑΝΔΡΕΙΑ | Y151: 466 | Z151: Γ | AF151: Ε2S-16-q | AG151: 0
X152: ΓΑΣ ΓΟΥΡΝΩΝ | Y152: 303 | Z152: Ζ | AF152: Ε2S-16-q64 | AG152: 0
X153: ΓΑΣ ΘΥΕΛΛΑ ΦΕΡΩΝ | Y153: 109 | Z153: Α | AF153: Ε2S-16-q128 | AG153: 0
X154: ΓΑΣ ΚΑΡΑΤΕ ΕΡΜΗΣ | Y154: 181 | Z154: Γ | AF154: Ε2S-16-q256 | AG154: 0
X155: ΓΑΣ ΜΑΓΝΗΣΙΑΣ | Y155: 229 | Z155: Ε | AF155: Ε2S-16-wo | AG155: 0
X156: ΓΑΣ ΝΙΓΡΙΤΑΣ ΒΙΣΑΛΤΗΣ | Y156: 453 | Z156: Α | AF156: Ε2D-16-1st | AG156: 16
X157: ΓΕ ΑΡΓΟΛΙΔΑΣ | Y157: 503 | Z157: ΣΤ | AF157: Ε2D-16-2nd | AG157: 12
X158: ΓΕ ΑΤΑΛΑΝΤΗΣ | Y158: 471 | Z158: Ε | AF158: Ε2D-16-3_4 | AG158: 8
X159: ΓΕ ΛΑΡΙΣΑΣ | Y159: 472 | Z159: Ε | AF159: Ε2D-16-5_8 | AG159: 6
X160: ΓΕ ΠΡΕΒΕΖΑΣ | Y160: 211 | Z160: Δ | AF160: Ε2D-16-9_16 | AG160: 4
X161: ΓΟ ΠΕΡΙΣΤΕΡΙΟΥ ΠΑΛΑΣΚΑΣ | Y161: 379 | Z161: Θ | AF161: Ε2D-16-17_32 | AG161: 0
X162: ΓΣ ΑΜΦΙΑΛΗΣ ΦΕΙΔΙΠΠΙΔΗΣ | Y162: 492 | Z162: Θ | AF162: Ε2D-16-wo | AG162: 0
X163: ΓΣ ΑΠΟΛΛΩΝ ΠΥΡΓΟΥ | Y163: 504 | Z163: ΣΤ | AF163: Ε2S-18-1st | AG163: 0
X164: ΓΣ ΕΛΕΥΘ ΚΟΡΔ ΑΡΓΟΝΑΥΤΕΣ | Y164: 138 | Z164: Β | AF164: Ε2S-18-2nd | AG164: 0
X165: ΓΣ ΗΛΙΟΥΠΟΛΗΣ | Y165: 430 | Z165: ΙΑ | AF165: Ε2S-18-3_4 | AG165: 0
X166: ΓΣ ΙΤΕΑΣ | Y166: 232 | Z166: Ε | AF166: Ε2S-18-5_8 | AG166: 0
X167: ΓΣ ΚΗΦΙΣΙΑΣ | Y167: 345 | Z167: Η | AF167: Ε2S-18-9_16 | AG167: 0
X168: ΓΣ ΚΟΡΩΠΙΟΥ | Y168: 346 | Z168: Η | AF168: Ε2S-18-17_32 | AG168: 0
X169: ΓΣ ΛΙΒΥΚΟΣ ΙΕΡΑΠΕΤΡΑΣ | Y169: 304 | Z169: Ζ | AF169: Ε2S-18-q8 | AG169: 0
X170: ΓΣ Ν ΙΩΝΙΑΣ ΑΤΤΙΚΗΣ | Y170: 381 | Z170: Θ | AF170: Ε2S-18-q16 | AG170: 0
X171: ΓΣ ΣΑΛΑΜΙΝΑΣ | Y171: 493 | Z171: Θ | AF171: Ε2S-18-q8/2 | AG171: 0
X172: ΓΣ ΩΡΩΠΟΥ | Y172: 485 | Z172: Η | AF172: Ε2S-18-q32 | AG172: 0
X173: ΔΑΣ ΑΝΩ ΛΙΟΣΙΩΝ | Y173: 383 | Z173: Θ | AF173: Ε2S-18-33_64 | AG173: 0
X174: ΕΑΟ ΗΛΙΣ | Y174: 384 | Z174: Θ | AF174: Ε2S-18-q | AG174: 0
X175: ΕΑΣ ΛΑΚΚΑΣ ΣΥΜΠΟΛΙΤΕΙΑΣ | Y175: 276 | Z175: ΣΤ | AF175: Ε2S-18-q64 | AG175: 0
X176: ΕΑΣ ΟΛΥΜΠΙΑΔΑ | Y176: 139 | Z176: Β | AF176: Ε2S-18-q128 | AG176: 0
X177: ΕΑΣΑ ΘΕΣΣΑΛΙΚΟΣ | Y177: 473 | Z177: Ε | AF177: Ε2S-18-q256 | AG177: 0
X178: ΕΑΤΕΚ ΕΛΛ ΚΟΛΛΕΓΙΟΥ | Y178: 140 | Z178: Β | AF178: Ε2S-18-wo | AG178: 0
X179: ΕΑΦΩ ΝΤΕΚΡΟΛΙ | Y179: 459 | Z179: Β | AF179: Ε2D-18-1st | AG179: 0
X180: ΕΕΠΚΑ ΕΥΡΩΪΔΕΑ ΚΑΡΔΙΤΣΑΣ | Y180: 474 | Z180: Ε | AF180: Ε2D-18-2nd | AG180: 0
X181: ΕΘΝΙΚΟΣ ΠΑΝΟΡΑΜΑΤΟΣ 2005 | Y181: 460 | Z181: Β | AF181: Ε2D-18-3_4 | AG181: 0
X182: ΕΣΟ ΕΠΙΚΟΥΡΟΣ ΠΟΛΙΧΝΗΣ | Y182: 143 | Z182: Β | AF182: Ε2D-18-5_8 | AG182: 0
X183: ΕΦΤ ΑΙΟΛΙΚΗ | Y183: 144 | Z183: Β | AF183: Ε2D-18-9_16 | AG183: 0
X184: ΖΑΚΥΝΘΙΝΟΣ ΑΟ | Y184: 505 | Z184: ΣΤ | AF184: Ε2D-18-wo | AG184: 0
X185: ΖΑΚΥΝΘΙΝΟΣ ΑΟΑ | Y185: 278 | Z185: ΣΤ | AF185: Ε2D-18-17_32 | AG185: 0
X186: ΗΠΕΙΡΩΤΙΚΟΣ ΣΑ ΙΩΑΝΝΙΝΩΝ | Y186: 469 | Z186: Δ | AF186: Ε3S-12-1st | AG186: 9
X187: ΗΡΑΚΛΕΙΟ ΟΑΑ | Y187: 305 | Z187: Ζ | AF187: Ε3S-12-2nd | AG187: 7.5
X188: ΙΚΑΡΟΣ Ν ΣΜΥΡΝΗΣ | Y188: 446 | Z188: ΙΑ | AF188: Ε3S-12-3_4 | AG188: 4.5
X189: ΚΑ ΑΓΡΙΝΙΟΥ | Y189: 213 | Z189: Δ | AF189: Ε3S-12-5_8 | AG189: 3
X190: ΚΕΝΤΡΟ ΑΝΤΙΣΦ ΛΙΒΑΔΕΙΑΣ | Y190: 235 | Z190: Ε | AF190: Ε3S-12-9_16 | AG190: 2.4
X191: ΚΕΡΚΥΡΑΪΚΗ ΑΚΑΔ ΤΕΝΝΙΣ | Y191: 214 | Z191: Δ | AF191: Ε3S-12-17_32 | AG191: 1.5
X192: ΚΕΡΚΥΡΑΪΚΗ ΛΤ | Y192: 215 | Z192: Δ | AF192: Ε3S-12-33_64 | AG192: 0.5
X193: ΚΕΦΑΛΛΗΝΙΑΚΟΣ ΟΑ | Y193: 279 | Z193: ΣΤ | AF193: Ε3S-12-65_128 | AG193: 0
X194: Λ ΠΟΛΙΤΙΣΜΟΥ ΦΛΩΡΙΝΑΣ | Y194: 182 | Z194: Γ | AF194: Ε3S-12-q8 | AG194: 0
X195: ΛΑ ΚΟΜΟΤΗΝΗΣ | Y195: 454 | Z195: Α | AF195: Ε3S-12-q16 | AG195: 0
X196: ΛΑΡΙΣΑΪΚΟΣ ΟΑ | Y196: 236 | Z196: Ε | AF196: Ε3S-12-q32 | AG196: 0
X197: ΜΑΣ ΑΕΤΟΣ ΘΕΣ | Y197: 145 | Z197: Β | AF197: Ε3S-12-q64 | AG197: 0
X198: ΜΑΣ ΑΤΡΟΜΗΤΟΣ ΤΡΙΑΔΙΟΥ | Y198: 146 | Z198: Β | AF198: Ε3S-12-q128 | AG198: 0
X199: ΜΓΣ ΑΠΟΛΛΩΝ ΚΑΛΑΜΑΡΙΑΣ | Y199: 147 | Z199: Β | AF199: Ε3S-12-q256 | AG199: 0
X200: ΝΑΣΠ ΑΙΟΛΟΣ ΜΥΤΙΛΗΝΗΣ | Y200: 494 | Z200: Θ | AF200: Ε3S-12-wo | AG200: 0
... 309 more rows

Sheet matches (hidden)
A1: round | B1: W-ID | C1: winner | D1: L-ID | E1: looser | F1: score | H1: Player | I1: Position | K1: Set-up | N1: draw# | O1: organizer | P1: club | Q1: title | R1: category | S1: drawSize
A2: 32 | B2: =IF(OR(MD!$M$5 =1,MD!$M$5 =2), IF(MD!$M$5 =1,MD!$I$5,MD!$I$6),"#") -> 34598 | C2: =TRIM(LEFT(VLOOKUP(B2,ALMD!$C$3:$D$34,2,FALSE),FIND(" ",VLOOKUP(B2,ALMD!$C$3:$D$34,2,FALSE),1)-1)) -> ΚΟΛΛΙΑΣ | D2: =IF(OR(MD!$M$5 =1,MD!$M$5 =2), IF(MD!$M$5 =2,MD!$I$5,MD!$I$6),"#") -> 0 | E2: =TRIM(LEFT(VLOOKUP(D2,ALMD!$C$3:$D$34,2,FALSE),FIND(" ",VLOOKUP(D2,ALMD!$C$3:$D$34,2,FALSE),1)-1)) ->  | F2: =MD!O6 -> 0 | H2: =B32 -> 34598 | I2: 1st | K2: organizer: | L2: =Setup!$B$3 -> ΣΤ' ΕΝΩΣΗ | N2: =IF(COUNTIF(MD!$I:$I,B2)>0,MATCH(B2,MD!$I:$I,0)-4,"")&" "&IF(COUNTIF(MD!$I:$I,D2)>0,MATCH(D2,MD!$I:$I,0)-4,"") -> 1 2 | O2: =Setup!$B$3 -> ΣΤ' ΕΝΩΣΗ | P2: =TRIM(LEFT($L$4,10)) -> ΣΑ ΤΡΙΠΟΛΗ | Q2: =TRIM(LEFT($L$3,10)) -> Ε3 19η | R2: =SUBSTITUTE(SUBSTITUTE(TRIM($L$7),"Κ","g"),"Α","b") -> b14 | S2: 32
A3: 32 | B3: =IF(OR(MD!$M$7 =1,MD!$M$7 =2), IF(MD!$M$7 =1,MD!$I$7,MD!$I$8),"#") -> 34817 | C3: =TRIM(LEFT(VLOOKUP(B3,ALMD!$C$3:$D$34,2,FALSE),FIND(" ",VLOOKUP(B3,ALMD!$C$3:$D$34,2,FALSE),1)-1)) -> ΤΖΟΥΤΖΟΠΟΥΛΟΣ | D3: =IF(OR(MD!$M$7 =1,MD!$M$7 =2), IF(MD!$M$7 =2,MD!$I$7,MD!$I$8),"#") -> 33450 | E3: =TRIM(LEFT(VLOOKUP(D3,ALMD!$C$3:$D$34,2,FALSE),FIND(" ",VLOOKUP(D3,ALMD!$C$3:$D$34,2,FALSE),1)-1)) -> ΚΑΜΠΑΝΟΣ | F3: =MD!O8 -> 41 53 | H3: =D32 -> 36030 | I3: 2nd | K3: title: | L3: =Setup!$B$7 -> Ε3 19η | N3: =IF(COUNTIF(MD!$I:$I,B3)>0,MATCH(B3,MD!$I:$I,0)-4,"")&" "&IF(COUNTIF(MD!$I:$I,D3)>0,MATCH(D3,MD!$I:$I,0)-4,"") -> 3 4 | O3: =Setup!$B$3 -> ΣΤ' ΕΝΩΣΗ | P3: =TRIM(LEFT($L$4,10)) -> ΣΑ ΤΡΙΠΟΛΗ | Q3: =TRIM(LEFT($L$3,10)) -> Ε3 19η | R3: =SUBSTITUTE(SUBSTITUTE(TRIM($L$7),"Κ","g"),"Α","b") -> b14 | S3: 32
A4: 32 | B4: =IF(OR(MD!$M$9 =1,MD!$M$9 =2), IF(MD!$M$9 =1,MD!$I$9,MD!$I$10),"#") -> 32578 | C4: =TRIM(LEFT(VLOOKUP(B4,ALMD!$C$3:$D$34,2,FALSE),FIND(" ",VLOOKUP(B4,ALMD!$C$3:$D$34,2,FALSE),1)-1)) -> ΜΟΥΡΙΚΗΣ | D4: =IF(OR(MD!$M$9 =1,MD!$M$9 =2), IF(MD!$M$9 =2,MD!$I$9,MD!$I$10),"#") -> 0 | E4: =TRIM(LEFT(VLOOKUP(D4,ALMD!$C$3:$D$34,2,FALSE),FIND(" ",VLOOKUP(D4,ALMD!$C$3:$D$34,2,FALSE),1)-1)) ->  | F4: =MD!O10 -> 0 | H4: =D30 -> 36852 | I4: 3_4 | K4: club: | L4: =Setup!$B$4 -> ΣΑ ΤΡΙΠΟΛΗΣ | N4: =IF(COUNTIF(MD!$I:$I,B4)>0,MATCH(B4,MD!$I:$I,0)-4,"")&" "&IF(COUNTIF(MD!$I:$I,D4)>0,MATCH(D4,MD!$I:$I,0)-4,"") -> 5 2 | O4: =Setup!$B$3 -> ΣΤ' ΕΝΩΣΗ | P4: ΣΑ ΤΡΙΠΟΛΗ | Q4: Ε3 19η | R4: b14 | S4: 32
A5: 32 | B5: =IF(OR(MD!$M$11=1,MD!$M$11=2), IF(MD!$M$11=1,MD!$I$11,MD!$I$12),"#") -> 30151 | C5: =TRIM(LEFT(VLOOKUP(B5,ALMD!$C$3:$D$34,2,FALSE),FIND(" ",VLOOKUP(B5,ALMD!$C$3:$D$34,2,FALSE),1)-1)) -> ΚΑΡΑΝΑΓΝΩΣΤΗΣ | D5: =IF(OR(MD!$M$11=1,MD!$M$11=2), IF(MD!$M$11=2,MD!$I$11,MD!$I$12),"#") -> 0 | E5: =TRIM(LEFT(VLOOKUP(D5,ALMD!$C$3:$D$34,2,FALSE),FIND(" ",VLOOKUP(D5,ALMD!$C$3:$D$34,2,FALSE),1)-1)) ->  | F5: =MD!O12 -> 0 | H5: =D31 -> 36854 | I5: 3_4 | K5: grade: | L5: =Setup!$B$5 -> Ε3 | N5: =IF(COUNTIF(MD!$I:$I,B5)>0,MATCH(B5,MD!$I:$I,0)-4,"")&" "&IF(COUNTIF(MD!$I:$I,D5)>0,MATCH(D5,MD!$I:$I,0)-4,"") -> 8 2 | O5: =Setup!$B$3 -> ΣΤ' ΕΝΩΣΗ | P5: ΣΑ ΤΡΙΠΟΛΗ | Q5: Ε3 19η | R5: b14 | S5: 32
A6: 32 | B6: =IF(OR(MD!$M$13=1,MD!$M$13=2), IF(MD!$M$13=1,MD!$I$13,MD!$I$14),"#") -> 37036 | C6: =TRIM(LEFT(VLOOKUP(B6,ALMD!$C$3:$D$34,2,FALSE),FIND(" ",VLOOKUP(B6,ALMD!$C$3:$D$34,2,FALSE),1)-1)) -> ΛΟΥΚΑ | D6: =IF(OR(MD!$M$13=1,MD!$M$13=2), IF(MD!$M$13=2,MD!$I$13,MD!$I$14),"#") -> 0 | E6: =TRIM(LEFT(VLOOKUP(D6,ALMD!$C$3:$D$34,2,FALSE),FIND(" ",VLOOKUP(D6,ALMD!$C$3:$D$34,2,FALSE),1)-1)) ->  | F6: =MD!O14 -> 0 | H6: =D26 -> 30151 | I6: 5_8 | K6: week: | L6: =Setup!B10 -> βδ.: 19η | N6: =IF(COUNTIF(MD!$I:$I,B6)>0,MATCH(B6,MD!$I:$I,0)-4,"")&" "&IF(COUNTIF(MD!$I:$I,D6)>0,MATCH(D6,MD!$I:$I,0)-4,"") -> 9 2 | O6: =Setup!$B$3 -> ΣΤ' ΕΝΩΣΗ | P6: ΣΑ ΤΡΙΠΟΛΗ | Q6: Ε3 19η | R6: b14 | S6: 32
A7: 32 | B7: =IF(OR(MD!$M$15=1,MD!$M$15=2), IF(MD!$M$15=1,MD!$I$15,MD!$I$16),"#") -> 39823 | C7: =TRIM(LEFT(VLOOKUP(B7,ALMD!$C$3:$D$34,2,FALSE),FIND(" ",VLOOKUP(B7,ALMD!$C$3:$D$34,2,FALSE),1)-1)) -> ΠΑΠΑΝΙΚΟΛΑΟΥ | D7: =IF(OR(MD!$M$15=1,MD!$M$15=2), IF(MD!$M$15=2,MD!$I$15,MD!$I$16),"#") -> 39014 | E7: =TRIM(LEFT(VLOOKUP(D7,ALMD!$C$3:$D$34,2,FALSE),FIND(" ",VLOOKUP(D7,ALMD!$C$3:$D$34,2,FALSE),1)-1)) -> ΓΡΑΜΜΑΤΙΚΟΣ | F7: =MD!O16 -> 41 40 | H7: =D27 -> 39823 | I7: 5_8 | K7: category: | L7: =Setup!$B$6 -> Α14 | N7: =IF(COUNTIF(MD!$I:$I,B7)>0,MATCH(B7,MD!$I:$I,0)-4,"")&" "&IF(COUNTIF(MD!$I:$I,D7)>0,MATCH(D7,MD!$I:$I,0)-4,"") -> 11 12 | O7: =Setup!$B$3 -> ΣΤ' ΕΝΩΣΗ | P7: ΣΑ ΤΡΙΠΟΛΗ | Q7: Ε3 19η | R7: b14 | S7: 32
A8: 32 | B8: =IF(OR(MD!$M$17=1,MD!$M$17=2), IF(MD!$M$17=1,MD!$I$17,MD!$I$18),"#") -> 37284 | C8: =TRIM(LEFT(VLOOKUP(B8,ALMD!$C$3:$D$34,2,FALSE),FIND(" ",VLOOKUP(B8,ALMD!$C$3:$D$34,2,FALSE),1)-1)) -> ΑΔΑΜΟΠΟΥΛΟΣ | D8: =IF(OR(MD!$M$17=1,MD!$M$17=2), IF(MD!$M$17=2,MD!$I$17,MD!$I$18),"#") -> 0 | E8: =TRIM(LEFT(VLOOKUP(D8,ALMD!$C$3:$D$34,2,FALSE),FIND(" ",VLOOKUP(D8,ALMD!$C$3:$D$34,2,FALSE),1)-1)) ->  | F8: =MD!O18 -> 0 | H8: =D28 -> 37444 | I8: 5_8 | K8: period: | L8: =DAY(Setup!$B$8)&"/"&MONTH(Setup!$B$8)&"-"&DAY(Setup!$B$9)&"/"&MONTH(Setup!$B$9)&"/"&YEAR(Setup!$B$9) -> 12/5-13/5/2018 | N8: =IF(COUNTIF(MD!$I:$I,B8)>0,MATCH(B8,MD!$I:$I,0)-4,"")&" "&IF(COUNTIF(MD!$I:$I,D8)>0,MATCH(D8,MD!$I:$I,0)-4,"") -> 13 2 | O8: =Setup!$B$3 -> ΣΤ' ΕΝΩΣΗ | P8: ΣΑ ΤΡΙΠΟΛΗ | Q8: Ε3 19η | R8: b14 | S8: 32
A9: 32 | B9: =IF(OR(MD!$M$19=1,MD!$M$19=2), IF(MD!$M$19=1,MD!$I$19,MD!$I$20),"#") -> 36852 | C9: =TRIM(LEFT(VLOOKUP(B9,ALMD!$C$3:$D$34,2,FALSE),FIND(" ",VLOOKUP(B9,ALMD!$C$3:$D$34,2,FALSE),1)-1)) -> ΤΖΩΡΤΖΑΤΟΣ | D9: =IF(OR(MD!$M$19=1,MD!$M$19=2), IF(MD!$M$19=2,MD!$I$19,MD!$I$20),"#") -> 0 | E9: =TRIM(LEFT(VLOOKUP(D9,ALMD!$C$3:$D$34,2,FALSE),FIND(" ",VLOOKUP(D9,ALMD!$C$3:$D$34,2,FALSE),1)-1)) ->  | F9: =MD!O20 -> 0 | H9: =D29 -> 36853 | I9: 5_8 | K9: filename: | L9: =MID(CELL("filename"), (FIND("[",CELL("filename"))+1), FIND("]",CELL("filename"))-FIND("[",CELL("filename"))-1) -> ε3 19η στ α14 s md.xlsm | N9: =IF(COUNTIF(MD!$I:$I,B9)>0,MATCH(B9,MD!$I:$I,0)-4,"")&" "&IF(COUNTIF(MD!$I:$I,D9)>0,MATCH(D9,MD!$I:$I,0)-4,"") -> 16 2 | O9: =Setup!$B$3 -> ΣΤ' ΕΝΩΣΗ | P9: ΣΑ ΤΡΙΠΟΛΗ | Q9: Ε3 19η | R9: b14 | S9: 32
A10: 32 | B10: =IF(OR(MD!$M$21=1,MD!$M$21=2), IF(MD!$M$21=1,MD!$I$21,MD!$I$22),"#") -> 37444 | C10: =TRIM(LEFT(VLOOKUP(B10,ALMD!$C$3:$D$34,2,FALSE),FIND(" ",VLOOKUP(B10,ALMD!$C$3:$D$34,2,FALSE),1)-1)) -> ΝΙΚΟΛΑΟΥ | D10: =IF(OR(MD!$M$21=1,MD!$M$21=2), IF(MD!$M$21=2,MD!$I$21,MD!$I$22),"#") -> 0 | E10: =TRIM(LEFT(VLOOKUP(D10,ALMD!$C$3:$D$34,2,FALSE),FIND(" ",VLOOKUP(D10,ALMD!$C$3:$D$34,2,FALSE),1)-1)) ->  | F10: =MD!O22 -> 0 | H10: =D18 -> 34817 | I10: 9_16 | N10: =IF(COUNTIF(MD!$I:$I,B10)>0,MATCH(B10,MD!$I:$I,0)-4,"")&" "&IF(COUNTIF(MD!$I:$I,D10)>0,MATCH(D10,MD!$I:$I,0)-4,"") -> 17 2 | O10: =Setup!$B$3 -> ΣΤ' ΕΝΩΣΗ | P10: ΣΑ ΤΡΙΠΟΛΗ | Q10: Ε3 19η | R10: b14 | S10: 32
A11: 32 | B11: =IF(OR(MD!$M$23=1,MD!$M$23=2), IF(MD!$M$23=1,MD!$I$23,MD!$I$24),"#") -> 33991 | C11: =TRIM(LEFT(VLOOKUP(B11,ALMD!$C$3:$D$34,2,FALSE),FIND(" ",VLOOKUP(B11,ALMD!$C$3:$D$34,2,FALSE),1)-1)) -> ΛΑΜΠΡΟΠΟΥΛΟΣ | D11: =IF(OR(MD!$M$23=1,MD!$M$23=2), IF(MD!$M$23=2,MD!$I$23,MD!$I$24),"#") -> 0 | E11: =TRIM(LEFT(VLOOKUP(D11,ALMD!$C$3:$D$34,2,FALSE),FIND(" ",VLOOKUP(D11,ALMD!$C$3:$D$34,2,FALSE),1)-1)) ->  | F11: =MD!O24 -> 0 | H11: =D19 -> 32578 | I11: 9_16 | N11: =IF(COUNTIF(MD!$I:$I,B11)>0,MATCH(B11,MD!$I:$I,0)-4,"")&" "&IF(COUNTIF(MD!$I:$I,D11)>0,MATCH(D11,MD!$I:$I,0)-4,"") -> 19 2 | O11: =Setup!$B$3 -> ΣΤ' ΕΝΩΣΗ | P11: ΣΑ ΤΡΙΠΟΛΗ | Q11: Ε3 19η | R11: b14 | S11: 32
A12: 32 | B12: =IF(OR(MD!$M$25=1,MD!$M$25=2), IF(MD!$M$25=1,MD!$I$25,MD!$I$26),"#") -> 31630 | C12: =TRIM(LEFT(VLOOKUP(B12,ALMD!$C$3:$D$34,2,FALSE),FIND(" ",VLOOKUP(B12,ALMD!$C$3:$D$34,2,FALSE),1)-1)) -> ΓΙΑΝΝΑΚΟΠΟΥΛΟΣ | D12: =IF(OR(MD!$M$25=1,MD!$M$25=2), IF(MD!$M$25=2,MD!$I$25,MD!$I$26),"#") -> 33992 | E12: =TRIM(LEFT(VLOOKUP(D12,ALMD!$C$3:$D$34,2,FALSE),FIND(" ",VLOOKUP(D12,ALMD!$C$3:$D$34,2,FALSE),1)-1)) -> ΛΑΜΠΡΟΠΟΥΛΟΣ | F12: =MD!O26 -> 41 41 | H12: 37036 | I12: 9_16 | N12: =IF(COUNTIF(MD!$I:$I,B12)>0,MATCH(B12,MD!$I:$I,0)-4,"")&" "&IF(COUNTIF(MD!$I:$I,D12)>0,MATCH(D12,MD!$I:$I,0)-4,"") -> 21 22 | O12: =Setup!$B$3 -> ΣΤ' ΕΝΩΣΗ | P12: ΣΑ ΤΡΙΠΟΛΗ | Q12: Ε3 19η | R12: b14 | S12: 32
A13: 32 | B13: =IF(OR(MD!$M$27=1,MD!$M$27=2), IF(MD!$M$27=1,MD!$I$27,MD!$I$28),"#") -> 36030 | C13: =TRIM(LEFT(VLOOKUP(B13,ALMD!$C$3:$D$34,2,FALSE),FIND(" ",VLOOKUP(B13,ALMD!$C$3:$D$34,2,FALSE),1)-1)) -> ΤΟΥΝΤΑΣ | D13: =IF(OR(MD!$M$27=1,MD!$M$27=2), IF(MD!$M$27=2,MD!$I$27,MD!$I$28),"#") -> 0 | E13: =TRIM(LEFT(VLOOKUP(D13,ALMD!$C$3:$D$34,2,FALSE),FIND(" ",VLOOKUP(D13,ALMD!$C$3:$D$34,2,FALSE),1)-1)) ->  | F13: =MD!O28 -> 0 | H13: 37284 | I13: 9_16 | N13: =IF(COUNTIF(MD!$I:$I,B13)>0,MATCH(B13,MD!$I:$I,0)-4,"")&" "&IF(COUNTIF(MD!$I:$I,D13)>0,MATCH(D13,MD!$I:$I,0)-4,"") -> 24 2 | O13: =Setup!$B$3 -> ΣΤ' ΕΝΩΣΗ | P13: ΣΑ ΤΡΙΠΟΛΗ | Q13: Ε3 19η | R13: b14 | S13: 32
A14: 32 | B14: =IF(OR(MD!$M$29=1,MD!$M$29=2), IF(MD!$M$29=1,MD!$I$29,MD!$I$30),"#") -> 36853 | C14: =TRIM(LEFT(VLOOKUP(B14,ALMD!$C$3:$D$34,2,FALSE),FIND(" ",VLOOKUP(B14,ALMD!$C$3:$D$34,2,FALSE),1)-1)) -> ΜΑΛΕΒΙΤΗΣ | D14: =IF(OR(MD!$M$29=1,MD!$M$29=2), IF(MD!$M$29=2,MD!$I$29,MD!$I$30),"#") -> 0 | E14: =TRIM(LEFT(VLOOKUP(D14,ALMD!$C$3:$D$34,2,FALSE),FIND(" ",VLOOKUP(D14,ALMD!$C$3:$D$34,2,FALSE),1)-1)) ->  | F14: =MD!O30 -> 0 | H14: 33991 | I14: 9_16 | N14: =IF(COUNTIF(MD!$I:$I,B14)>0,MATCH(B14,MD!$I:$I,0)-4,"")&" "&IF(COUNTIF(MD!$I:$I,D14)>0,MATCH(D14,MD!$I:$I,0)-4,"") -> 25 2 | O14: =Setup!$B$3 -> ΣΤ' ΕΝΩΣΗ | P14: ΣΑ ΤΡΙΠΟΛΗ | Q14: Ε3 19η | R14: b14 | S14: 32
A15: 32 | B15: =IF(OR(MD!$M$31=1,MD!$M$31=2), IF(MD!$M$31=1,MD!$I$31,MD!$I$32),"#") -> 36997 | C15: =TRIM(LEFT(VLOOKUP(B15,ALMD!$C$3:$D$34,2,FALSE),FIND(" ",VLOOKUP(B15,ALMD!$C$3:$D$34,2,FALSE),1)-1)) -> ΜΠΑΚΑΛΟΣ | D15: =IF(OR(MD!$M$31=1,MD!$M$31=2), IF(MD!$M$31=2,MD!$I$31,MD!$I$32),"#") -> 0 | E15: =TRIM(LEFT(VLOOKUP(D15,ALMD!$C$3:$D$34,2,FALSE),FIND(" ",VLOOKUP(D15,ALMD!$C$3:$D$34,2,FALSE),1)-1)) ->  | F15: =MD!O32 -> 0 | H15: 31630 | I15: 9_16 | N15: =IF(COUNTIF(MD!$I:$I,B15)>0,MATCH(B15,MD!$I:$I,0)-4,"")&" "&IF(COUNTIF(MD!$I:$I,D15)>0,MATCH(D15,MD!$I:$I,0)-4,"") -> 27 2 | O15: =Setup!$B$3 -> ΣΤ' ΕΝΩΣΗ | P15: ΣΑ ΤΡΙΠΟΛΗ | Q15: Ε3 19η | R15: b14 | S15: 32
A16: 32 | B16: =IF(OR(MD!$M$33=1,MD!$M$33=2), IF(MD!$M$33=1,MD!$I$33,MD!$I$34),"#") -> 31771 | C16: =TRIM(LEFT(VLOOKUP(B16,ALMD!$C$3:$D$34,2,FALSE),FIND(" ",VLOOKUP(B16,ALMD!$C$3:$D$34,2,FALSE),1)-1)) -> ΓΚΟΥΝΤΑΝΗΣ | D16: =IF(OR(MD!$M$33=1,MD!$M$33=2), IF(MD!$M$33=2,MD!$I$33,MD!$I$34),"#") -> 38866 | E16: =TRIM(LEFT(VLOOKUP(D16,ALMD!$C$3:$D$34,2,FALSE),FIND(" ",VLOOKUP(D16,ALMD!$C$3:$D$34,2,FALSE),1)-1)) -> ΝΤΟΥΛΙΑΣ | F16: =MD!O34 -> 41 42 | H16: 36997 | I16: 9_16 | N16: =IF(COUNTIF(MD!$I:$I,B16)>0,MATCH(B16,MD!$I:$I,0)-4,"")&" "&IF(COUNTIF(MD!$I:$I,D16)>0,MATCH(D16,MD!$I:$I,0)-4,"") -> 29 30 | O16: =Setup!$B$3 -> ΣΤ' ΕΝΩΣΗ | P16: ΣΑ ΤΡΙΠΟΛΗ | Q16: Ε3 19η | R16: b14 | S16: 32
A17: 32 | B17: =IF(OR(MD!$M$35=1,MD!$M$35=2), IF(MD!$M$35=1,MD!$I$35,MD!$I$36),"#") -> 36854 | C17: =TRIM(LEFT(VLOOKUP(B17,ALMD!$C$3:$D$34,2,FALSE),FIND(" ",VLOOKUP(B17,ALMD!$C$3:$D$34,2,FALSE),1)-1)) -> ΚΥΡΙΑΚΟΠΟΥΛΟΣ | D17: =IF(OR(MD!$M$35=1,MD!$M$35=2), IF(MD!$M$35=2,MD!$I$35,MD!$I$36),"#") -> 0 | E17: =TRIM(LEFT(VLOOKUP(D17,ALMD!$C$3:$D$34,2,FALSE),FIND(" ",VLOOKUP(D17,ALMD!$C$3:$D$34,2,FALSE),1)-1)) ->  | F17: =MD!O36 -> 0 | H17: 31771 | I17: 9_16 | N17: =IF(COUNTIF(MD!$I:$I,B17)>0,MATCH(B17,MD!$I:$I,0)-4,"")&" "&IF(COUNTIF(MD!$I:$I,D17)>0,MATCH(D17,MD!$I:$I,0)-4,"") -> 32 2 | O17: =Setup!$B$3 -> ΣΤ' ΕΝΩΣΗ | P17: ΣΑ ΤΡΙΠΟΛΗ | Q17: Ε3 19η | R17: b14 | S17: 32
A18: 16 | B18: =IF(OR(MD!$P$6 =1,MD!$P$6 =2), IF(MD!$P$6 =1,MD!$N$5,MD!$N$7),"#") -> 34598 | C18: =TRIM(LEFT(VLOOKUP(B18,ALMD!$C$3:$D$34,2,FALSE),FIND(" ",VLOOKUP(B18,ALMD!$C$3:$D$34,2,FALSE),1)-1)) -> ΚΟΛΛΙΑΣ | D18: =IF(OR(MD!$P$6 =1,MD!$P$6 =2), IF(MD!$P$6 =2,MD!$N$5,MD!$N$7),"#") -> 34817 | E18: =TRIM(LEFT(VLOOKUP(D18,ALMD!$C$3:$D$34,2,FALSE),FIND(" ",VLOOKUP(D18,ALMD!$C$3:$D$34,2,FALSE),1)-1)) -> ΤΖΟΥΤΖΟΠΟΥΛΟΣ | F18: =MD!R7 -> 40 42 | H18: =D2 -> 0 | I18: 17_32 | N18: =IF(COUNTIF(MD!$N:$N,B18)>0,MATCH(B18,MD!$N:$N,0)-4,"")&" "&IF(COUNTIF(MD!$N:$N,D18)>0,MATCH(D18,MD!$N:$N,0)-4,"") -> 1 3 | O18: =Setup!$B$3 -> ΣΤ' ΕΝΩΣΗ | P18: ΣΑ ΤΡΙΠΟΛΗ | Q18: Ε3 19η | R18: b14 | S18: 32
A19: 16 | B19: =IF(OR(MD!$P$10=1,MD!$P$10=2), IF(MD!$P$10=1,MD!$N$9,MD!$N$11),"#") -> 30151 | C19: =TRIM(LEFT(VLOOKUP(B19,ALMD!$C$3:$D$34,2,FALSE),FIND(" ",VLOOKUP(B19,ALMD!$C$3:$D$34,2,FALSE),1)-1)) -> ΚΑΡΑΝΑΓΝΩΣΤΗΣ | D19: =IF(OR(MD!$P$10=1,MD!$P$10=2), IF(MD!$P$10=2,MD!$N$9,MD!$N$11),"#") -> 32578 | E19: =TRIM(LEFT(VLOOKUP(D19,ALMD!$C$3:$D$34,2,FALSE),FIND(" ",VLOOKUP(D19,ALMD!$C$3:$D$34,2,FALSE),1)-1)) -> ΜΟΥΡΙΚΗΣ | F19: =MD!R11 -> 40 40 | H19: =D3 -> 33450 | I19: 17_32 | N19: =IF(COUNTIF(MD!$N:$N,B19)>0,MATCH(B19,MD!$N:$N,0)-4,"")&" "&IF(COUNTIF(MD!$N:$N,D19)>0,MATCH(D19,MD!$N:$N,0)-4,"") -> 7 5 | O19: =Setup!$B$3 -> ΣΤ' ΕΝΩΣΗ | P19: ΣΑ ΤΡΙΠΟΛΗ | Q19: Ε3 19η | R19: b14 | S19: 32
A20: 16 | B20: =IF(OR(MD!$P$14=1,MD!$P$14=2), IF(MD!$P$14=1,MD!$N$13,MD!$N$15),"#") -> 39823 | C20: =TRIM(LEFT(VLOOKUP(B20,ALMD!$C$3:$D$34,2,FALSE),FIND(" ",VLOOKUP(B20,ALMD!$C$3:$D$34,2,FALSE),1)-1)) -> ΠΑΠΑΝΙΚΟΛΑΟΥ | D20: =IF(OR(MD!$P$14=1,MD!$P$14=2), IF(MD!$P$14=2,MD!$N$13,MD!$N$15),"#") -> 37036 | E20: =TRIM(LEFT(VLOOKUP(D20,ALMD!$C$3:$D$34,2,FALSE),FIND(" ",VLOOKUP(D20,ALMD!$C$3:$D$34,2,FALSE),1)-1)) -> ΛΟΥΚΑ | F20: =MD!R15 -> 14 40 75 | H20: 0 | I20: 17_32 | N20: =IF(COUNTIF(MD!$N:$N,B20)>0,MATCH(B20,MD!$N:$N,0)-4,"")&" "&IF(COUNTIF(MD!$N:$N,D20)>0,MATCH(D20,MD!$N:$N,0)-4,"") -> 11 9 | O20: =Setup!$B$3 -> ΣΤ' ΕΝΩΣΗ | P20: ΣΑ ΤΡΙΠΟΛΗ | Q20: Ε3 19η | R20: b14 | S20: 32
A21: 16 | B21: =IF(OR(MD!$P$18=1,MD!$P$18=2), IF(MD!$P$18=1,MD!$N$17,MD!$N$19),"#") -> 36852 | C21: =TRIM(LEFT(VLOOKUP(B21,ALMD!$C$3:$D$34,2,FALSE),FIND(" ",VLOOKUP(B21,ALMD!$C$3:$D$34,2,FALSE),1)-1)) -> ΤΖΩΡΤΖΑΤΟΣ | D21: =IF(OR(MD!$P$18=1,MD!$P$18=2), IF(MD!$P$18=2,MD!$N$17,MD!$N$19),"#") -> 37284 | E21: =TRIM(LEFT(VLOOKUP(D21,ALMD!$C$3:$D$34,2,FALSE),FIND(" ",VLOOKUP(D21,ALMD!$C$3:$D$34,2,FALSE),1)-1)) -> ΑΔΑΜΟΠΟΥΛΟΣ | F21: =MD!R19 -> 40 40 | H21: 0 | I21: 17_32 | N21: =IF(COUNTIF(MD!$N:$N,B21)>0,MATCH(B21,MD!$N:$N,0)-4,"")&" "&IF(COUNTIF(MD!$N:$N,D21)>0,MATCH(D21,MD!$N:$N,0)-4,"") -> 15 13 | O21: =Setup!$B$3 -> ΣΤ' ΕΝΩΣΗ | P21: ΣΑ ΤΡΙΠΟΛΗ | Q21: Ε3 19η | R21: b14 | S21: 32
A22: 16 | B22: =IF(OR(MD!$P$22=1,MD!$P$22=2), IF(MD!$P$22=1,MD!$N$21,MD!$N$23),"#") -> 37444 | C22: =TRIM(LEFT(VLOOKUP(B22,ALMD!$C$3:$D$34,2,FALSE),FIND(" ",VLOOKUP(B22,ALMD!$C$3:$D$34,2,FALSE),1)-1)) -> ΝΙΚΟΛΑΟΥ | D22: =IF(OR(MD!$P$22=1,MD!$P$22=2), IF(MD!$P$22=2,MD!$N$21,MD!$N$23),"#") -> 33991 | E22: =TRIM(LEFT(VLOOKUP(D22,ALMD!$C$3:$D$34,2,FALSE),FIND(" ",VLOOKUP(D22,ALMD!$C$3:$D$34,2,FALSE),1)-1)) -> ΛΑΜΠΡΟΠΟΥΛΟΣ | F22: =MD!R23 -> 40 40 | H22: 0 | I22: 17_32 | N22: =IF(COUNTIF(MD!$N:$N,B22)>0,MATCH(B22,MD!$N:$N,0)-4,"")&" "&IF(COUNTIF(MD!$N:$N,D22)>0,MATCH(D22,MD!$N:$N,0)-4,"") -> 17 19 | O22: =Setup!$B$3 -> ΣΤ' ΕΝΩΣΗ | P22: ΣΑ ΤΡΙΠΟΛΗ | Q22: Ε3 19η | R22: b14 | S22: 32
A23: 16 | B23: =IF(OR(MD!$P$26=1,MD!$P$26=2), IF(MD!$P$26=1,MD!$N$25,MD!$N$27),"#") -> 36030 | C23: =TRIM(LEFT(VLOOKUP(B23,ALMD!$C$3:$D$34,2,FALSE),FIND(" ",VLOOKUP(B23,ALMD!$C$3:$D$34,2,FALSE),1)-1)) -> ΤΟΥΝΤΑΣ | D23: =IF(OR(MD!$P$26=1,MD!$P$26=2), IF(MD!$P$26=2,MD!$N$25,MD!$N$27),"#") -> 31630 | E23: =TRIM(LEFT(VLOOKUP(D23,ALMD!$C$3:$D$34,2,FALSE),FIND(" ",VLOOKUP(D23,ALMD!$C$3:$D$34,2,FALSE),1)-1)) -> ΓΙΑΝΝΑΚΟΠΟΥΛΟΣ | F23: =MD!R27 -> 24 40 73 | H23: 39014 | I23: 17_32 | N23: =IF(COUNTIF(MD!$N:$N,B23)>0,MATCH(B23,MD!$N:$N,0)-4,"")&" "&IF(COUNTIF(MD!$N:$N,D23)>0,MATCH(D23,MD!$N:$N,0)-4,"") -> 23 21 | O23: =Setup!$B$3 -> ΣΤ' ΕΝΩΣΗ | P23: ΣΑ ΤΡΙΠΟΛΗ | Q23: Ε3 19η | R23: b14 | S23: 32
A24: 16 | B24: =IF(OR(MD!$P$30=1,MD!$P$30=2), IF(MD!$P$30=1,MD!$N$29,MD!$N$31),"#") -> 36853 | C24: =TRIM(LEFT(VLOOKUP(B24,ALMD!$C$3:$D$34,2,FALSE),FIND(" ",VLOOKUP(B24,ALMD!$C$3:$D$34,2,FALSE),1)-1)) -> ΜΑΛΕΒΙΤΗΣ | D24: =IF(OR(MD!$P$30=1,MD!$P$30=2), IF(MD!$P$30=2,MD!$N$29,MD!$N$31),"#") -> 36997 | E24: =TRIM(LEFT(VLOOKUP(D24,ALMD!$C$3:$D$34,2,FALSE),FIND(" ",VLOOKUP(D24,ALMD!$C$3:$D$34,2,FALSE),1)-1)) -> ΜΠΑΚΑΛΟΣ | F24: =MD!R31 -> 40 40 | H24: 0 | I24: 17_32 | N24: =IF(COUNTIF(MD!$N:$N,B24)>0,MATCH(B24,MD!$N:$N,0)-4,"")&" "&IF(COUNTIF(MD!$N:$N,D24)>0,MATCH(D24,MD!$N:$N,0)-4,"") -> 25 27 | O24: =Setup!$B$3 -> ΣΤ' ΕΝΩΣΗ | P24: ΣΑ ΤΡΙΠΟΛΗ | Q24: Ε3 19η | R24: b14 | S24: 32
A25: 16 | B25: =IF(OR(MD!$P$34=1,MD!$P$34=2), IF(MD!$P$34=1,MD!$N$33,MD!$N$35),"#") -> 36854 | C25: =TRIM(LEFT(VLOOKUP(B25,ALMD!$C$3:$D$34,2,FALSE),FIND(" ",VLOOKUP(B25,ALMD!$C$3:$D$34,2,FALSE),1)-1)) -> ΚΥΡΙΑΚΟΠΟΥΛΟΣ | D25: =IF(OR(MD!$P$34=1,MD!$P$34=2), IF(MD!$P$34=2,MD!$N$33,MD!$N$35),"#") -> 31771 | E25: =TRIM(LEFT(VLOOKUP(D25,ALMD!$C$3:$D$34,2,FALSE),FIND(" ",VLOOKUP(D25,ALMD!$C$3:$D$34,2,FALSE),1)-1)) -> ΓΚΟΥΝΤΑΝΗΣ | F25: =MD!R35 -> 40 53 | H25: 0 | I25: 17_32 | N25: =IF(COUNTIF(MD!$N:$N,B25)>0,MATCH(B25,MD!$N:$N,0)-4,"")&" "&IF(COUNTIF(MD!$N:$N,D25)>0,MATCH(D25,MD!$N:$N,0)-4,"") -> 31 29 | O25: =Setup!$B$3 -> ΣΤ' ΕΝΩΣΗ | P25: ΣΑ ΤΡΙΠΟΛΗ | Q25: Ε3 19η | R25: b14 | S25: 32
A26: 8 | B26: =IF(OR(MD!$S$8 =1,MD!$S$8 =2), IF(MD!$S$8 =1,MD!$Q$6,MD!$Q$10),"#") -> 34598 | C26: =TRIM(LEFT(VLOOKUP(B26,ALMD!$C$3:$D$34,2,FALSE),FIND(" ",VLOOKUP(B26,ALMD!$C$3:$D$34,2,FALSE),1)-1)) -> ΚΟΛΛΙΑΣ | D26: =IF(OR(MD!$S$8 =1,MD!$S$8 =2), IF(MD!$S$8 =2,MD!$Q$6,MD!$Q$10),"#") -> 30151 | E26: =TRIM(LEFT(VLOOKUP(D26,ALMD!$C$3:$D$34,2,FALSE),FIND(" ",VLOOKUP(D26,ALMD!$C$3:$D$34,2,FALSE),1)-1)) -> ΚΑΡΑΝΑΓΝΩΣΤΗΣ | F26: =MD!U9 -> 40 40 | H26: 0 | I26: 17_32 | N26: =IF(COUNTIF(MD!$Q:$Q,B26)>0,MATCH(B26,MD!$Q:$Q,0)-4,"")&" "&IF(COUNTIF(MD!$Q:$Q,D26)>0,MATCH(D26,MD!$Q:$Q,0)-4,"") -> 2 6 | O26: =Setup!$B$3 -> ΣΤ' ΕΝΩΣΗ | P26: ΣΑ ΤΡΙΠΟΛΗ | Q26: Ε3 19η | R26: b14 | S26: 32
A27: 8 | B27: =IF(OR(MD!$S$16=1,MD!$S$16=2), IF(MD!$S$16=1,MD!$Q$14,MD!$Q$18),"#") -> 36852 | C27: =TRIM(LEFT(VLOOKUP(B27,ALMD!$C$3:$D$34,2,FALSE),FIND(" ",VLOOKUP(B27,ALMD!$C$3:$D$34,2,FALSE),1)-1)) -> ΤΖΩΡΤΖΑΤΟΣ | D27: =IF(OR(MD!$S$16=1,MD!$S$16=2), IF(MD!$S$16=2,MD!$Q$14,MD!$Q$18),"#") -> 39823 | E27: =TRIM(LEFT(VLOOKUP(D27,ALMD!$C$3:$D$34,2,FALSE),FIND(" ",VLOOKUP(D27,ALMD!$C$3:$D$34,2,FALSE),1)-1)) -> ΠΑΠΑΝΙΚΟΛΑΟΥ | F27: =MD!U17 -> 24 53 74 | H27: 0 | I27: 17_32 | N27: =IF(COUNTIF(MD!$Q:$Q,B27)>0,MATCH(B27,MD!$Q:$Q,0)-4,"")&" "&IF(COUNTIF(MD!$Q:$Q,D27)>0,MATCH(D27,MD!$Q:$Q,0)-4,"") -> 14 10 | O27: =Setup!$B$3 -> ΣΤ' ΕΝΩΣΗ | P27: ΣΑ ΤΡΙΠΟΛΗ | Q27: Ε3 19η | R27: b14 | S27: 32
A28: 8 | B28: =IF(OR(MD!$S$24=1,MD!$S$24=2), IF(MD!$S$24=1,MD!$Q$22,MD!$Q$26),"#") -> 36030 | C28: =TRIM(LEFT(VLOOKUP(B28,ALMD!$C$3:$D$34,2,FALSE),FIND(" ",VLOOKUP(B28,ALMD!$C$3:$D$34,2,FALSE),1)-1)) -> ΤΟΥΝΤΑΣ | D28: =IF(OR(MD!$S$24=1,MD!$S$24=2), IF(MD!$S$24=2,MD!$Q$22,MD!$Q$26),"#") -> 37444 | E28: =TRIM(LEFT(VLOOKUP(D28,ALMD!$C$3:$D$34,2,FALSE),FIND(" ",VLOOKUP(D28,ALMD!$C$3:$D$34,2,FALSE),1)-1)) -> ΝΙΚΟΛΑΟΥ | F28: =MD!U25 -> 42 41 | H28: 33992 | I28: 17_32 | N28: =IF(COUNTIF(MD!$Q:$Q,B28)>0,MATCH(B28,MD!$Q:$Q,0)-4,"")&" "&IF(COUNTIF(MD!$Q:$Q,D28)>0,MATCH(D28,MD!$Q:$Q,0)-4,"") -> 22 18 | O28: =Setup!$B$3 -> ΣΤ' ΕΝΩΣΗ | P28: ΣΑ ΤΡΙΠΟΛΗ | Q28: Ε3 19η | R28: b14 | S28: 32
A29: 8 | B29: =IF(OR(MD!$S$32=1,MD!$S$32=2), IF(MD!$S$32=1,MD!$Q$30,MD!$Q$34),"#") -> 36854 | C29: =TRIM(LEFT(VLOOKUP(B29,ALMD!$C$3:$D$34,2,FALSE),FIND(" ",VLOOKUP(B29,ALMD!$C$3:$D$34,2,FALSE),1)-1)) -> ΚΥΡΙΑΚΟΠΟΥΛΟΣ | D29: =IF(OR(MD!$S$32=1,MD!$S$32=2), IF(MD!$S$32=2,MD!$Q$30,MD!$Q$34),"#") -> 36853 | E29: =TRIM(LEFT(VLOOKUP(D29,ALMD!$C$3:$D$34,2,FALSE),FIND(" ",VLOOKUP(D29,ALMD!$C$3:$D$34,2,FALSE),1)-1)) -> ΜΑΛΕΒΙΤΗΣ | F29: =MD!U33 -> 41 40 | H29: 0 | I29: 17_32 | N29: =IF(COUNTIF(MD!$Q:$Q,B29)>0,MATCH(B29,MD!$Q:$Q,0)-4,"")&" "&IF(COUNTIF(MD!$Q:$Q,D29)>0,MATCH(D29,MD!$Q:$Q,0)-4,"") -> 30 26 | O29: =Setup!$B$3 -> ΣΤ' ΕΝΩΣΗ | P29: ΣΑ ΤΡΙΠΟΛΗ | Q29: Ε3 19η | R29: b14 | S29: 32
A30: 4 | B30: =IF(OR(MD!$V$12=1,MD!$V$12=2), IF(MD!$V$12=1,MD!$T$8,MD!$T$16),"#") -> 34598 | C30: =TRIM(LEFT(VLOOKUP(B30,ALMD!$C$3:$D$34,2,FALSE),FIND(" ",VLOOKUP(B30,ALMD!$C$3:$D$34,2,FALSE),1)-1)) -> ΚΟΛΛΙΑΣ | D30: =IF(OR(MD!$V$12=1,MD!$V$12=2), IF(MD!$V$12=2,MD!$T$8,MD!$T$16),"#") -> 36852 | E30: =TRIM(LEFT(VLOOKUP(D30,ALMD!$C$3:$D$34,2,FALSE),FIND(" ",VLOOKUP(D30,ALMD!$C$3:$D$34,2,FALSE),1)-1)) -> ΤΖΩΡΤΖΑΤΟΣ | F30: =MD!X13 -> 62 61 | H30: 0 | I30: 17_32 | N30: =IF(COUNTIF(MD!$T:$T,B30)>0,MATCH(B30,MD!$T:$T,0)-4,"")&" "&IF(COUNTIF(MD!$T:$T,D30)>0,MATCH(D30,MD!$T:$T,0)-4,"") -> 4 12 | O30: =Setup!$B$3 -> ΣΤ' ΕΝΩΣΗ | P30: ΣΑ ΤΡΙΠΟΛΗ | Q30: Ε3 19η | R30: b14 | S30: 32
A31: 4 | B31: =IF(OR(MD!$V$28=1,MD!$V$28=2), IF(MD!$V$28=1,MD!$T$24,MD!$T$32),"#") -> 36030 | C31: =TRIM(LEFT(VLOOKUP(B31,ALMD!$C$3:$D$34,2,FALSE),FIND(" ",VLOOKUP(B31,ALMD!$C$3:$D$34,2,FALSE),1)-1)) -> ΤΟΥΝΤΑΣ | D31: =IF(OR(MD!$V$28=1,MD!$V$28=2), IF(MD!$V$28=2,MD!$T$24,MD!$T$32),"#") -> 36854 | E31: =TRIM(LEFT(VLOOKUP(D31,ALMD!$C$3:$D$34,2,FALSE),FIND(" ",VLOOKUP(D31,ALMD!$C$3:$D$34,2,FALSE),1)-1)) -> ΚΥΡΙΑΚΟΠΟΥΛΟΣ | F31: =MD!X29 -> 64 61 | H31: 0 | I31: 17_32 | N31: =IF(COUNTIF(MD!$T:$T,B31)>0,MATCH(B31,MD!$T:$T,0)-4,"")&" "&IF(COUNTIF(MD!$T:$T,D31)>0,MATCH(D31,MD!$T:$T,0)-4,"") -> 20 28 | O31: =Setup!$B$3 -> ΣΤ' ΕΝΩΣΗ | P31: ΣΑ ΤΡΙΠΟΛΗ | Q31: Ε3 19η | R31: b14 | S31: 32
A32: 2 | B32: =IF(OR(MD!$V$20=1,MD!$V$20=2), IF(MD!$V$20=1,MD!$W$12,MD!$W$28),"#") -> 34598 | C32: =TRIM(LEFT(VLOOKUP(B32,ALMD!$C$3:$D$34,2,FALSE),FIND(" ",VLOOKUP(B32,ALMD!$C$3:$D$34,2,FALSE),1)-1)) -> ΚΟΛΛΙΑΣ | D32: =IF(OR(MD!$V$20=1,MD!$V$20=2), IF(MD!$V$20=2,MD!$W$12,MD!$W$28),"#") -> 36030 | E32: =TRIM(LEFT(VLOOKUP(D32,ALMD!$C$3:$D$34,2,FALSE),FIND(" ",VLOOKUP(D32,ALMD!$C$3:$D$34,2,FALSE),1)-1)) -> ΤΟΥΝΤΑΣ | F32: =MD!X21 -> 64 46 64 | H32: 38866 | I32: 17_32 | N32: =IF(COUNTIF(MD!$W:$W,B32)>0,MATCH(B32,MD!$W:$W,0)-4,"")&" "&IF(COUNTIF(MD!$W:$W,D32)>0,MATCH(D32,MD!$W:$W,0)-4,"") -> 8 24 | O32: =Setup!$B$3 -> ΣΤ' ΕΝΩΣΗ | P32: ΣΑ ΤΡΙΠΟΛΗ | Q32: Ε3 19η | R32: b14 | S32: 32
H33: =D17 -> 0 | I33: 17_32 | O33: =Setup!$B$3 -> ΣΤ' ΕΝΩΣΗ | P33: ΣΑ ΤΡΙΠΟΛΗ | Q33: Ε3 19η | R33: b14 | S33: 32

Sheet e-efoa (hidden)
A1: organizer | B1: club | C1: title | D1: group | E1: Dsize | F1: MStartDate | G1: TournamentDetailsId | H1: round | I1: WPlayerCode | J1: LPlayerCode | K1: Score | L1: WRow | M1: LRow | N1: WSeed | O1: LSeed | P1: W | Q1: L | R1: n/m | T1: seed | U1: cmnt | V1: TournamentDetailsId | W1: PlayerCode | X1: Round | Y1: Wins | Z1: Matches | AA1: PtsQ | AB1: PtsM | AC1: Age | AE1: ID | AF1: name | AG1: row | AH1: seed | AJ1: RankKey | AL1: MatcheNames | AM1: key | AN1: PlayerName 1 | AO1: PlayerName 2
A2: =Setup!$B$3 -> ΣΤ' ΕΝΩΣΗ | B2: =Setup!$Z$6 -> 294 | C2: =Setup!$Z$5 -> Ε3 19η (ΣΤ) | D2: =SUBSTITUTE(TRIM(Setup!$B$6),"-","") -> Α14 | E2: Smd32 | F2: =TEXT(Setup!$B$8,"ΕΕΕΕ-ΜΜ-ΗΗ") -> 2018-05-12 | G2: =Setup!$T$7 ->  | H2: R32 | I2: =IF(OR(MD!$M$5 =1,MD!$M$5 =2), IF(MD!$M$5 =1,MD!$I$5,MD!$I$6),"") -> 34598 | J2: =IF(OR(MD!$M$5 =1,MD!$M$5 =2), IF(MD!$M$5 =2,MD!$I$5,MD!$I$6),"") -> 0 | K2: =TRIM(MD!O6) ->  | L2: =IF(AND(I2<>"",I2>0),IF(VALUE(I2)>0,VLOOKUP(I2,$AE:$AH,3,FALSE),0),0) -> 1 | M2: =IF(AND(J2<>"",J2>0),IF(VALUE(J2)>0,VLOOKUP(J2,$AE:$AH,3,FALSE),0),0) -> 0 | N2: =IF(AND(I2<>"",I2>0),IF(VALUE(I2)>0,VLOOKUP(I2,$AE:$AH,4,FALSE),0),0) -> 1 | O2: =IF(AND(J2<>"",J2>0),IF(VALUE(J2)>0,VLOOKUP(J2,$AE:$AH,4,FALSE),0),0) -> 0 | P2: =IF($R2="",I2,"") ->  | Q2: =IF($R2="",J2,"") ->  | R2: =IF(OR(J2=0,K2=""),1,IF(TEXT(K2,"0")=SUBSTITUTE(LOWER(K2),"m",""),"",1)) -> 1 | T2: =IF(W2<>"",IF(VALUE(W2)>0,VLOOKUP(W2,$AE:$AH,4,FALSE),""),"") -> 1 | U2: =IF(NOT(OR(W2=0,W2=" ",W2="")),IF(INDIRECT("ALMD!B"&MATCH(W2,ALMD!$C$3:$C$34,0)+2)>0,INDIRECT("ALMD!B"&MATCH(W2,ALMD!$C$3:$C$34,0)+2),""),"") ->  | V2: =Setup!$T$7 ->  | W2: =I32 -> 34598 | X2: 1st | Y2: =IF($W2>0,COUNTIF($P$2:$P$32,$W2),0) -> 4 | Z2: =IF($W2>0,COUNTIF($P$2:$P$32,$W2)+COUNTIF($Q$2:$Q$32,$W2),0) -> 4 | AA2: 0 | AB2: =IF(OR($Z2=0,$Z2="",$U2="DQ"),0,VLOOKUP($AJ2,tables!$AF:$AG,2,FALSE)) -> 18 | AC2: =IF(W2>0,YEAR(Setup!$B$8)-YEAR(VLOOKUP(W2,ALMD!$C:$F,3,FALSE)),0) -> 14 | AE2: =MD!$I5 -> 34598 | AF2: =MD!$K5 -> ΚΟΛΛΙΑΣ Σ | AG2: =IF(AE2>0,MD!$A5,"") -> 1 | AH2: =MD!$G5 -> 1 | AJ2: =SUBSTITUTE(SUBSTITUTE(Setup!$B$5&"S-"&Setup!$B$13&"-"&X2,"Ανδ-",""),"Γυν-","") -> Ε3S-14-1st | AL2: =IF(AO2>" ", IF(OR(AM2=AM3,AM2=AM1), IF(AM2=AM3,AN2&"/"&AN3&" - "&AO2&"/"&AO3, AN1&"/"&AN2&" - "&AO1&"/"&AO2),AN2&" - "&AO2), IF(OR(AM2=AM3,AM2=AM1), IF(AM2=AM3,AN2&"/"&AN3, AN1&"/"&AN2),AN2)) ->  | AM2: =G2&H2&L2 ->  | AN2: =IF(I2<=0,"",TRIM(LEFT(LEFT(VLOOKUP(I2,$AE:$AF,2,FALSE),FIND(" ",VLOOKUP(I2,$AE:$AF,2,FALSE),1)-1),15)&" "&LEFT(MID(VLOOKUP(I2,$AE:$AF,2,FALSE),FIND(" ",VLOOKUP(I2,$AE:$AF,2,FALSE),1)+1,20),3))) -> ΚΟΛΛΙΑΣ Σ
A3: =Setup!$B$3 -> ΣΤ' ΕΝΩΣΗ | B3: =Setup!$Z$6 -> 294 | C3: =Setup!$Z$5 -> Ε3 19η (ΣΤ) | D3: =SUBSTITUTE(TRIM(Setup!$B$6),"-","") -> Α14 | E3: Smd32 | F3: =TEXT(Setup!$B$8,"ΕΕΕΕ-ΜΜ-ΗΗ") -> 2018-05-12 | G3: =Setup!$T$7 ->  | H3: R32 | I3: =IF(OR(MD!$M$7 =1,MD!$M$7 =2), IF(MD!$M$7 =1,MD!$I$7,MD!$I$8),"") -> 34817 | J3: =IF(OR(MD!$M$7 =1,MD!$M$7 =2), IF(MD!$M$7 =2,MD!$I$7,MD!$I$8),"") -> 33450 | K3: =TRIM(MD!O8) -> 41 53 | L3: =IF(AND(I3<>"",I3>0),IF(VALUE(I3)>0,VLOOKUP(I3,$AE:$AH,3,FALSE),0),0) -> 3 | M3: =IF(AND(J3<>"",J3>0),IF(VALUE(J3)>0,VLOOKUP(J3,$AE:$AH,3,FALSE),0),0) -> 4 | N3: =IF(AND(I3<>"",I3>0),IF(VALUE(I3)>0,VLOOKUP(I3,$AE:$AH,4,FALSE),0),0) -> 13 | O3: =IF(AND(J3<>"",J3>0),IF(VALUE(J3)>0,VLOOKUP(J3,$AE:$AH,4,FALSE),0),0) -> 9 | P3: =IF($R3="",I3,"") -> 34817 | Q3: =IF($R3="",J3,"") -> 33450 | R3: =IF(OR(J3=0,K3=""),1,IF(TEXT(K3,"0")=SUBSTITUTE(LOWER(K3),"m",""),"",1)) ->  | T3: 4 | U3: =IF(NOT(OR(W3=0,W3=" ",W3="")),IF(INDIRECT("ALMD!B"&MATCH(W3,ALMD!$C$3:$C$34,0)+2)>0,INDIRECT("ALMD!B"&MATCH(W3,ALMD!$C$3:$C$34,0)+2),""),"") ->  | V3: =Setup!$T$7 ->  | W3: =J32 -> 36030 | X3: 2nd | Y3: =IF($W3>0,COUNTIF($P$2:$P$32,$W3),0) -> 3 | Z3: =IF($W3>0,COUNTIF($P$2:$P$32,$W3)+COUNTIF($Q$2:$Q$32,$W3),0) -> 4 | AA3: 0 | AB3: =IF(OR($Z3=0,$Z3="",$U3="DQ"),0,VLOOKUP($AJ3,tables!$AF:$AG,2,FALSE)) -> 15 | AC3: =IF(W3>0,YEAR(Setup!$B$8)-YEAR(VLOOKUP(W3,ALMD!$C:$F,3,FALSE)),0) -> 13 | AE3: =MD!$I6 -> 0 | AF3: =MD!$K6 ->  | AG3: =IF(AE3>0,MD!$A6,"") ->  | AH3: =MD!$G6 -> - | AJ3: =SUBSTITUTE(SUBSTITUTE(Setup!$B$5&"S-"&Setup!$B$13&"-"&X3,"Ανδ-",""),"Γυν-","") -> Ε3S-14-2nd | AN3: ΤΖΟΥΤΖΟΠΟΥΛΟΣ Θ | AO3: ΚΑΜΠΑΝΟΣ Ε
A4: =Setup!$B$3 -> ΣΤ' ΕΝΩΣΗ | B4: =Setup!$Z$6 -> 294 | C4: =Setup!$Z$5 -> Ε3 19η (ΣΤ) | D4: =SUBSTITUTE(TRIM(Setup!$B$6),"-","") -> Α14 | E4: Smd32 | F4: =TEXT(Setup!$B$8,"ΕΕΕΕ-ΜΜ-ΗΗ") -> 2018-05-12 | G4: =Setup!$T$7 ->  | H4: R32 | I4: =IF(OR(MD!$M$9 =1,MD!$M$9 =2), IF(MD!$M$9 =1,MD!$I$9,MD!$I$10),"") -> 32578 | J4: =IF(OR(MD!$M$9 =1,MD!$M$9 =2), IF(MD!$M$9 =2,MD!$I$9,MD!$I$10),"") -> 0 | K4: =TRIM(MD!O10) ->  | L4: 5 | M4: 0 | N4: 16 | O4: 0 | R4: 1 | T4: 5 | U4: =IF(NOT(OR(W4=0,W4=" ",W4="")),IF(INDIRECT("ALMD!B"&MATCH(W4,ALMD!$C$3:$C$34,0)+2)>0,INDIRECT("ALMD!B"&MATCH(W4,ALMD!$C$3:$C$34,0)+2),""),"") ->  | V4: =Setup!$T$7 ->  | W4: =J30 -> 36852 | X4: 3_4 | Y4: 2 | Z4: 3 | AA4: 0 | AB4: =IF(OR($Z4=0,$Z4="",$U4="DQ"),0,VLOOKUP($AJ4,tables!$AF:$AG,2,FALSE)) -> 9 | AC4: =IF(W4>0,YEAR(Setup!$B$8)-YEAR(VLOOKUP(W4,ALMD!$C:$F,3,FALSE)),0) -> 12 | AE4: =MD!$I7 -> 34817 | AF4: =MD!$K7 -> ΤΖΟΥΤΖΟΠΟΥΛΟΣ Θ | AG4: =IF(AE4>0,MD!$A7,"") -> 3 | AH4: =MD!$G7 -> 13 | AJ4: =SUBSTITUTE(SUBSTITUTE(Setup!$B$5&"S-"&Setup!$B$13&"-"&X4,"Ανδ-",""),"Γυν-","") -> Ε3S-14-3_4 | AN4: ΜΟΥΡΙΚΗΣ Κ
A5: =Setup!$B$3 -> ΣΤ' ΕΝΩΣΗ | B5: =Setup!$Z$6 -> 294 | C5: =Setup!$Z$5 -> Ε3 19η (ΣΤ) | D5: =SUBSTITUTE(TRIM(Setup!$B$6),"-","") -> Α14 | E5: Smd32 | F5: =TEXT(Setup!$B$8,"ΕΕΕΕ-ΜΜ-ΗΗ") -> 2018-05-12 | G5: =Setup!$T$7 ->  | H5: R32 | I5: =IF(OR(MD!$M$11=1,MD!$M$11=2), IF(MD!$M$11=1,MD!$I$11,MD!$I$12),"") -> 30151 | J5: =IF(OR(MD!$M$11=1,MD!$M$11=2), IF(MD!$M$11=2,MD!$I$11,MD!$I$12),"") -> 0 | K5: =TRIM(MD!O12) ->  | L5: 8 | M5: 0 | N5: 6 | O5: 0 | R5: 1 | T5: 2 | U5: =IF(NOT(OR(W5=0,W5=" ",W5="")),IF(INDIRECT("ALMD!B"&MATCH(W5,ALMD!$C$3:$C$34,0)+2)>0,INDIRECT("ALMD!B"&MATCH(W5,ALMD!$C$3:$C$34,0)+2),""),"") ->  | V5: =Setup!$T$7 ->  | W5: =J31 -> 36854 | X5: 3_4 | Y5: 2 | Z5: 3 | AA5: 0 | AB5: =IF(OR($Z5=0,$Z5="",$U5="DQ"),0,VLOOKUP($AJ5,tables!$AF:$AG,2,FALSE)) -> 9 | AC5: =IF(W5>0,YEAR(Setup!$B$8)-YEAR(VLOOKUP(W5,ALMD!$C:$F,3,FALSE)),0) -> 13 | AE5: =MD!$I8 -> 33450 | AF5: =MD!$K8 -> ΚΑΜΠΑΝΟΣ Ε | AG5: =IF(AE5>0,MD!$A8,"") -> 4 | AH5: =MD!$G8 -> 9 | AJ5: =SUBSTITUTE(SUBSTITUTE(Setup!$B$5&"S-"&Setup!$B$13&"-"&X5,"Ανδ-",""),"Γυν-","") -> Ε3S-14-3_4 | AN5: ΚΑΡΑΝΑΓΝΩΣΤΗΣ Κ
A6: =Setup!$B$3 -> ΣΤ' ΕΝΩΣΗ | B6: =Setup!$Z$6 -> 294 | C6: =Setup!$Z$5 -> Ε3 19η (ΣΤ) | D6: =SUBSTITUTE(TRIM(Setup!$B$6),"-","") -> Α14 | E6: Smd32 | F6: =TEXT(Setup!$B$8,"ΕΕΕΕ-ΜΜ-ΗΗ") -> 2018-05-12 | G6: =Setup!$T$7 ->  | H6: R32 | I6: =IF(OR(MD!$M$13=1,MD!$M$13=2), IF(MD!$M$13=1,MD!$I$13,MD!$I$14),"") -> 37036 | J6: =IF(OR(MD!$M$13=1,MD!$M$13=2), IF(MD!$M$13=2,MD!$I$13,MD!$I$14),"") -> 0 | K6: =TRIM(MD!O14) ->  | L6: 9 | M6: 0 | N6: 3 | O6: 0 | R6: 1 | T6: 6 | U6: =IF(NOT(OR(W6=0,W6=" ",W6="")),IF(INDIRECT("ALMD!B"&MATCH(W6,ALMD!$C$3:$C$34,0)+2)>0,INDIRECT("ALMD!B"&MATCH(W6,ALMD!$C$3:$C$34,0)+2),""),"") ->  | V6: =Setup!$T$7 ->  | W6: =J26 -> 30151 | X6: 5_8 | Y6: 1 | Z6: 2 | AA6: 0 | AB6: =IF(OR($Z6=0,$Z6="",$U6="DQ"),0,VLOOKUP($AJ6,tables!$AF:$AG,2,FALSE)) -> 6 | AC6: =IF(W6>0,YEAR(Setup!$B$8)-YEAR(VLOOKUP(W6,ALMD!$C:$F,3,FALSE)),0) -> 14 | AE6: =MD!$I9 -> 32578 | AF6: =MD!$K9 -> ΜΟΥΡΙΚΗΣ Κ | AG6: =IF(AE6>0,MD!$A9,"") -> 5 | AH6: =MD!$G9 -> 16 | AJ6: =SUBSTITUTE(SUBSTITUTE(Setup!$B$5&"S-"&Setup!$B$13&"-"&X6,"Ανδ-",""),"Γυν-","") -> Ε3S-14-5_8 | AN6: ΛΟΥΚΑ Ν
A7: =Setup!$B$3 -> ΣΤ' ΕΝΩΣΗ | B7: =Setup!$Z$6 -> 294 | C7: =Setup!$Z$5 -> Ε3 19η (ΣΤ) | D7: =SUBSTITUTE(TRIM(Setup!$B$6),"-","") -> Α14 | E7: Smd32 | F7: =TEXT(Setup!$B$8,"ΕΕΕΕ-ΜΜ-ΗΗ") -> 2018-05-12 | G7: =Setup!$T$7 ->  | H7: R32 | I7: =IF(OR(MD!$M$15=1,MD!$M$15=2), IF(MD!$M$15=1,MD!$I$15,MD!$I$16),"") -> 39823 | J7: =IF(OR(MD!$M$15=1,MD!$M$15=2), IF(MD!$M$15=2,MD!$I$15,MD!$I$16),"") -> 39014 | K7: =TRIM(MD!O16) -> 41 40 | L7: 11 | M7: 12 | N7: 11 | O7: 17 | P7: 39823 | Q7: 39014 | T7: 11 | U7: =IF(NOT(OR(W7=0,W7=" ",W7="")),IF(INDIRECT("ALMD!B"&MATCH(W7,ALMD!$C$3:$C$34,0)+2)>0,INDIRECT("ALMD!B"&MATCH(W7,ALMD!$C$3:$C$34,0)+2),""),"") ->  | V7: =Setup!$T$7 ->  | W7: =J27 -> 39823 | X7: 5_8 | Y7: 2 | Z7: 3 | AA7: 0 | AB7: =IF(OR($Z7=0,$Z7="",$U7="DQ"),0,VLOOKUP($AJ7,tables!$AF:$AG,2,FALSE)) -> 6 | AC7: =IF(W7>0,YEAR(Setup!$B$8)-YEAR(VLOOKUP(W7,ALMD!$C:$F,3,FALSE)),0) -> 14 | AE7: =MD!$I10 -> 0 | AF7: =MD!$K10 ->  | AG7: =IF(AE7>0,MD!$A10,"") ->  | AH7: =MD!$G10 -> - | AJ7: =SUBSTITUTE(SUBSTITUTE(Setup!$B$5&"S-"&Setup!$B$13&"-"&X7,"Ανδ-",""),"Γυν-","") -> Ε3S-14-5_8 | AN7: ΠΑΠΑΝΙΚΟΛΑΟΥ Ε | AO7: ΓΡΑΜΜΑΤΙΚΟΣ Μ
A8: =Setup!$B$3 -> ΣΤ' ΕΝΩΣΗ | B8: =Setup!$Z$6 -> 294 | C8: =Setup!$Z$5 -> Ε3 19η (ΣΤ) | D8: =SUBSTITUTE(TRIM(Setup!$B$6),"-","") -> Α14 | E8: Smd32 | F8: =TEXT(Setup!$B$8,"ΕΕΕΕ-ΜΜ-ΗΗ") -> 2018-05-12 | G8: =Setup!$T$7 ->  | H8: R32 | I8: =IF(OR(MD!$M$17=1,MD!$M$17=2), IF(MD!$M$17=1,MD!$I$17,MD!$I$18),"") -> 37284 | J8: =IF(OR(MD!$M$17=1,MD!$M$17=2), IF(MD!$M$17=2,MD!$I$17,MD!$I$18),"") -> 0 | K8: =TRIM(MD!O18) ->  | L8: 13 | M8: 0 | N8: 15 | O8: 0 | R8: 1 | T8: 8 | U8: =IF(NOT(OR(W8=0,W8=" ",W8="")),IF(INDIRECT("ALMD!B"&MATCH(W8,ALMD!$C$3:$C$34,0)+2)>0,INDIRECT("ALMD!B"&MATCH(W8,ALMD!$C$3:$C$34,0)+2),""),"") ->  | V8: =Setup!$T$7 ->  | W8: =J28 -> 37444 | X8: 5_8 | Y8: 1 | Z8: 2 | AA8: 0 | AB8: =IF(OR($Z8=0,$Z8="",$U8="DQ"),0,VLOOKUP($AJ8,tables!$AF:$AG,2,FALSE)) -> 6 | AC8: =IF(W8>0,YEAR(Setup!$B$8)-YEAR(VLOOKUP(W8,ALMD!$C:$F,3,FALSE)),0) -> 13 | AE8: =MD!$I11 -> 0 | AF8: =MD!$K11 ->  | AG8: =IF(AE8>0,MD!$A11,"") ->  | AH8: =MD!$G11 -> - | AJ8: =SUBSTITUTE(SUBSTITUTE(Setup!$B$5&"S-"&Setup!$B$13&"-"&X8,"Ανδ-",""),"Γυν-","") -> Ε3S-14-5_8 | AN8: ΑΔΑΜΟΠΟΥΛΟΣ Ι
A9: =Setup!$B$3 -> ΣΤ' ΕΝΩΣΗ | B9: =Setup!$Z$6 -> 294 | C9: =Setup!$Z$5 -> Ε3 19η (ΣΤ) | D9: =SUBSTITUTE(TRIM(Setup!$B$6),"-","") -> Α14 | E9: Smd32 | F9: =TEXT(Setup!$B$8,"ΕΕΕΕ-ΜΜ-ΗΗ") -> 2018-05-12 | G9: =Setup!$T$7 ->  | H9: R32 | I9: =IF(OR(MD!$M$19=1,MD!$M$19=2), IF(MD!$M$19=1,MD!$I$19,MD!$I$20),"") -> 36852 | J9: =IF(OR(MD!$M$19=1,MD!$M$19=2), IF(MD!$M$19=2,MD!$I$19,MD!$I$20),"") -> 0 | K9: =TRIM(MD!O20) ->  | L9: 16 | M9: 0 | N9: 5 | O9: 0 | R9: 1 | T9: 7 | U9: =IF(NOT(OR(W9=0,W9=" ",W9="")),IF(INDIRECT("ALMD!B"&MATCH(W9,ALMD!$C$3:$C$34,0)+2)>0,INDIRECT("ALMD!B"&MATCH(W9,ALMD!$C$3:$C$34,0)+2),""),"") ->  | V9: =Setup!$T$7 ->  | W9: =J29 -> 36853 | X9: 5_8 | Y9: 1 | Z9: 2 | AA9: 0 | AB9: =IF(OR($Z9=0,$Z9="",$U9="DQ"),0,VLOOKUP($AJ9,tables!$AF:$AG,2,FALSE)) -> 6 | AC9: =IF(W9>0,YEAR(Setup!$B$8)-YEAR(VLOOKUP(W9,ALMD!$C:$F,3,FALSE)),0) -> 12 | AE9: =MD!$I12 -> 30151 | AF9: =MD!$K12 -> ΚΑΡΑΝΑΓΝΩΣΤΗΣ Κ | AG9: =IF(AE9>0,MD!$A12,"") -> 8 | AH9: =MD!$G12 -> 6 | AJ9: =SUBSTITUTE(SUBSTITUTE(Setup!$B$5&"S-"&Setup!$B$13&"-"&X9,"Ανδ-",""),"Γυν-","") -> Ε3S-14-5_8 | AL9: =IF(AO9>" ", IF(OR(AM9=AM10,AM9=AM8), IF(AM9=AM10,AN9&"/"&AN10&" - "&AO9&"/"&AO10, AN8&"/"&AN9&" - "&AO8&"/"&AO9),AN9&" - "&AO9), IF(OR(AM9=AM10,AM9=AM8), IF(AM9=AM10,AN9&"/"&AN10, AN8&"/"&AN9),AN9)) ->  | AM9: =G9&H9&L9 ->  | AN9: =IF(I9<=0,"",TRIM(LEFT(LEFT(VLOOKUP(I9,$AE:$AF,2,FALSE),FIND(" ",VLOOKUP(I9,$AE:$AF,2,FALSE),1)-1),15)&" "&LEFT(MID(VLOOKUP(I9,$AE:$AF,2,FALSE),FIND(" ",VLOOKUP(I9,$AE:$AF,2,FALSE),1)+1,20),3))) -> ΤΖΩΡΤΖΑΤΟΣ Κ | AO9: =IF(J9<=0,"",TRIM(LEFT(LEFT(VLOOKUP(J9,$AE:$AF,2,FALSE),FIND(" ",VLOOKUP(J9,$AE:$AF,2,FALSE),1)-1),15)&" "&LEFT(MID(VLOOKUP(J9,$AE:$AF,2,FALSE),FIND(" ",VLOOKUP(J9,$AE:$AF,2,FALSE),1)+1,20),3))) -> 
A10: =Setup!$B$3 -> ΣΤ' ΕΝΩΣΗ | B10: =Setup!$Z$6 -> 294 | C10: =Setup!$Z$5 -> Ε3 19η (ΣΤ) | D10: =SUBSTITUTE(TRIM(Setup!$B$6),"-","") -> Α14 | E10: Smd32 | F10: =TEXT(Setup!$B$8,"ΕΕΕΕ-ΜΜ-ΗΗ") -> 2018-05-12 | G10: =Setup!$T$7 ->  | H10: R32 | I10: =IF(OR(MD!$M$21=1,MD!$M$21=2), IF(MD!$M$21=1,MD!$I$21,MD!$I$22),"") -> 37444 | J10: =IF(OR(MD!$M$21=1,MD!$M$21=2), IF(MD!$M$21=2,MD!$I$21,MD!$I$22),"") -> 0 | K10: =TRIM(MD!O22) ->  | L10: 17 | M10: 0 | N10: 8 | O10: 0 | R10: 1 | T10: 13 | U10: =IF(NOT(OR(W10=0,W10=" ",W10="")),IF(INDIRECT("ALMD!B"&MATCH(W10,ALMD!$C$3:$C$34,0)+2)>0,INDIRECT("ALMD!B"&MATCH(W10,ALMD!$C$3:$C$34,0)+2),""),"") ->  | V10: =Setup!$T$7 ->  | W10: =J18 -> 34817 | X10: 9_16 | Y10: 1 | Z10: 2 | AA10: 0 | AB10: =IF(OR($Z10=0,$Z10="",$U10="DQ"),0,VLOOKUP($AJ10,tables!$AF:$AG,2,FALSE)) -> 4.5 | AC10: =IF(W10>0,YEAR(Setup!$B$8)-YEAR(VLOOKUP(W10,ALMD!$C:$F,3,FALSE)),0) -> 13 | AE10: =MD!$I13 -> 37036 | AF10: =MD!$K13 -> ΛΟΥΚΑ Ν | AG10: =IF(AE10>0,MD!$A13,"") -> 9 | AH10: =MD!$G13 -> 3 | AJ10: =IF(AND(Y10=0, Setup!$B$17>""), Setup!$B$5&"S-"&Setup!$B$13&"-"&Setup!$B$17, Setup!$B$5&"S-"&Setup!$B$13&"-"&X10) -> Ε3S-14-9_16 | AN10: ΝΙΚΟΛΑΟΥ Α
A11: =Setup!$B$3 -> ΣΤ' ΕΝΩΣΗ | B11: =Setup!$Z$6 -> 294 | C11: =Setup!$Z$5 -> Ε3 19η (ΣΤ) | D11: =SUBSTITUTE(TRIM(Setup!$B$6),"-","") -> Α14 | E11: Smd32 | F11: =TEXT(Setup!$B$8,"ΕΕΕΕ-ΜΜ-ΗΗ") -> 2018-05-12 | G11: =Setup!$T$7 ->  | H11: R32 | I11: =IF(OR(MD!$M$23=1,MD!$M$23=2), IF(MD!$M$23=1,MD!$I$23,MD!$I$24),"") -> 33991 | J11: =IF(OR(MD!$M$23=1,MD!$M$23=2), IF(MD!$M$23=2,MD!$I$23,MD!$I$24),"") -> 0 | K11: =TRIM(MD!O24) ->  | L11: 19 | M11: 0 | N11: 12 | O11: 0 | R11: 1 | T11: 16 | U11: =IF(NOT(OR(W11=0,W11=" ",W11="")),IF(INDIRECT("ALMD!B"&MATCH(W11,ALMD!$C$3:$C$34,0)+2)>0,INDIRECT("ALMD!B"&MATCH(W11,ALMD!$C$3:$C$34,0)+2),""),"") ->  | V11: =Setup!$T$7 ->  | W11: =J19 -> 32578 | X11: 9_16 | Y11: 0 | Z11: 1 | AA11: 0 | AB11: =IF(OR($Z11=0,$Z11="",$U11="DQ"),0,VLOOKUP($AJ11,tables!$AF:$AG,2,FALSE)) -> 3 | AC11: =IF(W11>0,YEAR(Setup!$B$8)-YEAR(VLOOKUP(W11,ALMD!$C:$F,3,FALSE)),0) -> 13 | AE11: =MD!$I14 -> 0 | AF11: =MD!$K14 ->  | AG11: =IF(AE11>0,MD!$A14,"") ->  | AH11: =MD!$G14 -> - | AJ11: =IF(AND(Y11=0, Setup!$B$17>""), Setup!$B$5&"S-"&Setup!$B$13&"-"&Setup!$B$17, Setup!$B$5&"S-"&Setup!$B$13&"-"&X11) -> Ε3S-14-17_32 | AN11: ΛΑΜΠΡΟΠΟΥΛΟΣ Μ
A12: =Setup!$B$3 -> ΣΤ' ΕΝΩΣΗ | B12: =Setup!$Z$6 -> 294 | C12: =Setup!$Z$5 -> Ε3 19η (ΣΤ) | D12: =SUBSTITUTE(TRIM(Setup!$B$6),"-","") -> Α14 | E12: Smd32 | F12: =TEXT(Setup!$B$8,"ΕΕΕΕ-ΜΜ-ΗΗ") -> 2018-05-12 | G12: =Setup!$T$7 ->  | H12: R32 | I12: =IF(OR(MD!$M$25=1,MD!$M$25=2), IF(MD!$M$25=1,MD!$I$25,MD!$I$26),"") -> 31630 | J12: =IF(OR(MD!$M$25=1,MD!$M$25=2), IF(MD!$M$25=2,MD!$I$25,MD!$I$26),"") -> 33992 | K12: =TRIM(MD!O26) -> 41 41 | L12: 21 | M12: 22 | N12: 18 | O12: 14 | P12: 31630 | Q12: 33992 | T12: 3 | U12: =IF(NOT(OR(W12=0,W12=" ",W12="")),IF(INDIRECT("ALMD!B"&MATCH(W12,ALMD!$C$3:$C$34,0)+2)>0,INDIRECT("ALMD!B"&MATCH(W12,ALMD!$C$3:$C$34,0)+2),""),"") ->  | V12: =Setup!$T$7 ->  | W12: 37036 | X12: 9_16 | Y12: 0 | Z12: 1 | AA12: 0 | AB12: =IF(OR($Z12=0,$Z12="",$U12="DQ"),0,VLOOKUP($AJ12,tables!$AF:$AG,2,FALSE)) -> 3 | AC12: =IF(W12>0,YEAR(Setup!$B$8)-YEAR(VLOOKUP(W12,ALMD!$C:$F,3,FALSE)),0) -> 13 | AE12: =MD!$I15 -> 39823 | AF12: =MD!$K15 -> ΠΑΠΑΝΙΚΟΛΑΟΥ Ε | AG12: =IF(AE12>0,MD!$A15,"") -> 11 | AH12: =MD!$G15 -> 11 | AJ12: =IF(AND(Y12=0, Setup!$B$17>""), Setup!$B$5&"S-"&Setup!$B$13&"-"&Setup!$B$17, Setup!$B$5&"S-"&Setup!$B$13&"-"&X12) -> Ε3S-14-17_32 | AN12: ΓΙΑΝΝΑΚΟΠΟΥΛΟΣ Δ | AO12: ΛΑΜΠΡΟΠΟΥΛΟΣ Α
A13: =Setup!$B$3 -> ΣΤ' ΕΝΩΣΗ | B13: =Setup!$Z$6 -> 294 | C13: =Setup!$Z$5 -> Ε3 19η (ΣΤ) | D13: =SUBSTITUTE(TRIM(Setup!$B$6),"-","") -> Α14 | E13: Smd32 | F13: =TEXT(Setup!$B$8,"ΕΕΕΕ-ΜΜ-ΗΗ") -> 2018-05-12 | G13: =Setup!$T$7 ->  | H13: R32 | I13: =IF(OR(MD!$M$27=1,MD!$M$27=2), IF(MD!$M$27=1,MD!$I$27,MD!$I$28),"") -> 36030 | J13: =IF(OR(MD!$M$27=1,MD!$M$27=2), IF(MD!$M$27=2,MD!$I$27,MD!$I$28),"") -> 0 | K13: =TRIM(MD!O28) ->  | L13: 24 | M13: 0 | N13: 4 | O13: 0 | R13: 1 | T13: 15 | U13: =IF(NOT(OR(W13=0,W13=" ",W13="")),IF(INDIRECT("ALMD!B"&MATCH(W13,ALMD!$C$3:$C$34,0)+2)>0,INDIRECT("ALMD!B"&MATCH(W13,ALMD!$C$3:$C$34,0)+2),""),"") ->  | V13: =Setup!$T$7 ->  | W13: 37284 | X13: 9_16 | Y13: 0 | Z13: 1 | AA13: 0 | AB13: =IF(OR($Z13=0,$Z13="",$U13="DQ"),0,VLOOKUP($AJ13,tables!$AF:$AG,2,FALSE)) -> 3 | AC13: =IF(W13>0,YEAR(Setup!$B$8)-YEAR(VLOOKUP(W13,ALMD!$C:$F,3,FALSE)),0) -> 13 | AE13: =MD!$I16 -> 39014 | AF13: =MD!$K16 -> ΓΡΑΜΜΑΤΙΚΟΣ Μ | AG13: =IF(AE13>0,MD!$A16,"") -> 12 | AH13: =MD!$G16 -> 17 | AJ13: =IF(AND(Y13=0, Setup!$B$17>""), Setup!$B$5&"S-"&Setup!$B$13&"-"&Setup!$B$17, Setup!$B$5&"S-"&Setup!$B$13&"-"&X13) -> Ε3S-14-17_32 | AN13: ΤΟΥΝΤΑΣ Μ
A14: =Setup!$B$3 -> ΣΤ' ΕΝΩΣΗ | B14: =Setup!$Z$6 -> 294 | C14: =Setup!$Z$5 -> Ε3 19η (ΣΤ) | D14: =SUBSTITUTE(TRIM(Setup!$B$6),"-","") -> Α14 | E14: Smd32 | F14: =TEXT(Setup!$B$8,"ΕΕΕΕ-ΜΜ-ΗΗ") -> 2018-05-12 | G14: =Setup!$T$7 ->  | H14: R32 | I14: =IF(OR(MD!$M$29=1,MD!$M$29=2), IF(MD!$M$29=1,MD!$I$29,MD!$I$30),"") -> 36853 | J14: =IF(OR(MD!$M$29=1,MD!$M$29=2), IF(MD!$M$29=2,MD!$I$29,MD!$I$30),"") -> 0 | K14: =TRIM(MD!O30) ->  | L14: 25 | M14: 0 | N14: 7 | O14: 0 | R14: 1 | T14: 12 | U14: =IF(NOT(OR(W14=0,W14=" ",W14="")),IF(INDIRECT("ALMD!B"&MATCH(W14,ALMD!$C$3:$C$34,0)+2)>0,INDIRECT("ALMD!B"&MATCH(W14,ALMD!$C$3:$C$34,0)+2),""),"") ->  | V14: =Setup!$T$7 ->  | W14: 33991 | X14: 9_16 | Y14: 0 | Z14: 1 | AA14: 0 | AB14: =IF(OR($Z14=0,$Z14="",$U14="DQ"),0,VLOOKUP($AJ14,tables!$AF:$AG,2,FALSE)) -> 3 | AC14: =IF(W14>0,YEAR(Setup!$B$8)-YEAR(VLOOKUP(W14,ALMD!$C:$F,3,FALSE)),0) -> 12 | AE14: =MD!$I17 -> 37284 | AF14: =MD!$K17 -> ΑΔΑΜΟΠΟΥΛΟΣ Ι | AG14: =IF(AE14>0,MD!$A17,"") -> 13 | AH14: =MD!$G17 -> 15 | AJ14: =IF(AND(Y14=0, Setup!$B$17>""), Setup!$B$5&"S-"&Setup!$B$13&"-"&Setup!$B$17, Setup!$B$5&"S-"&Setup!$B$13&"-"&X14) -> Ε3S-14-17_32 | AN14: ΜΑΛΕΒΙΤΗΣ Γ
A15: =Setup!$B$3 -> ΣΤ' ΕΝΩΣΗ | B15: =Setup!$Z$6 -> 294 | C15: =Setup!$Z$5 -> Ε3 19η (ΣΤ) | D15: =SUBSTITUTE(TRIM(Setup!$B$6),"-","") -> Α14 | E15: Smd32 | F15: =TEXT(Setup!$B$8,"ΕΕΕΕ-ΜΜ-ΗΗ") -> 2018-05-12 | G15: =Setup!$T$7 ->  | H15: R32 | I15: =IF(OR(MD!$M$31=1,MD!$M$31=2), IF(MD!$M$31=1,MD!$I$31,MD!$I$32),"") -> 36997 | J15: =IF(OR(MD!$M$31=1,MD!$M$31=2), IF(MD!$M$31=2,MD!$I$31,MD!$I$32),"") -> 0 | K15: =TRIM(MD!O32) ->  | L15: 27 | M15: 0 | N15: 19 | O15: 0 | R15: 1 | T15: 18 | U15: =IF(NOT(OR(W15=0,W15=" ",W15="")),IF(INDIRECT("ALMD!B"&MATCH(W15,ALMD!$C$3:$C$34,0)+2)>0,INDIRECT("ALMD!B"&MATCH(W15,ALMD!$C$3:$C$34,0)+2),""),"") ->  | V15: =Setup!$T$7 ->  | W15: 31630 | X15: 9_16 | Y15: 1 | Z15: 2 | AA15: 0 | AB15: =IF(OR($Z15=0,$Z15="",$U15="DQ"),0,VLOOKUP($AJ15,tables!$AF:$AG,2,FALSE)) -> 4.5 | AC15: =IF(W15>0,YEAR(Setup!$B$8)-YEAR(VLOOKUP(W15,ALMD!$C:$F,3,FALSE)),0) -> 14 | AE15: =MD!$I18 -> 0 | AF15: =MD!$K18 ->  | AG15: =IF(AE15>0,MD!$A18,"") ->  | AH15: =MD!$G18 -> - | AJ15: =IF(AND(Y15=0, Setup!$B$17>""), Setup!$B$5&"S-"&Setup!$B$13&"-"&Setup!$B$17, Setup!$B$5&"S-"&Setup!$B$13&"-"&X15) -> Ε3S-14-9_16 | AN15: ΜΠΑΚΑΛΟΣ Α
A16: =Setup!$B$3 -> ΣΤ' ΕΝΩΣΗ | B16: =Setup!$Z$6 -> 294 | C16: =Setup!$Z$5 -> Ε3 19η (ΣΤ) | D16: =SUBSTITUTE(TRIM(Setup!$B$6),"-","") -> Α14 | E16: Smd32 | F16: =TEXT(Setup!$B$8,"ΕΕΕΕ-ΜΜ-ΗΗ") -> 2018-05-12 | G16: =Setup!$T$7 ->  | H16: R32 | I16: =IF(OR(MD!$M$33=1,MD!$M$33=2), IF(MD!$M$33=1,MD!$I$33,MD!$I$34),"") -> 31771 | J16: =IF(OR(MD!$M$33=1,MD!$M$33=2), IF(MD!$M$33=2,MD!$I$33,MD!$I$34),"") -> 38866 | K16: =TRIM(MD!O34) -> 41 42 | L16: 29 | M16: 30 | N16: 10 | O16: 20 | P16: 31771 | Q16: 38866 | T16: 19 | U16: =IF(NOT(OR(W16=0,W16=" ",W16="")),IF(INDIRECT("ALMD!B"&MATCH(W16,ALMD!$C$3:$C$34,0)+2)>0,INDIRECT("ALMD!B"&MATCH(W16,ALMD!$C$3:$C$34,0)+2),""),"") ->  | V16: =Setup!$T$7 ->  | W16: 36997 | X16: 9_16 | Y16: 0 | Z16: 1 | AA16: 0 | AB16: =IF(OR($Z16=0,$Z16="",$U16="DQ"),0,VLOOKUP($AJ16,tables!$AF:$AG,2,FALSE)) -> 3 | AC16: =IF(W16>0,YEAR(Setup!$B$8)-YEAR(VLOOKUP(W16,ALMD!$C:$F,3,FALSE)),0) -> 14 | AE16: =MD!$I19 -> 0 | AF16: =MD!$K19 ->  | AG16: =IF(AE16>0,MD!$A19,"") ->  | AH16: =MD!$G19 -> - | AJ16: =IF(AND(Y16=0, Setup!$B$17>""), Setup!$B$5&"S-"&Setup!$B$13&"-"&Setup!$B$17, Setup!$B$5&"S-"&Setup!$B$13&"-"&X16) -> Ε3S-14-17_32 | AN16: ΓΚΟΥΝΤΑΝΗΣ Β | AO16: ΝΤΟΥΛΙΑΣ Λ
A17: =Setup!$B$3 -> ΣΤ' ΕΝΩΣΗ | B17: =Setup!$Z$6 -> 294 | C17: =Setup!$Z$5 -> Ε3 19η (ΣΤ) | D17: =SUBSTITUTE(TRIM(Setup!$B$6),"-","") -> Α14 | E17: Smd32 | F17: =TEXT(Setup!$B$8,"ΕΕΕΕ-ΜΜ-ΗΗ") -> 2018-05-12 | G17: =Setup!$T$7 ->  | H17: R32 | I17: =IF(OR(MD!$M$35=1,MD!$M$35=2), IF(MD!$M$35=1,MD!$I$35,MD!$I$36),"") -> 36854 | J17: =IF(OR(MD!$M$35=1,MD!$M$35=2), IF(MD!$M$35=2,MD!$I$35,MD!$I$36),"") -> 0 | K17: =TRIM(MD!O36) ->  | L17: 32 | M17: 0 | N17: 2 | O17: 0 | R17: 1 | T17: 10 | U17: =IF(NOT(OR(W17=0,W17=" ",W17="")),IF(INDIRECT("ALMD!B"&MATCH(W17,ALMD!$C$3:$C$34,0)+2)>0,INDIRECT("ALMD!B"&MATCH(W17,ALMD!$C$3:$C$34,0)+2),""),"") ->  | V17: =Setup!$T$7 ->  | W17: 31771 | X17: 9_16 | Y17: 1 | Z17: 2 | AA17: 0 | AB17: =IF(OR($Z17=0,$Z17="",$U17="DQ"),0,VLOOKUP($AJ17,tables!$AF:$AG,2,FALSE)) -> 4.5 | AC17: =IF(W17>0,YEAR(Setup!$B$8)-YEAR(VLOOKUP(W17,ALMD!$C:$F,3,FALSE)),0) -> 13 | AE17: =MD!$I20 -> 36852 | AF17: =MD!$K20 -> ΤΖΩΡΤΖΑΤΟΣ Κ | AG17: =IF(AE17>0,MD!$A20,"") -> 16 | AH17: =MD!$G20 -> 5 | AJ17: =IF(AND(Y17=0, Setup!$B$17>""), Setup!$B$5&"S-"&Setup!$B$13&"-"&Setup!$B$17, Setup!$B$5&"S-"&Setup!$B$13&"-"&X17) -> Ε3S-14-9_16 | AN17: ΚΥΡΙΑΚΟΠΟΥΛΟΣ Α
A18: =Setup!$B$3 -> ΣΤ' ΕΝΩΣΗ | B18: =Setup!$Z$6 -> 294 | C18: =Setup!$Z$5 -> Ε3 19η (ΣΤ) | D18: =SUBSTITUTE(TRIM(Setup!$B$6),"-","") -> Α14 | E18: Smd32 | F18: =TEXT(Setup!$B$8,"ΕΕΕΕ-ΜΜ-ΗΗ") -> 2018-05-12 | G18: =Setup!$T$7 ->  | H18: R16 | I18: =IF(OR(MD!$P$6 =1,MD!$P$6 =2), IF(MD!$P$6 =1,MD!$N$5,MD!$N$7),"") -> 34598 | J18: =IF(OR(MD!$P$6 =1,MD!$P$6 =2), IF(MD!$P$6 =2,MD!$N$5,MD!$N$7),"") -> 34817 | K18: =TRIM(MD!R7) -> 40 42 | L18: 1 | M18: 3 | N18: 1 | O18: 13 | P18: 34598 | Q18: 34817 | U18: =IF(NOT(OR(W18=0,W18=" ",W18="")),IF(INDIRECT("ALMD!B"&MATCH(W18,ALMD!$C$3:$C$34,0)+2)>0,INDIRECT("ALMD!B"&MATCH(W18,ALMD!$C$3:$C$34,0)+2),""),"") ->  | V18: =Setup!$T$7 ->  | W18: =J2 -> 0 | X18: 17_32 | Y18: 0 | Z18: 0 | AA18: 0 | AB18: =IF(OR($Z18=0,$Z18="",$U18="DQ"),0,VLOOKUP($AJ18,tables!$AF:$AG,2,FALSE)) -> 0 | AC18: =IF(W18>0,YEAR(Setup!$B$8)-YEAR(VLOOKUP(W18,ALMD!$C:$F,3,FALSE)),0) -> 0 | AE18: =MD!$I21 -> 37444 | AF18: =MD!$K21 -> ΝΙΚΟΛΑΟΥ Α | AG18: =IF(AE18>0,MD!$A21,"") -> 17 | AH18: =MD!$G21 -> 8 | AJ18: =SUBSTITUTE(SUBSTITUTE(Setup!$B$5&"S-"&Setup!$B$13&"-"&X18,"Ανδ-",""),"Γυν-","") -> Ε3S-14-17_32 | AN18: ΚΟΛΛΙΑΣ Σ | AO18: ΤΖΟΥΤΖΟΠΟΥΛΟΣ Θ
A19: =Setup!$B$3 -> ΣΤ' ΕΝΩΣΗ | B19: =Setup!$Z$6 -> 294 | C19: =Setup!$Z$5 -> Ε3 19η (ΣΤ) | D19: =SUBSTITUTE(TRIM(Setup!$B$6),"-","") -> Α14 | E19: Smd32 | F19: =TEXT(Setup!$B$8,"ΕΕΕΕ-ΜΜ-ΗΗ") -> 2018-05-12 | G19: =Setup!$T$7 ->  | H19: R16 | I19: =IF(OR(MD!$P$10=1,MD!$P$10=2), IF(MD!$P$10=1,MD!$N$9,MD!$N$11),"") -> 30151 | J19: =IF(OR(MD!$P$10=1,MD!$P$10=2), IF(MD!$P$10=2,MD!$N$9,MD!$N$11),"") -> 32578 | K19: =TRIM(MD!R11) -> 40 40 | L19: 8 | M19: 5 | N19: 6 | O19: 16 | P19: 30151 | Q19: 32578 | T19: 9 | U19: =IF(NOT(OR(W19=0,W19=" ",W19="")),IF(INDIRECT("ALMD!B"&MATCH(W19,ALMD!$C$3:$C$34,0)+2)>0,INDIRECT("ALMD!B"&MATCH(W19,ALMD!$C$3:$C$34,0)+2),""),"") ->  | V19: =Setup!$T$7 ->  | W19: =J3 -> 33450 | X19: 17_32 | Y19: 0 | Z19: 1 | AA19: 0 | AB19: =IF(OR($Z19=0,$Z19="",$U19="DQ"),0,VLOOKUP($AJ19,tables!$AF:$AG,2,FALSE)) -> 3 | AC19: =IF(W19>0,YEAR(Setup!$B$8)-YEAR(VLOOKUP(W19,ALMD!$C:$F,3,FALSE)),0) -> 13 | AE19: =MD!$I22 -> 0 | AF19: =MD!$K22 ->  | AG19: =IF(AE19>0,MD!$A22,"") ->  | AH19: =MD!$G22 -> - | AJ19: =SUBSTITUTE(SUBSTITUTE(Setup!$B$5&"S-"&Setup!$B$13&"-"&X19,"Ανδ-",""),"Γυν-","") -> Ε3S-14-17_32 | AN19: ΚΑΡΑΝΑΓΝΩΣΤΗΣ Κ | AO19: ΜΟΥΡΙΚΗΣ Κ
A20: =Setup!$B$3 -> ΣΤ' ΕΝΩΣΗ | B20: =Setup!$Z$6 -> 294 | C20: =Setup!$Z$5 -> Ε3 19η (ΣΤ) | D20: =SUBSTITUTE(TRIM(Setup!$B$6),"-","") -> Α14 | E20: Smd32 | F20: =TEXT(Setup!$B$8,"ΕΕΕΕ-ΜΜ-ΗΗ") -> 2018-05-12 | G20: =Setup!$T$7 ->  | H20: R16 | I20: =IF(OR(MD!$P$14=1,MD!$P$14=2), IF(MD!$P$14=1,MD!$N$13,MD!$N$15),"") -> 39823 | J20: =IF(OR(MD!$P$14=1,MD!$P$14=2), IF(MD!$P$14=2,MD!$N$13,MD!$N$15),"") -> 37036 | K20: =TRIM(MD!R15) -> 14 40 75 | L20: 11 | M20: 9 | N20: 11 | O20: 3 | P20: 39823 | Q20: 37036 | U20: =IF(NOT(OR(W20=0,W20=" ",W20="")),IF(INDIRECT("ALMD!B"&MATCH(W20,ALMD!$C$3:$C$34,0)+2)>0,INDIRECT("ALMD!B"&MATCH(W20,ALMD!$C$3:$C$34,0)+2),""),"") ->  | V20: =Setup!$T$7 ->  | W20: 0 | X20: 17_32 | Y20: 0 | Z20: 0 | AA20: 0 | AB20: =IF(OR($Z20=0,$Z20="",$U20="DQ"),0,VLOOKUP($AJ20,tables!$AF:$AG,2,FALSE)) -> 0 | AC20: =IF(W20>0,YEAR(Setup!$B$8)-YEAR(VLOOKUP(W20,ALMD!$C:$F,3,FALSE)),0) -> 0 | AE20: =MD!$I23 -> 33991 | AF20: =MD!$K23 -> ΛΑΜΠΡΟΠΟΥΛΟΣ Μ | AG20: =IF(AE20>0,MD!$A23,"") -> 19 | AH20: =MD!$G23 -> 12 | AJ20: =SUBSTITUTE(SUBSTITUTE(Setup!$B$5&"S-"&Setup!$B$13&"-"&X20,"Ανδ-",""),"Γυν-","") -> Ε3S-14-17_32 | AN20: ΠΑΠΑΝΙΚΟΛΑΟΥ Ε | AO20: ΛΟΥΚΑ Ν
A21: =Setup!$B$3 -> ΣΤ' ΕΝΩΣΗ | B21: =Setup!$Z$6 -> 294 | C21: =Setup!$Z$5 -> Ε3 19η (ΣΤ) | D21: =SUBSTITUTE(TRIM(Setup!$B$6),"-","") -> Α14 | E21: Smd32 | F21: =TEXT(Setup!$B$8,"ΕΕΕΕ-ΜΜ-ΗΗ") -> 2018-05-12 | G21: =Setup!$T$7 ->  | H21: R16 | I21: =IF(OR(MD!$P$18=1,MD!$P$18=2), IF(MD!$P$18=1,MD!$N$17,MD!$N$19),"") -> 36852 | J21: =IF(OR(MD!$P$18=1,MD!$P$18=2), IF(MD!$P$18=2,MD!$N$17,MD!$N$19),"") -> 37284 | K21: =TRIM(MD!R19) -> 40 40 | L21: 16 | M21: 13 | N21: 5 | O21: 15 | P21: 36852 | Q21: 37284 | U21: =IF(NOT(OR(W21=0,W21=" ",W21="")),IF(INDIRECT("ALMD!B"&MATCH(W21,ALMD!$C$3:$C$34,0)+2)>0,INDIRECT("ALMD!B"&MATCH(W21,ALMD!$C$3:$C$34,0)+2),""),"") ->  | V21: =Setup!$T$7 ->  | W21: 0 | X21: 17_32 | Y21: 0 | Z21: 0 | AA21: 0 | AB21: =IF(OR($Z21=0,$Z21="",$U21="DQ"),0,VLOOKUP($AJ21,tables!$AF:$AG,2,FALSE)) -> 0 | AC21: =IF(W21>0,YEAR(Setup!$B$8)-YEAR(VLOOKUP(W21,ALMD!$C:$F,3,FALSE)),0) -> 0 | AE21: =MD!$I24 -> 0 | AF21: =MD!$K24 ->  | AG21: =IF(AE21>0,MD!$A24,"") ->  | AH21: =MD!$G24 -> - | AJ21: =SUBSTITUTE(SUBSTITUTE(Setup!$B$5&"S-"&Setup!$B$13&"-"&X21,"Ανδ-",""),"Γυν-","") -> Ε3S-14-17_32 | AN21: ΤΖΩΡΤΖΑΤΟΣ Κ | AO21: ΑΔΑΜΟΠΟΥΛΟΣ Ι
A22: =Setup!$B$3 -> ΣΤ' ΕΝΩΣΗ | B22: =Setup!$Z$6 -> 294 | C22: =Setup!$Z$5 -> Ε3 19η (ΣΤ) | D22: =SUBSTITUTE(TRIM(Setup!$B$6),"-","") -> Α14 | E22: Smd32 | F22: =TEXT(Setup!$B$8,"ΕΕΕΕ-ΜΜ-ΗΗ") -> 2018-05-12 | G22: =Setup!$T$7 ->  | H22: R16 | I22: =IF(OR(MD!$P$22=1,MD!$P$22=2), IF(MD!$P$22=1,MD!$N$21,MD!$N$23),"") -> 37444 | J22: =IF(OR(MD!$P$22=1,MD!$P$22=2), IF(MD!$P$22=2,MD!$N$21,MD!$N$23),"") -> 33991 | K22: =TRIM(MD!R23) -> 40 40 | L22: 17 | M22: 19 | N22: 8 | O22: 12 | P22: 37444 | Q22: 33991 | U22: =IF(NOT(OR(W22=0,W22=" ",W22="")),IF(INDIRECT("ALMD!B"&MATCH(W22,ALMD!$C$3:$C$34,0)+2)>0,INDIRECT("ALMD!B"&MATCH(W22,ALMD!$C$3:$C$34,0)+2),""),"") ->  | V22: =Setup!$T$7 ->  | W22: 0 | X22: 17_32 | Y22: 0 | Z22: 0 | AA22: 0 | AB22: =IF(OR($Z22=0,$Z22="",$U22="DQ"),0,VLOOKUP($AJ22,tables!$AF:$AG,2,FALSE)) -> 0 | AC22: =IF(W22>0,YEAR(Setup!$B$8)-YEAR(VLOOKUP(W22,ALMD!$C:$F,3,FALSE)),0) -> 0 | AE22: =MD!$I25 -> 31630 | AF22: =MD!$K25 -> ΓΙΑΝΝΑΚΟΠΟΥΛΟΣ Δ | AG22: =IF(AE22>0,MD!$A25,"") -> 21 | AH22: =MD!$G25 -> 18 | AJ22: =SUBSTITUTE(SUBSTITUTE(Setup!$B$5&"S-"&Setup!$B$13&"-"&X22,"Ανδ-",""),"Γυν-","") -> Ε3S-14-17_32 | AN22: ΝΙΚΟΛΑΟΥ Α | AO22: ΛΑΜΠΡΟΠΟΥΛΟΣ Μ
A23: =Setup!$B$3 -> ΣΤ' ΕΝΩΣΗ | B23: =Setup!$Z$6 -> 294 | C23: =Setup!$Z$5 -> Ε3 19η (ΣΤ) | D23: =SUBSTITUTE(TRIM(Setup!$B$6),"-","") -> Α14 | E23: Smd32 | F23: =TEXT(Setup!$B$8,"ΕΕΕΕ-ΜΜ-ΗΗ") -> 2018-05-12 | G23: =Setup!$T$7 ->  | H23: R16 | I23: =IF(OR(MD!$P$26=1,MD!$P$26=2), IF(MD!$P$26=1,MD!$N$25,MD!$N$27),"") -> 36030 | J23: =IF(OR(MD!$P$26=1,MD!$P$26=2), IF(MD!$P$26=2,MD!$N$25,MD!$N$27),"") -> 31630 | K23: =TRIM(MD!R27) -> 24 40 73 | L23: 24 | M23: 21 | N23: 4 | O23: 18 | P23: 36030 | Q23: 31630 | T23: 17 | U23: =IF(NOT(OR(W23=0,W23=" ",W23="")),IF(INDIRECT("ALMD!B"&MATCH(W23,ALMD!$C$3:$C$34,0)+2)>0,INDIRECT("ALMD!B"&MATCH(W23,ALMD!$C$3:$C$34,0)+2),""),"") ->  | V23: =Setup!$T$7 ->  | W23: 39014 | X23: 17_32 | Y23: 0 | Z23: 1 | AA23: 0 | AB23: =IF(OR($Z23=0,$Z23="",$U23="DQ"),0,VLOOKUP($AJ23,tables!$AF:$AG,2,FALSE)) -> 3 | AC23: =IF(W23>0,YEAR(Setup!$B$8)-YEAR(VLOOKUP(W23,ALMD!$C:$F,3,FALSE)),0) -> 13 | AE23: =MD!$I26 -> 33992 | AF23: =MD!$K26 -> ΛΑΜΠΡΟΠΟΥΛΟΣ Α | AG23: =IF(AE23>0,MD!$A26,"") -> 22 | AH23: =MD!$G26 -> 14 | AJ23: =SUBSTITUTE(SUBSTITUTE(Setup!$B$5&"S-"&Setup!$B$13&"-"&X23,"Ανδ-",""),"Γυν-","") -> Ε3S-14-17_32 | AN23: ΤΟΥΝΤΑΣ Μ | AO23: ΓΙΑΝΝΑΚΟΠΟΥΛΟΣ Δ
A24: =Setup!$B$3 -> ΣΤ' ΕΝΩΣΗ | B24: =Setup!$Z$6 -> 294 | C24: =Setup!$Z$5 -> Ε3 19η (ΣΤ) | D24: =SUBSTITUTE(TRIM(Setup!$B$6),"-","") -> Α14 | E24: Smd32 | F24: =TEXT(Setup!$B$8,"ΕΕΕΕ-ΜΜ-ΗΗ") -> 2018-05-12 | G24: =Setup!$T$7 ->  | H24: R16 | I24: =IF(OR(MD!$P$30=1,MD!$P$30=2), IF(MD!$P$30=1,MD!$N$29,MD!$N$31),"") -> 36853 | J24: =IF(OR(MD!$P$30=1,MD!$P$30=2), IF(MD!$P$30=2,MD!$N$29,MD!$N$31),"") -> 36997 | K24: =TRIM(MD!R31) -> 40 40 | L24: 25 | M24: 27 | N24: 7 | O24: 19 | P24: 36853 | Q24: 36997 | U24: =IF(NOT(OR(W24=0,W24=" ",W24="")),IF(INDIRECT("ALMD!B"&MATCH(W24,ALMD!$C$3:$C$34,0)+2)>0,INDIRECT("ALMD!B"&MATCH(W24,ALMD!$C$3:$C$34,0)+2),""),"") ->  | V24: =Setup!$T$7 ->  | W24: 0 | X24: 17_32 | Y24: 0 | Z24: 0 | AA24: 0 | AB24: =IF(OR($Z24=0,$Z24="",$U24="DQ"),0,VLOOKUP($AJ24,tables!$AF:$AG,2,FALSE)) -> 0 | AC24: =IF(W24>0,YEAR(Setup!$B$8)-YEAR(VLOOKUP(W24,ALMD!$C:$F,3,FALSE)),0) -> 0 | AE24: =MD!$I27 -> 0 | AF24: =MD!$K27 ->  | AG24: =IF(AE24>0,MD!$A27,"") ->  | AH24: =MD!$G27 -> - | AJ24: =SUBSTITUTE(SUBSTITUTE(Setup!$B$5&"S-"&Setup!$B$13&"-"&X24,"Ανδ-",""),"Γυν-","") -> Ε3S-14-17_32 | AN24: ΜΑΛΕΒΙΤΗΣ Γ | AO24: ΜΠΑΚΑΛΟΣ Α
A25: =Setup!$B$3 -> ΣΤ' ΕΝΩΣΗ | B25: =Setup!$Z$6 -> 294 | C25: =Setup!$Z$5 -> Ε3 19η (ΣΤ) | D25: =SUBSTITUTE(TRIM(Setup!$B$6),"-","") -> Α14 | E25: Smd32 | F25: =TEXT(Setup!$B$8,"ΕΕΕΕ-ΜΜ-ΗΗ") -> 2018-05-12 | G25: =Setup!$T$7 ->  | H25: R16 | I25: =IF(OR(MD!$P$34=1,MD!$P$34=2), IF(MD!$P$34=1,MD!$N$33,MD!$N$35),"") -> 36854 | J25: =IF(OR(MD!$P$34=1,MD!$P$34=2), IF(MD!$P$34=2,MD!$N$33,MD!$N$35),"") -> 31771 | K25: =TRIM(MD!R35) -> 40 53 | L25: 32 | M25: 29 | N25: 2 | O25: 10 | P25: 36854 | Q25: 31771 | U25: =IF(NOT(OR(W25=0,W25=" ",W25="")),IF(INDIRECT("ALMD!B"&MATCH(W25,ALMD!$C$3:$C$34,0)+2)>0,INDIRECT("ALMD!B"&MATCH(W25,ALMD!$C$3:$C$34,0)+2),""),"") ->  | V25: =Setup!$T$7 ->  | W25: 0 | X25: 17_32 | Y25: 0 | Z25: 0 | AA25: 0 | AB25: =IF(OR($Z25=0,$Z25="",$U25="DQ"),0,VLOOKUP($AJ25,tables!$AF:$AG,2,FALSE)) -> 0 | AC25: =IF(W25>0,YEAR(Setup!$B$8)-YEAR(VLOOKUP(W25,ALMD!$C:$F,3,FALSE)),0) -> 0 | AE25: =MD!$I28 -> 36030 | AF25: =MD!$K28 -> ΤΟΥΝΤΑΣ Μ | AG25: =IF(AE25>0,MD!$A28,"") -> 24 | AH25: =MD!$G28 -> 4 | AJ25: =SUBSTITUTE(SUBSTITUTE(Setup!$B$5&"S-"&Setup!$B$13&"-"&X25,"Ανδ-",""),"Γυν-","") -> Ε3S-14-17_32 | AN25: ΚΥΡΙΑΚΟΠΟΥΛΟΣ Α | AO25: ΓΚΟΥΝΤΑΝΗΣ Β
A26: =Setup!$B$3 -> ΣΤ' ΕΝΩΣΗ | B26: =Setup!$Z$6 -> 294 | C26: =Setup!$Z$5 -> Ε3 19η (ΣΤ) | D26: =SUBSTITUTE(TRIM(Setup!$B$6),"-","") -> Α14 | E26: Smd32 | F26: =TEXT(Setup!$B$8,"ΕΕΕΕ-ΜΜ-ΗΗ") -> 2018-05-12 | G26: =Setup!$T$7 ->  | H26: R08 | I26: =IF(OR(MD!$S$8 =1,MD!$S$8 =2), IF(MD!$S$8 =1,MD!$Q$6,MD!$Q$10),"") -> 34598 | J26: =IF(OR(MD!$S$8 =1,MD!$S$8 =2), IF(MD!$S$8 =2,MD!$Q$6,MD!$Q$10),"") -> 30151 | K26: =TRIM(MD!U9) -> 40 40 | L26: 1 | M26: 8 | N26: 1 | O26: 6 | P26: 34598 | Q26: 30151 | U26: =IF(NOT(OR(W26=0,W26=" ",W26="")),IF(INDIRECT("ALMD!B"&MATCH(W26,ALMD!$C$3:$C$34,0)+2)>0,INDIRECT("ALMD!B"&MATCH(W26,ALMD!$C$3:$C$34,0)+2),""),"") ->  | V26: =Setup!$T$7 ->  | W26: 0 | X26: 17_32 | Y26: 0 | Z26: 0 | AA26: 0 | AB26: =IF(OR($Z26=0,$Z26="",$U26="DQ"),0,VLOOKUP($AJ26,tables!$AF:$AG,2,FALSE)) -> 0 | AC26: =IF(W26>0,YEAR(Setup!$B$8)-YEAR(VLOOKUP(W26,ALMD!$C:$F,3,FALSE)),0) -> 0 | AE26: =MD!$I29 -> 36853 | AF26: =MD!$K29 -> ΜΑΛΕΒΙΤΗΣ Γ | AG26: =IF(AE26>0,MD!$A29,"") -> 25 | AH26: =MD!$G29 -> 7 | AJ26: =SUBSTITUTE(SUBSTITUTE(Setup!$B$5&"S-"&Setup!$B$13&"-"&X26,"Ανδ-",""),"Γυν-","") -> Ε3S-14-17_32 | AN26: ΚΟΛΛΙΑΣ Σ | AO26: ΚΑΡΑΝΑΓΝΩΣΤΗΣ Κ
A27: =Setup!$B$3 -> ΣΤ' ΕΝΩΣΗ | B27: =Setup!$Z$6 -> 294 | C27: =Setup!$Z$5 -> Ε3 19η (ΣΤ) | D27: =SUBSTITUTE(TRIM(Setup!$B$6),"-","") -> Α14 | E27: Smd32 | F27: =TEXT(Setup!$B$8,"ΕΕΕΕ-ΜΜ-ΗΗ") -> 2018-05-12 | G27: =Setup!$T$7 ->  | H27: R08 | I27: =IF(OR(MD!$S$16=1,MD!$S$16=2), IF(MD!$S$16=1,MD!$Q$14,MD!$Q$18),"") -> 36852 | J27: =IF(OR(MD!$S$16=1,MD!$S$16=2), IF(MD!$S$16=2,MD!$Q$14,MD!$Q$18),"") -> 39823 | K27: =TRIM(MD!U17) -> 24 53 74 | L27: 16 | M27: 11 | N27: 5 | O27: 11 | P27: 36852 | Q27: 39823 | U27: =IF(NOT(OR(W27=0,W27=" ",W27="")),IF(INDIRECT("ALMD!B"&MATCH(W27,ALMD!$C$3:$C$34,0)+2)>0,INDIRECT("ALMD!B"&MATCH(W27,ALMD!$C$3:$C$34,0)+2),""),"") ->  | V27: =Setup!$T$7 ->  | W27: 0 | X27: 17_32 | Y27: 0 | Z27: 0 | AA27: 0 | AB27: =IF(OR($Z27=0,$Z27="",$U27="DQ"),0,VLOOKUP($AJ27,tables!$AF:$AG,2,FALSE)) -> 0 | AC27: =IF(W27>0,YEAR(Setup!$B$8)-YEAR(VLOOKUP(W27,ALMD!$C:$F,3,FALSE)),0) -> 0 | AE27: =MD!$I30 -> 0 | AF27: =MD!$K30 ->  | AG27: =IF(AE27>0,MD!$A30,"") ->  | AH27: =MD!$G30 -> - | AJ27: =SUBSTITUTE(SUBSTITUTE(Setup!$B$5&"S-"&Setup!$B$13&"-"&X27,"Ανδ-",""),"Γυν-","") -> Ε3S-14-17_32 | AN27: ΤΖΩΡΤΖΑΤΟΣ Κ | AO27: ΠΑΠΑΝΙΚΟΛΑΟΥ Ε
A28: =Setup!$B$3 -> ΣΤ' ΕΝΩΣΗ | B28: =Setup!$Z$6 -> 294 | C28: =Setup!$Z$5 -> Ε3 19η (ΣΤ) | D28: =SUBSTITUTE(TRIM(Setup!$B$6),"-","") -> Α14 | E28: Smd32 | F28: =TEXT(Setup!$B$8,"ΕΕΕΕ-ΜΜ-ΗΗ") -> 2018-05-12 | G28: =Setup!$T$7 ->  | H28: R08 | I28: =IF(OR(MD!$S$24=1,MD!$S$24=2), IF(MD!$S$24=1,MD!$Q$22,MD!$Q$26),"") -> 36030 | J28: =IF(OR(MD!$S$24=1,MD!$S$24=2), IF(MD!$S$24=2,MD!$Q$22,MD!$Q$26),"") -> 37444 | K28: =TRIM(MD!U25) -> 42 41 | L28: 24 | M28: 17 | N28: 4 | O28: 8 | P28: 36030 | Q28: 37444 | T28: 14 | U28: =IF(NOT(OR(W28=0,W28=" ",W28="")),IF(INDIRECT("ALMD!B"&MATCH(W28,ALMD!$C$3:$C$34,0)+2)>0,INDIRECT("ALMD!B"&MATCH(W28,ALMD!$C$3:$C$34,0)+2),""),"") ->  | V28: =Setup!$T$7 ->  | W28: 33992 | X28: 17_32 | Y28: 0 | Z28: 1 | AA28: 0 | AB28: =IF(OR($Z28=0,$Z28="",$U28="DQ"),0,VLOOKUP($AJ28,tables!$AF:$AG,2,FALSE)) -> 3 | AC28: =IF(W28>0,YEAR(Setup!$B$8)-YEAR(VLOOKUP(W28,ALMD!$C:$F,3,FALSE)),0) -> 12 | AE28: =MD!$I31 -> 36997 | AF28: =MD!$K31 -> ΜΠΑΚΑΛΟΣ Α | AG28: =IF(AE28>0,MD!$A31,"") -> 27 | AH28: =MD!$G31 -> 19 | AJ28: =SUBSTITUTE(SUBSTITUTE(Setup!$B$5&"S-"&Setup!$B$13&"-"&X28,"Ανδ-",""),"Γυν-","") -> Ε3S-14-17_32 | AN28: ΤΟΥΝΤΑΣ Μ | AO28: ΝΙΚΟΛΑΟΥ Α
A29: =Setup!$B$3 -> ΣΤ' ΕΝΩΣΗ | B29: =Setup!$Z$6 -> 294 | C29: =Setup!$Z$5 -> Ε3 19η (ΣΤ) | D29: =SUBSTITUTE(TRIM(Setup!$B$6),"-","") -> Α14 | E29: Smd32 | F29: =TEXT(Setup!$B$8,"ΕΕΕΕ-ΜΜ-ΗΗ") -> 2018-05-12 | G29: =Setup!$T$7 ->  | H29: R08 | I29: =IF(OR(MD!$S$32=1,MD!$S$32=2), IF(MD!$S$32=1,MD!$Q$30,MD!$Q$34),"") -> 36854 | J29: =IF(OR(MD!$S$32=1,MD!$S$32=2), IF(MD!$S$32=2,MD!$Q$30,MD!$Q$34),"") -> 36853 | K29: =TRIM(MD!U33) -> 41 40 | L29: 32 | M29: 25 | N29: 2 | O29: 7 | P29: 36854 | Q29: 36853 | U29: =IF(NOT(OR(W29=0,W29=" ",W29="")),IF(INDIRECT("ALMD!B"&MATCH(W29,ALMD!$C$3:$C$34,0)+2)>0,INDIRECT("ALMD!B"&MATCH(W29,ALMD!$C$3:$C$34,0)+2),""),"") ->  | V29: =Setup!$T$7 ->  | W29: 0 | X29: 17_32 | Y29: 0 | Z29: 0 | AA29: 0 | AB29: =IF(OR($Z29=0,$Z29="",$U29="DQ"),0,VLOOKUP($AJ29,tables!$AF:$AG,2,FALSE)) -> 0 | AC29: =IF(W29>0,YEAR(Setup!$B$8)-YEAR(VLOOKUP(W29,ALMD!$C:$F,3,FALSE)),0) -> 0 | AE29: =MD!$I32 -> 0 | AF29: =MD!$K32 ->  | AG29: =IF(AE29>0,MD!$A32,"") ->  | AH29: =MD!$G32 -> - | AJ29: =SUBSTITUTE(SUBSTITUTE(Setup!$B$5&"S-"&Setup!$B$13&"-"&X29,"Ανδ-",""),"Γυν-","") -> Ε3S-14-17_32 | AN29: ΚΥΡΙΑΚΟΠΟΥΛΟΣ Α | AO29: ΜΑΛΕΒΙΤΗΣ Γ
A30: =Setup!$B$3 -> ΣΤ' ΕΝΩΣΗ | B30: =Setup!$Z$6 -> 294 | C30: =Setup!$Z$5 -> Ε3 19η (ΣΤ) | D30: =SUBSTITUTE(TRIM(Setup!$B$6),"-","") -> Α14 | E30: Smd32 | F30: =TEXT(Setup!$B$8,"ΕΕΕΕ-ΜΜ-ΗΗ") -> 2018-05-12 | G30: =Setup!$T$7 ->  | H30: Ημιτελ | I30: =IF(OR(MD!$V$12=1,MD!$V$12=2), IF(MD!$V$12=1,MD!$T$8,MD!$T$16),"") -> 34598 | J30: =IF(OR(MD!$V$12=1,MD!$V$12=2), IF(MD!$V$12=2,MD!$T$8,MD!$T$16),"") -> 36852 | K30: =TRIM(MD!X13) -> 62 61 | L30: 1 | M30: 16 | N30: 1 | O30: 5 | P30: 34598 | Q30: 36852 | U30: =IF(NOT(OR(W30=0,W30=" ",W30="")),IF(INDIRECT("ALMD!B"&MATCH(W30,ALMD!$C$3:$C$34,0)+2)>0,INDIRECT("ALMD!B"&MATCH(W30,ALMD!$C$3:$C$34,0)+2),""),"") ->  | V30: =Setup!$T$7 ->  | W30: 0 | X30: 17_32 | Y30: 0 | Z30: 0 | AA30: 0 | AB30: =IF(OR($Z30=0,$Z30="",$U30="DQ"),0,VLOOKUP($AJ30,tables!$AF:$AG,2,FALSE)) -> 0 | AC30: =IF(W30>0,YEAR(Setup!$B$8)-YEAR(VLOOKUP(W30,ALMD!$C:$F,3,FALSE)),0) -> 0 | AE30: =MD!$I33 -> 31771 | AF30: =MD!$K33 -> ΓΚΟΥΝΤΑΝΗΣ Β | AG30: =IF(AE30>0,MD!$A33,"") -> 29 | AH30: =MD!$G33 -> 10 | AJ30: =SUBSTITUTE(SUBSTITUTE(Setup!$B$5&"S-"&Setup!$B$13&"-"&X30,"Ανδ-",""),"Γυν-","") -> Ε3S-14-17_32 | AN30: ΚΟΛΛΙΑΣ Σ | AO30: ΤΖΩΡΤΖΑΤΟΣ Κ
A31: =Setup!$B$3 -> ΣΤ' ΕΝΩΣΗ | B31: =Setup!$Z$6 -> 294 | C31: =Setup!$Z$5 -> Ε3 19η (ΣΤ) | D31: =SUBSTITUTE(TRIM(Setup!$B$6),"-","") -> Α14 | E31: Smd32 | F31: =TEXT(Setup!$B$8,"ΕΕΕΕ-ΜΜ-ΗΗ") -> 2018-05-12 | G31: =Setup!$T$7 ->  | H31: Ημιτελ | I31: =IF(OR(MD!$V$28=1,MD!$V$28=2), IF(MD!$V$28=1,MD!$T$24,MD!$T$32),"") -> 36030 | J31: =IF(OR(MD!$V$28=1,MD!$V$28=2), IF(MD!$V$28=2,MD!$T$24,MD!$T$32),"") -> 36854 | K31: =TRIM(MD!X29) -> 64 61 | L31: 24 | M31: 32 | N31: 4 | O31: 2 | P31: 36030 | Q31: 36854 | U31: =IF(NOT(OR(W31=0,W31=" ",W31="")),IF(INDIRECT("ALMD!B"&MATCH(W31,ALMD!$C$3:$C$34,0)+2)>0,INDIRECT("ALMD!B"&MATCH(W31,ALMD!$C$3:$C$34,0)+2),""),"") ->  | V31: =Setup!$T$7 ->  | W31: 0 | X31: 17_32 | Y31: 0 | Z31: 0 | AA31: 0 | AB31: =IF(OR($Z31=0,$Z31="",$U31="DQ"),0,VLOOKUP($AJ31,tables!$AF:$AG,2,FALSE)) -> 0 | AC31: =IF(W31>0,YEAR(Setup!$B$8)-YEAR(VLOOKUP(W31,ALMD!$C:$F,3,FALSE)),0) -> 0 | AE31: =MD!$I34 -> 38866 | AF31: =MD!$K34 -> ΝΤΟΥΛΙΑΣ Λ | AG31: =IF(AE31>0,MD!$A34,"") -> 30 | AH31: =MD!$G34 -> 20 | AJ31: =SUBSTITUTE(SUBSTITUTE(Setup!$B$5&"S-"&Setup!$B$13&"-"&X31,"Ανδ-",""),"Γυν-","") -> Ε3S-14-17_32 | AN31: ΤΟΥΝΤΑΣ Μ | AO31: ΚΥΡΙΑΚΟΠΟΥΛΟΣ Α
A32: =Setup!$B$3 -> ΣΤ' ΕΝΩΣΗ | B32: =Setup!$Z$6 -> 294 | C32: =Setup!$Z$5 -> Ε3 19η (ΣΤ) | D32: =SUBSTITUTE(TRIM(Setup!$B$6),"-","") -> Α14 | E32: Smd32 | F32: =TEXT(Setup!$B$8,"ΕΕΕΕ-ΜΜ-ΗΗ") -> 2018-05-12 | G32: =Setup!$T$7 ->  | H32: Τελικός | I32: =IF(OR(MD!$V$20=1,MD!$V$20=2), IF(MD!$V$20=1,MD!$W$12,MD!$W$28),"") -> 34598 | J32: =IF(OR(MD!$V$20=1,MD!$V$20=2), IF(MD!$V$20=2,MD!$W$12,MD!$W$28),"") -> 36030 | K32: =TRIM(MD!X21) -> 64 46 64 | L32: 1 | M32: 24 | N32: 1 | O32: 4 | P32: 34598 | Q32: 36030 | T32: 20 | U32: =IF(NOT(OR(W32=0,W32=" ",W32="")),IF(INDIRECT("ALMD!B"&MATCH(W32,ALMD!$C$3:$C$34,0)+2)>0,INDIRECT("ALMD!B"&MATCH(W32,ALMD!$C$3:$C$34,0)+2),""),"") ->  | V32: =Setup!$T$7 ->  | W32: 38866 | X32: 17_32 | Y32: 0 | Z32: 1 | AA32: 0 | AB32: =IF(OR($Z32=0,$Z32="",$U32="DQ"),0,VLOOKUP($AJ32,tables!$AF:$AG,2,FALSE)) -> 3 | AC32: =IF(W32>0,YEAR(Setup!$B$8)-YEAR(VLOOKUP(W32,ALMD!$C:$F,3,FALSE)),0) -> 13 | AE32: =MD!$I35 -> 0 | AF32: =MD!$K35 ->  | AG32: =IF(AE32>0,MD!$A35,"") ->  | AH32: =MD!$G35 -> - | AJ32: =SUBSTITUTE(SUBSTITUTE(Setup!$B$5&"S-"&Setup!$B$13&"-"&X32,"Ανδ-",""),"Γυν-","") -> Ε3S-14-17_32 | AN32: ΚΟΛΛΙΑΣ Σ | AO32: ΤΟΥΝΤΑΣ Μ
A33: =Setup!$B$3 -> ΣΤ' ΕΝΩΣΗ | B33: =Setup!$Z$6 -> 294 | C33: =Setup!$Z$5 -> Ε3 19η (ΣΤ) | D33: =SUBSTITUTE(TRIM(Setup!$B$6),"-","") -> Α14 | E33: Smd32 | F33: =TEXT(Setup!$B$8,"ΕΕΕΕ-ΜΜ-ΗΗ") -> 2018-05-12 | U33: =IF(NOT(OR(W33=0,W33=" ",W33="")),IF(INDIRECT("ALMD!B"&MATCH(W33,ALMD!$C$3:$C$34,0)+2)>0,INDIRECT("ALMD!B"&MATCH(W33,ALMD!$C$3:$C$34,0)+2),""),"") ->  | V33: =Setup!$T$7 ->  | W33: =J17 -> 0 | X33: 17_32 | Y33: 0 | Z33: 0 | AA33: 0 | AB33: =IF(OR($Z33=0,$Z33="",$U33="DQ"),0,VLOOKUP($AJ33,tables!$AF:$AG,2,FALSE)) -> 0 | AC33: =IF(W33>0,YEAR(Setup!$B$8)-YEAR(VLOOKUP(W33,ALMD!$C:$F,3,FALSE)),0) -> 0 | AE33: =MD!$I36 -> 36854 | AF33: =MD!$K36 -> ΚΥΡΙΑΚΟΠΟΥΛΟΣ Α | AG33: =IF(AE33>0,MD!$A36,"") -> 32 | AH33: =MD!$G36 -> 2 | AJ33: =SUBSTITUTE(SUBSTITUTE(Setup!$B$5&"S-"&Setup!$B$13&"-"&X33,"Ανδ-",""),"Γυν-","") -> Ε3S-14-17_32
